{"text_format":"1","workbook":"xlsx","n_sheets":2,"sheets":["StreetLightingPole","Lookups"],"not_rendered":{"charts":0,"images":0,"macros":0,"external_links":0,"defined_names":46,"comments":0,"pivot_tables":0},"unopened":[],"bounds":{"document_bytes":16777216,"sheet_cells":100000,"rows_first":2000,"rows_last":500,"rows_between":2000,"halvings":0,"cell_chars":16384,"cell_head_chars":4096},"cells_cut":0,"cells_raw":0,"read":"whole","date_system":"1900"}

{"sheet":"StreetLightingPole","index":0,"n_rows":100,"n_cols":59,"rows_kept":100,"cut":false,"hidden":false,"merged":[]}
["15f221f1-c15e-4d8e-a679-81fade5c4405_road_id","sh-rs-d","15f221f1-c15e-4d8e-a679-81fade5c4404_start_m","cd5a33a3-3ebc-42c8-9678-64935f4b851f_offset_side_desc","cd5a33a3-3ebc-42c8-9678-64935f4b851f_offset_side","0079a08b-bfbf-42cc-8549-c7e471af4f9a_offset","db2483f2-1342-4a33-ae12-e8da6cc9a4c3_pole_material_desc","db2483f2-1342-4a33-ae12-e8da6cc9a4c3_pole_material","fbd2762d-c200-477d-aa70-f3a2b4266acf_pole_shape_desc","fbd2762d-c200-477d-aa70-f3a2b4266acf_pole_shape","c7a533b0-7dd9-4271-892c-096a39716e16_pole_make_desc","c7a533b0-7dd9-4271-892c-096a39716e16_pole_make",null,null,"433817f3-1a41-4840-869f-17456ed6867c_pole_mount_desc","433817f3-1a41-4840-869f-17456ed6867c_pole_mount","5885178f-5f78-41b5-b1a9-d1c890e5d5ff_pole_attach_desc","5885178f-5f78-41b5-b1a9-d1c890e5d5ff_pole_attach","ab01a8f3-f998-4290-be5f-b84fb1dd62d8_pole_purpose_desc","ab01a8f3-f998-4290-be5f-b84fb1dd62d8_pole_purpose","a3e95f9a-14ac-4c76-ad67-1c2e78d27dcc_coating_desc","a3e95f9a-14ac-4c76-ad67-1c2e78d27dcc_coating","ba568c51-877e-4755-b170-e4b692fc2357_pole_in_use_desc","ba568c51-877e-4755-b170-e4b692fc2357_pole_in_use","02b38309-e713-4a10-b522-7c50a96d1296_pole_control_desc","02b38309-e713-4a10-b522-7c50a96d1296_pole_control","cd1390e1-a81b-44d9-b438-d18f07f2090a_power_company_desc","cd1390e1-a81b-44d9-b438-d18f07f2090a_power_company","68c9e30a-37cc-4bb8-b6c8-1e892a1eb0ab_pole_no","0270fe93-05ff-4391-b546-9a5d4e9c0016_post_id","62ea590d-2cc6-42ff-9b59-dc7f541a86f7_install_date","fa6b2423-fe11-4698-b8ed-d33775976cb1_in_replace_reason_desc","fa6b2423-fe11-4698-b8ed-d33775976cb1_in_replace_reason","f00e0a16-a657-40c2-adde-7bf32fad4e83_pole_status_desc","f00e0a16-a657-40c2-adde-7bf32fad4e83_pole_status","4e0532fb-ca3d-4231-bf3c-c5d1b68b0656_date_tightened","c98f7688-a9a2-42f7-a755-a00c9fa28096_owner_desc","c98f7688-a9a2-42f7-a755-a00c9fa28096_owner","7f6e8a02-451d-4c17-a43d-3e3071ca78a8_northing","89303d96-c1c4-476a-9015-0aaeb58faf64_easting","70bd4273-e300-4649-851f-774c5da4647f_gps_date","3ff1b744-aaea-4187-b3be-de50b63832d0_gps_method_id_desc","3ff1b744-aaea-4187-b3be-de50b63832d0_gps_method_id","b760e367-a82f-476b-9f41-1899716ded0a_risk_likelihood_desc","b760e367-a82f-476b-9f41-1899716ded0a_risk_likelihood","9d0551ee-eb6c-43b7-ad9a-b6203b10cdae_risk_consequence_desc","9d0551ee-eb6c-43b7-ad9a-b6203b10cdae_risk_consequence","dccb247d-2ef8-4f3f-a400-6750787082ef_risk_desc","dccb247d-2ef8-4f3f-a400-6750787082ef_risk","0e86f836-cfc2-4f07-a500-3f56185f488c_rul_reset_desc","0e86f836-cfc2-4f07-a500-3f56185f488c_rul_reset","a022ea8c-47b9-4f27-93d4-f945f822400d_use_default_rc_desc","a022ea8c-47b9-4f27-93d4-f945f822400d_use_default_rc","bf6a0e6c-ad58-4146-a7a7-fa8252ed67c7_condition_desc","bf6a0e6c-ad58-4146-a7a7-fa8252ed67c7_condition","56db20f3-0b04-4a1d-8800-7bd096331041_condition_date","fea6122c-d110-476f-8606-620e577275db_collect_name_desc","fea6122c-d110-476f-8606-620e577275db_collect_name","f540a41e-338a-4ddd-aa40-1e6afd175c0c_notes"]
["road_id","sh-rs-d","start_m","offset_side_desc","offset_side","offset","pole_material_desc","pole_material","pole_shape_desc","pole_shape","pole_make_desc","pole_make",null,null,"pole_mount_desc","pole_mount","pole_attach_desc","pole_attach","pole_purpose_desc","pole_purpose","coating_desc","coating","pole_in_use_desc","pole_in_use","pole_control_desc","pole_control","power_company_desc","power_company","pole_no","post_id","install_date","in_replace_reason_desc","in_replace_reason","pole_status_desc","pole_status","date_tightened","owner_desc","owner","northing","easting","gps_date","gps_method_id_desc","gps_method_id","risk_likelihood_desc","risk_likelihood","risk_consequence_desc","risk_consequence","risk_desc","risk","rul_reset_desc","rul_reset","use_default_rc_desc","use_default_rc","condition_desc","condition","condition_date","collect_name_desc","collect_name","notes"]
["Road ID","SH-RS-D (e.g. 016-0000-B) letter must be uppercase and include leading 0","Start (m)","Side Desc","Side","Offset","Material Desc","Material","Shape Desc","Shape","Make Desc","Make","Model Desc","Model","Mount Desc","Mount","Attachment Desc","Attachment","Purpose Desc","Purpose","Coating Desc","Coating","In Use Desc","In Use","Control Desc","Control","Power Company Desc","Power Company","Pole Number","Post ID","Install Date (dd/mm/yyy) Must include leading 0","Install Reason Desc","Install Reason","Status Desc","Status","Date Tightened (dd/mm/yyyy) Must include leading 0","Owner Desc","Owner","Northing","Easting","GPS Date (dd/mm/yyyy) Must include leading 0","GPS Method Desc","GPS Method","Likelihood Desc","Likelihood","Consequence Desc","Consequence","Risk Desc","Risk","RUL Reset Desc","RUL Reset","Use Default Desc","Use Default","Condition Desc","Condition","Condition Date (dd/mm/yyyy) Must include leading 0","Organisation Desc","Organisation","Notes"]
[{"$f":"_xlfn.FILTERXML(_xlfn.WEBSERVICE(\"https://nds-beta.mobileroad.org/xy_sh?rp=\"&B4&\"/\"&C4&\"&xml=true\"),\"/lrms/id_road\")","v":"null"},null,null,null,{"$f":"IF(D4=\"\",\"\",VLOOKUP(D4,side[],2,FALSE))","v":""},null,null,{"$f":"IF(G4=\"\",\"\",VLOOKUP(G4,Material[],2,FALSE))","v":""},null,{"$f":"IF(I4=\"\",\"\",VLOOKUP(I4,shape[],2,FALSE))","v":""},null,{"$f":"IF(K4=\"\",\"\",VLOOKUP(K4,make[],2,FALSE))","v":""},null,{"$f":"IF(M4=\"\",\"\",VLOOKUP(M4,model,2,FALSE))","v":""},null,{"$f":"IF(O4=\"\",\"\",VLOOKUP(O4,mounting_type[],2,FALSE))","v":""},null,{"$f":"IF(Q4=\"\",\"\",VLOOKUP(Q4,attachment[],2,FALSE))","v":""},null,{"$f":"IF(S4=\"\",\"\",VLOOKUP(S4,purpose[],2,FALSE))","v":""},null,{"$f":"IF(U4=\"\",\"\",VLOOKUP(U4,coating[],2,FALSE))","v":""},null,{"$f":"IF(W4=\"\",\"\",VLOOKUP(W4,pole_in_use[],2,FALSE))","v":""},null,{"$f":"IF(Y4=\"\",\"\",VLOOKUP(Y4,pole_control[],2,FALSE))","v":""},null,{"$f":"IF(AA4=\"\",\"\",VLOOKUP(AA4,power_company[],2,FALSE))","v":""},null,null,null,null,{"$f":"IF(AF4=\"\",\"\",VLOOKUP(AF4,Install_reason[],2,FALSE))","v":""},null,{"$f":"IF(AH4=\"\",\"\",VLOOKUP(AH4,status[],2,FALSE))","v":""},null,null,{"$f":"IF(AK4=\"\",\"\",VLOOKUP(AK4,asset_owner[],2,FALSE))","v":""},null,null,null,null,{"$f":"IF(AP4=\"\",\"\",VLOOKUP(AP4,gps_method[],2,FALSE))","v":""},null,{"$f":"IF(AR4=\"\",\"\",VLOOKUP(AR4,risk_likelihood[],2,FALSE))","v":""},null,{"$f":"IF(AT4=\"\",\"\",VLOOKUP(AT4,risk_consequence[],2,FALSE))","v":""},null,{"$f":"IF(AV4=\"\",\"\",VLOOKUP(AV4,risk[],2,FALSE))","v":""},null,{"$f":"IF(AX4=\"\",\"\",VLOOKUP(AX4,rul_reset[],2,FALSE))","v":""},null,{"$f":"IF(AZ4=\"\",\"\",VLOOKUP(AZ4,use_default_rc[],2,FALSE))","v":""},null,{"$f":"IF(BB4=\"\",\"\",VLOOKUP(BB4,condition[],2,FALSE))","v":""},null,null,{"$f":"IF(BE4=\"\",\"\",VLOOKUP(BE4,Organisation[],2,FALSE))","v":""}]
[{"$f":"_xlfn.FILTERXML(_xlfn.WEBSERVICE(\"https://nds-beta.mobileroad.org/xy_sh?rp=\"&B5&\"/\"&C5&\"&xml=true\"),\"/lrms/id_road\")","v":"null"},null,null,null,{"$f":"IF(D5=\"\",\"\",VLOOKUP(D5,side[],2,FALSE))","v":""},null,null,{"$f":"IF(G5=\"\",\"\",VLOOKUP(G5,Material[],2,FALSE))","v":""},null,{"$f":"IF(I5=\"\",\"\",VLOOKUP(I5,shape[],2,FALSE))","v":""},null,{"$f":"IF(K5=\"\",\"\",VLOOKUP(K5,make[],2,FALSE))","v":""},null,"",null,{"$f":"IF(O5=\"\",\"\",VLOOKUP(O5,mounting_type[],2,FALSE))","v":""},null,{"$f":"IF(Q5=\"\",\"\",VLOOKUP(Q5,attachment[],2,FALSE))","v":""},null,{"$f":"IF(S5=\"\",\"\",VLOOKUP(S5,purpose[],2,FALSE))","v":""},null,{"$f":"IF(U5=\"\",\"\",VLOOKUP(U5,coating[],2,FALSE))","v":""},null,{"$f":"IF(W5=\"\",\"\",VLOOKUP(W5,pole_in_use[],2,FALSE))","v":""},null,{"$f":"IF(Y5=\"\",\"\",VLOOKUP(Y5,pole_control[],2,FALSE))","v":""},null,{"$f":"IF(AA5=\"\",\"\",VLOOKUP(AA5,power_company[],2,FALSE))","v":""},null,null,null,null,{"$f":"IF(AF5=\"\",\"\",VLOOKUP(AF5,Install_reason[],2,FALSE))","v":""},null,{"$f":"IF(AH5=\"\",\"\",VLOOKUP(AH5,status[],2,FALSE))","v":""},null,null,{"$f":"IF(AK5=\"\",\"\",VLOOKUP(AK5,asset_owner[],2,FALSE))","v":""},null,null,null,null,{"$f":"IF(AP5=\"\",\"\",VLOOKUP(AP5,gps_method[],2,FALSE))","v":""},null,{"$f":"IF(AR5=\"\",\"\",VLOOKUP(AR5,risk_likelihood[],2,FALSE))","v":""},null,{"$f":"IF(AT5=\"\",\"\",VLOOKUP(AT5,risk_consequence[],2,FALSE))","v":""},null,{"$f":"IF(AV5=\"\",\"\",VLOOKUP(AV5,risk[],2,FALSE))","v":""},null,{"$f":"IF(AX5=\"\",\"\",VLOOKUP(AX5,rul_reset[],2,FALSE))","v":""},null,{"$f":"IF(AZ5=\"\",\"\",VLOOKUP(AZ5,use_default_rc[],2,FALSE))","v":""},null,{"$f":"IF(BB5=\"\",\"\",VLOOKUP(BB5,condition[],2,FALSE))","v":""},null,null,{"$f":"IF(BE5=\"\",\"\",VLOOKUP(BE5,Organisation[],2,FALSE))","v":""}]
["null",null,null,null,{"$f":"IF(D6=\"\",\"\",VLOOKUP(D6,side[],2,FALSE))","v":""},null,null,{"$f":"IF(G6=\"\",\"\",VLOOKUP(G6,Material[],2,FALSE))","v":""},null,{"$f":"IF(I6=\"\",\"\",VLOOKUP(I6,shape[],2,FALSE))","v":""},null,{"$f":"IF(K6=\"\",\"\",VLOOKUP(K6,make[],2,FALSE))","v":""},null,"",null,{"$f":"IF(O6=\"\",\"\",VLOOKUP(O6,mounting_type[],2,FALSE))","v":""},null,{"$f":"IF(Q6=\"\",\"\",VLOOKUP(Q6,attachment[],2,FALSE))","v":""},null,{"$f":"IF(S6=\"\",\"\",VLOOKUP(S6,purpose[],2,FALSE))","v":""},null,{"$f":"IF(U6=\"\",\"\",VLOOKUP(U6,coating[],2,FALSE))","v":""},null,{"$f":"IF(W6=\"\",\"\",VLOOKUP(W6,pole_in_use[],2,FALSE))","v":""},null,{"$f":"IF(Y6=\"\",\"\",VLOOKUP(Y6,pole_control[],2,FALSE))","v":""},null,{"$f":"IF(AA6=\"\",\"\",VLOOKUP(AA6,power_company[],2,FALSE))","v":""},null,null,null,null,{"$f":"IF(AF6=\"\",\"\",VLOOKUP(AF6,Install_reason[],2,FALSE))","v":""},null,{"$f":"IF(AH6=\"\",\"\",VLOOKUP(AH6,status[],2,FALSE))","v":""},null,null,{"$f":"IF(AK6=\"\",\"\",VLOOKUP(AK6,asset_owner[],2,FALSE))","v":""},null,null,null,null,{"$f":"IF(AP6=\"\",\"\",VLOOKUP(AP6,gps_method[],2,FALSE))","v":""},null,{"$f":"IF(AR6=\"\",\"\",VLOOKUP(AR6,risk_likelihood[],2,FALSE))","v":""},null,{"$f":"IF(AT6=\"\",\"\",VLOOKUP(AT6,risk_consequence[],2,FALSE))","v":""},null,{"$f":"IF(AV6=\"\",\"\",VLOOKUP(AV6,risk[],2,FALSE))","v":""},null,{"$f":"IF(AX6=\"\",\"\",VLOOKUP(AX6,rul_reset[],2,FALSE))","v":""},null,{"$f":"IF(AZ6=\"\",\"\",VLOOKUP(AZ6,use_default_rc[],2,FALSE))","v":""},null,{"$f":"IF(BB6=\"\",\"\",VLOOKUP(BB6,condition[],2,FALSE))","v":""},null,null,{"$f":"IF(BE6=\"\",\"\",VLOOKUP(BE6,Organisation[],2,FALSE))","v":""}]
["null",null,null,null,{"$f":"IF(D7=\"\",\"\",VLOOKUP(D7,side[],2,FALSE))","v":""},null,null,{"$f":"IF(G7=\"\",\"\",VLOOKUP(G7,Material[],2,FALSE))","v":""},null,{"$f":"IF(I7=\"\",\"\",VLOOKUP(I7,shape[],2,FALSE))","v":""},null,{"$f":"IF(K7=\"\",\"\",VLOOKUP(K7,make[],2,FALSE))","v":""},null,"",null,{"$f":"IF(O7=\"\",\"\",VLOOKUP(O7,mounting_type[],2,FALSE))","v":""},null,{"$f":"IF(Q7=\"\",\"\",VLOOKUP(Q7,attachment[],2,FALSE))","v":""},null,{"$f":"IF(S7=\"\",\"\",VLOOKUP(S7,purpose[],2,FALSE))","v":""},null,{"$f":"IF(U7=\"\",\"\",VLOOKUP(U7,coating[],2,FALSE))","v":""},null,{"$f":"IF(W7=\"\",\"\",VLOOKUP(W7,pole_in_use[],2,FALSE))","v":""},null,{"$f":"IF(Y7=\"\",\"\",VLOOKUP(Y7,pole_control[],2,FALSE))","v":""},null,{"$f":"IF(AA7=\"\",\"\",VLOOKUP(AA7,power_company[],2,FALSE))","v":""},null,null,null,null,{"$f":"IF(AF7=\"\",\"\",VLOOKUP(AF7,Install_reason[],2,FALSE))","v":""},null,{"$f":"IF(AH7=\"\",\"\",VLOOKUP(AH7,status[],2,FALSE))","v":""},null,null,{"$f":"IF(AK7=\"\",\"\",VLOOKUP(AK7,asset_owner[],2,FALSE))","v":""},null,null,null,null,{"$f":"IF(AP7=\"\",\"\",VLOOKUP(AP7,gps_method[],2,FALSE))","v":""},null,{"$f":"IF(AR7=\"\",\"\",VLOOKUP(AR7,risk_likelihood[],2,FALSE))","v":""},null,{"$f":"IF(AT7=\"\",\"\",VLOOKUP(AT7,risk_consequence[],2,FALSE))","v":""},null,{"$f":"IF(AV7=\"\",\"\",VLOOKUP(AV7,risk[],2,FALSE))","v":""},null,{"$f":"IF(AX7=\"\",\"\",VLOOKUP(AX7,rul_reset[],2,FALSE))","v":""},null,{"$f":"IF(AZ7=\"\",\"\",VLOOKUP(AZ7,use_default_rc[],2,FALSE))","v":""},null,{"$f":"IF(BB7=\"\",\"\",VLOOKUP(BB7,condition[],2,FALSE))","v":""},null,null,{"$f":"IF(BE7=\"\",\"\",VLOOKUP(BE7,Organisation[],2,FALSE))","v":""}]
["null",null,null,null,{"$f":"IF(D8=\"\",\"\",VLOOKUP(D8,side[],2,FALSE))","v":""},null,null,{"$f":"IF(G8=\"\",\"\",VLOOKUP(G8,Material[],2,FALSE))","v":""},null,{"$f":"IF(I8=\"\",\"\",VLOOKUP(I8,shape[],2,FALSE))","v":""},null,{"$f":"IF(K8=\"\",\"\",VLOOKUP(K8,make[],2,FALSE))","v":""},null,"",null,{"$f":"IF(O8=\"\",\"\",VLOOKUP(O8,mounting_type[],2,FALSE))","v":""},null,{"$f":"IF(Q8=\"\",\"\",VLOOKUP(Q8,attachment[],2,FALSE))","v":""},null,{"$f":"IF(S8=\"\",\"\",VLOOKUP(S8,purpose[],2,FALSE))","v":""},null,{"$f":"IF(U8=\"\",\"\",VLOOKUP(U8,coating[],2,FALSE))","v":""},null,{"$f":"IF(W8=\"\",\"\",VLOOKUP(W8,pole_in_use[],2,FALSE))","v":""},null,{"$f":"IF(Y8=\"\",\"\",VLOOKUP(Y8,pole_control[],2,FALSE))","v":""},null,{"$f":"IF(AA8=\"\",\"\",VLOOKUP(AA8,power_company[],2,FALSE))","v":""},null,null,null,null,{"$f":"IF(AF8=\"\",\"\",VLOOKUP(AF8,Install_reason[],2,FALSE))","v":""},null,{"$f":"IF(AH8=\"\",\"\",VLOOKUP(AH8,status[],2,FALSE))","v":""},null,null,{"$f":"IF(AK8=\"\",\"\",VLOOKUP(AK8,asset_owner[],2,FALSE))","v":""},null,null,null,null,{"$f":"IF(AP8=\"\",\"\",VLOOKUP(AP8,gps_method[],2,FALSE))","v":""},null,{"$f":"IF(AR8=\"\",\"\",VLOOKUP(AR8,risk_likelihood[],2,FALSE))","v":""},null,{"$f":"IF(AT8=\"\",\"\",VLOOKUP(AT8,risk_consequence[],2,FALSE))","v":""},null,{"$f":"IF(AV8=\"\",\"\",VLOOKUP(AV8,risk[],2,FALSE))","v":""},null,{"$f":"IF(AX8=\"\",\"\",VLOOKUP(AX8,rul_reset[],2,FALSE))","v":""},null,{"$f":"IF(AZ8=\"\",\"\",VLOOKUP(AZ8,use_default_rc[],2,FALSE))","v":""},null,{"$f":"IF(BB8=\"\",\"\",VLOOKUP(BB8,condition[],2,FALSE))","v":""},null,null,{"$f":"IF(BE8=\"\",\"\",VLOOKUP(BE8,Organisation[],2,FALSE))","v":""}]
["null",null,null,null,{"$f":"IF(D9=\"\",\"\",VLOOKUP(D9,side[],2,FALSE))","v":""},null,null,{"$f":"IF(G9=\"\",\"\",VLOOKUP(G9,Material[],2,FALSE))","v":""},null,{"$f":"IF(I9=\"\",\"\",VLOOKUP(I9,shape[],2,FALSE))","v":""},null,{"$f":"IF(K9=\"\",\"\",VLOOKUP(K9,make[],2,FALSE))","v":""},null,"",null,{"$f":"IF(O9=\"\",\"\",VLOOKUP(O9,mounting_type[],2,FALSE))","v":""},null,{"$f":"IF(Q9=\"\",\"\",VLOOKUP(Q9,attachment[],2,FALSE))","v":""},null,{"$f":"IF(S9=\"\",\"\",VLOOKUP(S9,purpose[],2,FALSE))","v":""},null,{"$f":"IF(U9=\"\",\"\",VLOOKUP(U9,coating[],2,FALSE))","v":""},null,{"$f":"IF(W9=\"\",\"\",VLOOKUP(W9,pole_in_use[],2,FALSE))","v":""},null,{"$f":"IF(Y9=\"\",\"\",VLOOKUP(Y9,pole_control[],2,FALSE))","v":""},null,{"$f":"IF(AA9=\"\",\"\",VLOOKUP(AA9,power_company[],2,FALSE))","v":""},null,null,null,null,{"$f":"IF(AF9=\"\",\"\",VLOOKUP(AF9,Install_reason[],2,FALSE))","v":""},null,{"$f":"IF(AH9=\"\",\"\",VLOOKUP(AH9,status[],2,FALSE))","v":""},null,null,{"$f":"IF(AK9=\"\",\"\",VLOOKUP(AK9,asset_owner[],2,FALSE))","v":""},null,null,null,null,{"$f":"IF(AP9=\"\",\"\",VLOOKUP(AP9,gps_method[],2,FALSE))","v":""},null,{"$f":"IF(AR9=\"\",\"\",VLOOKUP(AR9,risk_likelihood[],2,FALSE))","v":""},null,{"$f":"IF(AT9=\"\",\"\",VLOOKUP(AT9,risk_consequence[],2,FALSE))","v":""},null,{"$f":"IF(AV9=\"\",\"\",VLOOKUP(AV9,risk[],2,FALSE))","v":""},null,{"$f":"IF(AX9=\"\",\"\",VLOOKUP(AX9,rul_reset[],2,FALSE))","v":""},null,{"$f":"IF(AZ9=\"\",\"\",VLOOKUP(AZ9,use_default_rc[],2,FALSE))","v":""},null,{"$f":"IF(BB9=\"\",\"\",VLOOKUP(BB9,condition[],2,FALSE))","v":""},null,null,{"$f":"IF(BE9=\"\",\"\",VLOOKUP(BE9,Organisation[],2,FALSE))","v":""}]
["null",null,null,null,{"$f":"IF(D10=\"\",\"\",VLOOKUP(D10,side[],2,FALSE))","v":""},null,null,{"$f":"IF(G10=\"\",\"\",VLOOKUP(G10,Material[],2,FALSE))","v":""},null,{"$f":"IF(I10=\"\",\"\",VLOOKUP(I10,shape[],2,FALSE))","v":""},null,{"$f":"IF(K10=\"\",\"\",VLOOKUP(K10,make[],2,FALSE))","v":""},null,"",null,{"$f":"IF(O10=\"\",\"\",VLOOKUP(O10,mounting_type[],2,FALSE))","v":""},null,{"$f":"IF(Q10=\"\",\"\",VLOOKUP(Q10,attachment[],2,FALSE))","v":""},null,{"$f":"IF(S10=\"\",\"\",VLOOKUP(S10,purpose[],2,FALSE))","v":""},null,{"$f":"IF(U10=\"\",\"\",VLOOKUP(U10,coating[],2,FALSE))","v":""},null,{"$f":"IF(W10=\"\",\"\",VLOOKUP(W10,pole_in_use[],2,FALSE))","v":""},null,{"$f":"IF(Y10=\"\",\"\",VLOOKUP(Y10,pole_control[],2,FALSE))","v":""},null,{"$f":"IF(AA10=\"\",\"\",VLOOKUP(AA10,power_company[],2,FALSE))","v":""},null,null,null,null,{"$f":"IF(AF10=\"\",\"\",VLOOKUP(AF10,Install_reason[],2,FALSE))","v":""},null,{"$f":"IF(AH10=\"\",\"\",VLOOKUP(AH10,status[],2,FALSE))","v":""},null,null,{"$f":"IF(AK10=\"\",\"\",VLOOKUP(AK10,asset_owner[],2,FALSE))","v":""},null,null,null,null,{"$f":"IF(AP10=\"\",\"\",VLOOKUP(AP10,gps_method[],2,FALSE))","v":""},null,{"$f":"IF(AR10=\"\",\"\",VLOOKUP(AR10,risk_likelihood[],2,FALSE))","v":""},null,{"$f":"IF(AT10=\"\",\"\",VLOOKUP(AT10,risk_consequence[],2,FALSE))","v":""},null,{"$f":"IF(AV10=\"\",\"\",VLOOKUP(AV10,risk[],2,FALSE))","v":""},null,{"$f":"IF(AX10=\"\",\"\",VLOOKUP(AX10,rul_reset[],2,FALSE))","v":""},null,{"$f":"IF(AZ10=\"\",\"\",VLOOKUP(AZ10,use_default_rc[],2,FALSE))","v":""},null,{"$f":"IF(BB10=\"\",\"\",VLOOKUP(BB10,condition[],2,FALSE))","v":""},null,null,{"$f":"IF(BE10=\"\",\"\",VLOOKUP(BE10,Organisation[],2,FALSE))","v":""}]
["null",null,null,null,{"$f":"IF(D11=\"\",\"\",VLOOKUP(D11,side[],2,FALSE))","v":""},null,null,{"$f":"IF(G11=\"\",\"\",VLOOKUP(G11,Material[],2,FALSE))","v":""},null,{"$f":"IF(I11=\"\",\"\",VLOOKUP(I11,shape[],2,FALSE))","v":""},null,{"$f":"IF(K11=\"\",\"\",VLOOKUP(K11,make[],2,FALSE))","v":""},null,"",null,{"$f":"IF(O11=\"\",\"\",VLOOKUP(O11,mounting_type[],2,FALSE))","v":""},null,{"$f":"IF(Q11=\"\",\"\",VLOOKUP(Q11,attachment[],2,FALSE))","v":""},null,{"$f":"IF(S11=\"\",\"\",VLOOKUP(S11,purpose[],2,FALSE))","v":""},null,{"$f":"IF(U11=\"\",\"\",VLOOKUP(U11,coating[],2,FALSE))","v":""},null,{"$f":"IF(W11=\"\",\"\",VLOOKUP(W11,pole_in_use[],2,FALSE))","v":""},null,{"$f":"IF(Y11=\"\",\"\",VLOOKUP(Y11,pole_control[],2,FALSE))","v":""},null,{"$f":"IF(AA11=\"\",\"\",VLOOKUP(AA11,power_company[],2,FALSE))","v":""},null,null,null,null,{"$f":"IF(AF11=\"\",\"\",VLOOKUP(AF11,Install_reason[],2,FALSE))","v":""},null,{"$f":"IF(AH11=\"\",\"\",VLOOKUP(AH11,status[],2,FALSE))","v":""},null,null,{"$f":"IF(AK11=\"\",\"\",VLOOKUP(AK11,asset_owner[],2,FALSE))","v":""},null,null,null,null,{"$f":"IF(AP11=\"\",\"\",VLOOKUP(AP11,gps_method[],2,FALSE))","v":""},null,{"$f":"IF(AR11=\"\",\"\",VLOOKUP(AR11,risk_likelihood[],2,FALSE))","v":""},null,{"$f":"IF(AT11=\"\",\"\",VLOOKUP(AT11,risk_consequence[],2,FALSE))","v":""},null,{"$f":"IF(AV11=\"\",\"\",VLOOKUP(AV11,risk[],2,FALSE))","v":""},null,{"$f":"IF(AX11=\"\",\"\",VLOOKUP(AX11,rul_reset[],2,FALSE))","v":""},null,{"$f":"IF(AZ11=\"\",\"\",VLOOKUP(AZ11,use_default_rc[],2,FALSE))","v":""},null,{"$f":"IF(BB11=\"\",\"\",VLOOKUP(BB11,condition[],2,FALSE))","v":""},null,null,{"$f":"IF(BE11=\"\",\"\",VLOOKUP(BE11,Organisation[],2,FALSE))","v":""}]
["null",null,null,null,{"$f":"IF(D12=\"\",\"\",VLOOKUP(D12,side[],2,FALSE))","v":""},null,null,{"$f":"IF(G12=\"\",\"\",VLOOKUP(G12,Material[],2,FALSE))","v":""},null,{"$f":"IF(I12=\"\",\"\",VLOOKUP(I12,shape[],2,FALSE))","v":""},null,{"$f":"IF(K12=\"\",\"\",VLOOKUP(K12,make[],2,FALSE))","v":""},null,"",null,{"$f":"IF(O12=\"\",\"\",VLOOKUP(O12,mounting_type[],2,FALSE))","v":""},null,{"$f":"IF(Q12=\"\",\"\",VLOOKUP(Q12,attachment[],2,FALSE))","v":""},null,{"$f":"IF(S12=\"\",\"\",VLOOKUP(S12,purpose[],2,FALSE))","v":""},null,{"$f":"IF(U12=\"\",\"\",VLOOKUP(U12,coating[],2,FALSE))","v":""},null,{"$f":"IF(W12=\"\",\"\",VLOOKUP(W12,pole_in_use[],2,FALSE))","v":""},null,{"$f":"IF(Y12=\"\",\"\",VLOOKUP(Y12,pole_control[],2,FALSE))","v":""},null,{"$f":"IF(AA12=\"\",\"\",VLOOKUP(AA12,power_company[],2,FALSE))","v":""},null,null,null,null,{"$f":"IF(AF12=\"\",\"\",VLOOKUP(AF12,Install_reason[],2,FALSE))","v":""},null,{"$f":"IF(AH12=\"\",\"\",VLOOKUP(AH12,status[],2,FALSE))","v":""},null,null,{"$f":"IF(AK12=\"\",\"\",VLOOKUP(AK12,asset_owner[],2,FALSE))","v":""},null,null,null,null,{"$f":"IF(AP12=\"\",\"\",VLOOKUP(AP12,gps_method[],2,FALSE))","v":""},null,{"$f":"IF(AR12=\"\",\"\",VLOOKUP(AR12,risk_likelihood[],2,FALSE))","v":""},null,{"$f":"IF(AT12=\"\",\"\",VLOOKUP(AT12,risk_consequence[],2,FALSE))","v":""},null,{"$f":"IF(AV12=\"\",\"\",VLOOKUP(AV12,risk[],2,FALSE))","v":""},null,{"$f":"IF(AX12=\"\",\"\",VLOOKUP(AX12,rul_reset[],2,FALSE))","v":""},null,{"$f":"IF(AZ12=\"\",\"\",VLOOKUP(AZ12,use_default_rc[],2,FALSE))","v":""},null,{"$f":"IF(BB12=\"\",\"\",VLOOKUP(BB12,condition[],2,FALSE))","v":""},null,null,{"$f":"IF(BE12=\"\",\"\",VLOOKUP(BE12,Organisation[],2,FALSE))","v":""}]
["null",null,null,null,{"$f":"IF(D13=\"\",\"\",VLOOKUP(D13,side[],2,FALSE))","v":""},null,null,{"$f":"IF(G13=\"\",\"\",VLOOKUP(G13,Material[],2,FALSE))","v":""},null,{"$f":"IF(I13=\"\",\"\",VLOOKUP(I13,shape[],2,FALSE))","v":""},null,{"$f":"IF(K13=\"\",\"\",VLOOKUP(K13,make[],2,FALSE))","v":""},null,"",null,{"$f":"IF(O13=\"\",\"\",VLOOKUP(O13,mounting_type[],2,FALSE))","v":""},null,{"$f":"IF(Q13=\"\",\"\",VLOOKUP(Q13,attachment[],2,FALSE))","v":""},null,{"$f":"IF(S13=\"\",\"\",VLOOKUP(S13,purpose[],2,FALSE))","v":""},null,{"$f":"IF(U13=\"\",\"\",VLOOKUP(U13,coating[],2,FALSE))","v":""},null,{"$f":"IF(W13=\"\",\"\",VLOOKUP(W13,pole_in_use[],2,FALSE))","v":""},null,{"$f":"IF(Y13=\"\",\"\",VLOOKUP(Y13,pole_control[],2,FALSE))","v":""},null,{"$f":"IF(AA13=\"\",\"\",VLOOKUP(AA13,power_company[],2,FALSE))","v":""},null,null,null,null,{"$f":"IF(AF13=\"\",\"\",VLOOKUP(AF13,Install_reason[],2,FALSE))","v":""},null,{"$f":"IF(AH13=\"\",\"\",VLOOKUP(AH13,status[],2,FALSE))","v":""},null,null,{"$f":"IF(AK13=\"\",\"\",VLOOKUP(AK13,asset_owner[],2,FALSE))","v":""},null,null,null,null,{"$f":"IF(AP13=\"\",\"\",VLOOKUP(AP13,gps_method[],2,FALSE))","v":""},null,{"$f":"IF(AR13=\"\",\"\",VLOOKUP(AR13,risk_likelihood[],2,FALSE))","v":""},null,{"$f":"IF(AT13=\"\",\"\",VLOOKUP(AT13,risk_consequence[],2,FALSE))","v":""},null,{"$f":"IF(AV13=\"\",\"\",VLOOKUP(AV13,risk[],2,FALSE))","v":""},null,{"$f":"IF(AX13=\"\",\"\",VLOOKUP(AX13,rul_reset[],2,FALSE))","v":""},null,{"$f":"IF(AZ13=\"\",\"\",VLOOKUP(AZ13,use_default_rc[],2,FALSE))","v":""},null,{"$f":"IF(BB13=\"\",\"\",VLOOKUP(BB13,condition[],2,FALSE))","v":""},null,null,{"$f":"IF(BE13=\"\",\"\",VLOOKUP(BE13,Organisation[],2,FALSE))","v":""}]
["null",null,null,null,{"$f":"IF(D14=\"\",\"\",VLOOKUP(D14,side[],2,FALSE))","v":""},null,null,{"$f":"IF(G14=\"\",\"\",VLOOKUP(G14,Material[],2,FALSE))","v":""},null,{"$f":"IF(I14=\"\",\"\",VLOOKUP(I14,shape[],2,FALSE))","v":""},null,{"$f":"IF(K14=\"\",\"\",VLOOKUP(K14,make[],2,FALSE))","v":""},null,"",null,{"$f":"IF(O14=\"\",\"\",VLOOKUP(O14,mounting_type[],2,FALSE))","v":""},null,{"$f":"IF(Q14=\"\",\"\",VLOOKUP(Q14,attachment[],2,FALSE))","v":""},null,{"$f":"IF(S14=\"\",\"\",VLOOKUP(S14,purpose[],2,FALSE))","v":""},null,{"$f":"IF(U14=\"\",\"\",VLOOKUP(U14,coating[],2,FALSE))","v":""},null,{"$f":"IF(W14=\"\",\"\",VLOOKUP(W14,pole_in_use[],2,FALSE))","v":""},null,{"$f":"IF(Y14=\"\",\"\",VLOOKUP(Y14,pole_control[],2,FALSE))","v":""},null,{"$f":"IF(AA14=\"\",\"\",VLOOKUP(AA14,power_company[],2,FALSE))","v":""},null,null,null,null,{"$f":"IF(AF14=\"\",\"\",VLOOKUP(AF14,Install_reason[],2,FALSE))","v":""},null,{"$f":"IF(AH14=\"\",\"\",VLOOKUP(AH14,status[],2,FALSE))","v":""},null,null,{"$f":"IF(AK14=\"\",\"\",VLOOKUP(AK14,asset_owner[],2,FALSE))","v":""},null,null,null,null,{"$f":"IF(AP14=\"\",\"\",VLOOKUP(AP14,gps_method[],2,FALSE))","v":""},null,{"$f":"IF(AR14=\"\",\"\",VLOOKUP(AR14,risk_likelihood[],2,FALSE))","v":""},null,{"$f":"IF(AT14=\"\",\"\",VLOOKUP(AT14,risk_consequence[],2,FALSE))","v":""},null,{"$f":"IF(AV14=\"\",\"\",VLOOKUP(AV14,risk[],2,FALSE))","v":""},null,{"$f":"IF(AX14=\"\",\"\",VLOOKUP(AX14,rul_reset[],2,FALSE))","v":""},null,{"$f":"IF(AZ14=\"\",\"\",VLOOKUP(AZ14,use_default_rc[],2,FALSE))","v":""},null,{"$f":"IF(BB14=\"\",\"\",VLOOKUP(BB14,condition[],2,FALSE))","v":""},null,null,{"$f":"IF(BE14=\"\",\"\",VLOOKUP(BE14,Organisation[],2,FALSE))","v":""}]
["null",null,null,null,{"$f":"IF(D15=\"\",\"\",VLOOKUP(D15,side[],2,FALSE))","v":""},null,null,{"$f":"IF(G15=\"\",\"\",VLOOKUP(G15,Material[],2,FALSE))","v":""},null,{"$f":"IF(I15=\"\",\"\",VLOOKUP(I15,shape[],2,FALSE))","v":""},null,{"$f":"IF(K15=\"\",\"\",VLOOKUP(K15,make[],2,FALSE))","v":""},null,"",null,{"$f":"IF(O15=\"\",\"\",VLOOKUP(O15,mounting_type[],2,FALSE))","v":""},null,{"$f":"IF(Q15=\"\",\"\",VLOOKUP(Q15,attachment[],2,FALSE))","v":""},null,{"$f":"IF(S15=\"\",\"\",VLOOKUP(S15,purpose[],2,FALSE))","v":""},null,{"$f":"IF(U15=\"\",\"\",VLOOKUP(U15,coating[],2,FALSE))","v":""},null,{"$f":"IF(W15=\"\",\"\",VLOOKUP(W15,pole_in_use[],2,FALSE))","v":""},null,{"$f":"IF(Y15=\"\",\"\",VLOOKUP(Y15,pole_control[],2,FALSE))","v":""},null,{"$f":"IF(AA15=\"\",\"\",VLOOKUP(AA15,power_company[],2,FALSE))","v":""},null,null,null,null,{"$f":"IF(AF15=\"\",\"\",VLOOKUP(AF15,Install_reason[],2,FALSE))","v":""},null,{"$f":"IF(AH15=\"\",\"\",VLOOKUP(AH15,status[],2,FALSE))","v":""},null,null,{"$f":"IF(AK15=\"\",\"\",VLOOKUP(AK15,asset_owner[],2,FALSE))","v":""},null,null,null,null,{"$f":"IF(AP15=\"\",\"\",VLOOKUP(AP15,gps_method[],2,FALSE))","v":""},null,{"$f":"IF(AR15=\"\",\"\",VLOOKUP(AR15,risk_likelihood[],2,FALSE))","v":""},null,{"$f":"IF(AT15=\"\",\"\",VLOOKUP(AT15,risk_consequence[],2,FALSE))","v":""},null,{"$f":"IF(AV15=\"\",\"\",VLOOKUP(AV15,risk[],2,FALSE))","v":""},null,{"$f":"IF(AX15=\"\",\"\",VLOOKUP(AX15,rul_reset[],2,FALSE))","v":""},null,{"$f":"IF(AZ15=\"\",\"\",VLOOKUP(AZ15,use_default_rc[],2,FALSE))","v":""},null,{"$f":"IF(BB15=\"\",\"\",VLOOKUP(BB15,condition[],2,FALSE))","v":""},null,null,{"$f":"IF(BE15=\"\",\"\",VLOOKUP(BE15,Organisation[],2,FALSE))","v":""}]
["null",null,null,null,{"$f":"IF(D16=\"\",\"\",VLOOKUP(D16,side[],2,FALSE))","v":""},null,null,{"$f":"IF(G16=\"\",\"\",VLOOKUP(G16,Material[],2,FALSE))","v":""},null,{"$f":"IF(I16=\"\",\"\",VLOOKUP(I16,shape[],2,FALSE))","v":""},null,{"$f":"IF(K16=\"\",\"\",VLOOKUP(K16,make[],2,FALSE))","v":""},null,"",null,{"$f":"IF(O16=\"\",\"\",VLOOKUP(O16,mounting_type[],2,FALSE))","v":""},null,{"$f":"IF(Q16=\"\",\"\",VLOOKUP(Q16,attachment[],2,FALSE))","v":""},null,{"$f":"IF(S16=\"\",\"\",VLOOKUP(S16,purpose[],2,FALSE))","v":""},null,{"$f":"IF(U16=\"\",\"\",VLOOKUP(U16,coating[],2,FALSE))","v":""},null,{"$f":"IF(W16=\"\",\"\",VLOOKUP(W16,pole_in_use[],2,FALSE))","v":""},null,{"$f":"IF(Y16=\"\",\"\",VLOOKUP(Y16,pole_control[],2,FALSE))","v":""},null,{"$f":"IF(AA16=\"\",\"\",VLOOKUP(AA16,power_company[],2,FALSE))","v":""},null,null,null,null,{"$f":"IF(AF16=\"\",\"\",VLOOKUP(AF16,Install_reason[],2,FALSE))","v":""},null,{"$f":"IF(AH16=\"\",\"\",VLOOKUP(AH16,status[],2,FALSE))","v":""},null,null,{"$f":"IF(AK16=\"\",\"\",VLOOKUP(AK16,asset_owner[],2,FALSE))","v":""},null,null,null,null,{"$f":"IF(AP16=\"\",\"\",VLOOKUP(AP16,gps_method[],2,FALSE))","v":""},null,{"$f":"IF(AR16=\"\",\"\",VLOOKUP(AR16,risk_likelihood[],2,FALSE))","v":""},null,{"$f":"IF(AT16=\"\",\"\",VLOOKUP(AT16,risk_consequence[],2,FALSE))","v":""},null,{"$f":"IF(AV16=\"\",\"\",VLOOKUP(AV16,risk[],2,FALSE))","v":""},null,{"$f":"IF(AX16=\"\",\"\",VLOOKUP(AX16,rul_reset[],2,FALSE))","v":""},null,{"$f":"IF(AZ16=\"\",\"\",VLOOKUP(AZ16,use_default_rc[],2,FALSE))","v":""},null,{"$f":"IF(BB16=\"\",\"\",VLOOKUP(BB16,condition[],2,FALSE))","v":""},null,null,{"$f":"IF(BE16=\"\",\"\",VLOOKUP(BE16,Organisation[],2,FALSE))","v":""}]
["null",null,null,null,{"$f":"IF(D17=\"\",\"\",VLOOKUP(D17,side[],2,FALSE))","v":""},null,null,{"$f":"IF(G17=\"\",\"\",VLOOKUP(G17,Material[],2,FALSE))","v":""},null,{"$f":"IF(I17=\"\",\"\",VLOOKUP(I17,shape[],2,FALSE))","v":""},null,{"$f":"IF(K17=\"\",\"\",VLOOKUP(K17,make[],2,FALSE))","v":""},null,"",null,{"$f":"IF(O17=\"\",\"\",VLOOKUP(O17,mounting_type[],2,FALSE))","v":""},null,{"$f":"IF(Q17=\"\",\"\",VLOOKUP(Q17,attachment[],2,FALSE))","v":""},null,{"$f":"IF(S17=\"\",\"\",VLOOKUP(S17,purpose[],2,FALSE))","v":""},null,{"$f":"IF(U17=\"\",\"\",VLOOKUP(U17,coating[],2,FALSE))","v":""},null,{"$f":"IF(W17=\"\",\"\",VLOOKUP(W17,pole_in_use[],2,FALSE))","v":""},null,{"$f":"IF(Y17=\"\",\"\",VLOOKUP(Y17,pole_control[],2,FALSE))","v":""},null,{"$f":"IF(AA17=\"\",\"\",VLOOKUP(AA17,power_company[],2,FALSE))","v":""},null,null,null,null,{"$f":"IF(AF17=\"\",\"\",VLOOKUP(AF17,Install_reason[],2,FALSE))","v":""},null,{"$f":"IF(AH17=\"\",\"\",VLOOKUP(AH17,status[],2,FALSE))","v":""},null,null,{"$f":"IF(AK17=\"\",\"\",VLOOKUP(AK17,asset_owner[],2,FALSE))","v":""},null,null,null,null,{"$f":"IF(AP17=\"\",\"\",VLOOKUP(AP17,gps_method[],2,FALSE))","v":""},null,{"$f":"IF(AR17=\"\",\"\",VLOOKUP(AR17,risk_likelihood[],2,FALSE))","v":""},null,{"$f":"IF(AT17=\"\",\"\",VLOOKUP(AT17,risk_consequence[],2,FALSE))","v":""},null,{"$f":"IF(AV17=\"\",\"\",VLOOKUP(AV17,risk[],2,FALSE))","v":""},null,{"$f":"IF(AX17=\"\",\"\",VLOOKUP(AX17,rul_reset[],2,FALSE))","v":""},null,{"$f":"IF(AZ17=\"\",\"\",VLOOKUP(AZ17,use_default_rc[],2,FALSE))","v":""},null,{"$f":"IF(BB17=\"\",\"\",VLOOKUP(BB17,condition[],2,FALSE))","v":""},null,null,{"$f":"IF(BE17=\"\",\"\",VLOOKUP(BE17,Organisation[],2,FALSE))","v":""}]
["null",null,null,null,{"$f":"IF(D18=\"\",\"\",VLOOKUP(D18,side[],2,FALSE))","v":""},null,null,{"$f":"IF(G18=\"\",\"\",VLOOKUP(G18,Material[],2,FALSE))","v":""},null,{"$f":"IF(I18=\"\",\"\",VLOOKUP(I18,shape[],2,FALSE))","v":""},null,{"$f":"IF(K18=\"\",\"\",VLOOKUP(K18,make[],2,FALSE))","v":""},null,"",null,{"$f":"IF(O18=\"\",\"\",VLOOKUP(O18,mounting_type[],2,FALSE))","v":""},null,{"$f":"IF(Q18=\"\",\"\",VLOOKUP(Q18,attachment[],2,FALSE))","v":""},null,{"$f":"IF(S18=\"\",\"\",VLOOKUP(S18,purpose[],2,FALSE))","v":""},null,{"$f":"IF(U18=\"\",\"\",VLOOKUP(U18,coating[],2,FALSE))","v":""},null,{"$f":"IF(W18=\"\",\"\",VLOOKUP(W18,pole_in_use[],2,FALSE))","v":""},null,{"$f":"IF(Y18=\"\",\"\",VLOOKUP(Y18,pole_control[],2,FALSE))","v":""},null,{"$f":"IF(AA18=\"\",\"\",VLOOKUP(AA18,power_company[],2,FALSE))","v":""},null,null,null,null,{"$f":"IF(AF18=\"\",\"\",VLOOKUP(AF18,Install_reason[],2,FALSE))","v":""},null,{"$f":"IF(AH18=\"\",\"\",VLOOKUP(AH18,status[],2,FALSE))","v":""},null,null,{"$f":"IF(AK18=\"\",\"\",VLOOKUP(AK18,asset_owner[],2,FALSE))","v":""},null,null,null,null,{"$f":"IF(AP18=\"\",\"\",VLOOKUP(AP18,gps_method[],2,FALSE))","v":""},null,{"$f":"IF(AR18=\"\",\"\",VLOOKUP(AR18,risk_likelihood[],2,FALSE))","v":""},null,{"$f":"IF(AT18=\"\",\"\",VLOOKUP(AT18,risk_consequence[],2,FALSE))","v":""},null,{"$f":"IF(AV18=\"\",\"\",VLOOKUP(AV18,risk[],2,FALSE))","v":""},null,{"$f":"IF(AX18=\"\",\"\",VLOOKUP(AX18,rul_reset[],2,FALSE))","v":""},null,{"$f":"IF(AZ18=\"\",\"\",VLOOKUP(AZ18,use_default_rc[],2,FALSE))","v":""},null,{"$f":"IF(BB18=\"\",\"\",VLOOKUP(BB18,condition[],2,FALSE))","v":""},null,null,{"$f":"IF(BE18=\"\",\"\",VLOOKUP(BE18,Organisation[],2,FALSE))","v":""}]
["null",null,null,null,{"$f":"IF(D19=\"\",\"\",VLOOKUP(D19,side[],2,FALSE))","v":""},null,null,{"$f":"IF(G19=\"\",\"\",VLOOKUP(G19,Material[],2,FALSE))","v":""},null,{"$f":"IF(I19=\"\",\"\",VLOOKUP(I19,shape[],2,FALSE))","v":""},null,{"$f":"IF(K19=\"\",\"\",VLOOKUP(K19,make[],2,FALSE))","v":""},null,"",null,{"$f":"IF(O19=\"\",\"\",VLOOKUP(O19,mounting_type[],2,FALSE))","v":""},null,{"$f":"IF(Q19=\"\",\"\",VLOOKUP(Q19,attachment[],2,FALSE))","v":""},null,{"$f":"IF(S19=\"\",\"\",VLOOKUP(S19,purpose[],2,FALSE))","v":""},null,{"$f":"IF(U19=\"\",\"\",VLOOKUP(U19,coating[],2,FALSE))","v":""},null,{"$f":"IF(W19=\"\",\"\",VLOOKUP(W19,pole_in_use[],2,FALSE))","v":""},null,{"$f":"IF(Y19=\"\",\"\",VLOOKUP(Y19,pole_control[],2,FALSE))","v":""},null,{"$f":"IF(AA19=\"\",\"\",VLOOKUP(AA19,power_company[],2,FALSE))","v":""},null,null,null,null,{"$f":"IF(AF19=\"\",\"\",VLOOKUP(AF19,Install_reason[],2,FALSE))","v":""},null,{"$f":"IF(AH19=\"\",\"\",VLOOKUP(AH19,status[],2,FALSE))","v":""},null,null,{"$f":"IF(AK19=\"\",\"\",VLOOKUP(AK19,asset_owner[],2,FALSE))","v":""},null,null,null,null,{"$f":"IF(AP19=\"\",\"\",VLOOKUP(AP19,gps_method[],2,FALSE))","v":""},null,{"$f":"IF(AR19=\"\",\"\",VLOOKUP(AR19,risk_likelihood[],2,FALSE))","v":""},null,{"$f":"IF(AT19=\"\",\"\",VLOOKUP(AT19,risk_consequence[],2,FALSE))","v":""},null,{"$f":"IF(AV19=\"\",\"\",VLOOKUP(AV19,risk[],2,FALSE))","v":""},null,{"$f":"IF(AX19=\"\",\"\",VLOOKUP(AX19,rul_reset[],2,FALSE))","v":""},null,{"$f":"IF(AZ19=\"\",\"\",VLOOKUP(AZ19,use_default_rc[],2,FALSE))","v":""},null,{"$f":"IF(BB19=\"\",\"\",VLOOKUP(BB19,condition[],2,FALSE))","v":""},null,null,{"$f":"IF(BE19=\"\",\"\",VLOOKUP(BE19,Organisation[],2,FALSE))","v":""}]
["null",null,null,null,{"$f":"IF(D20=\"\",\"\",VLOOKUP(D20,side[],2,FALSE))","v":""},null,null,{"$f":"IF(G20=\"\",\"\",VLOOKUP(G20,Material[],2,FALSE))","v":""},null,{"$f":"IF(I20=\"\",\"\",VLOOKUP(I20,shape[],2,FALSE))","v":""},null,{"$f":"IF(K20=\"\",\"\",VLOOKUP(K20,make[],2,FALSE))","v":""},null,"",null,{"$f":"IF(O20=\"\",\"\",VLOOKUP(O20,mounting_type[],2,FALSE))","v":""},null,{"$f":"IF(Q20=\"\",\"\",VLOOKUP(Q20,attachment[],2,FALSE))","v":""},null,{"$f":"IF(S20=\"\",\"\",VLOOKUP(S20,purpose[],2,FALSE))","v":""},null,{"$f":"IF(U20=\"\",\"\",VLOOKUP(U20,coating[],2,FALSE))","v":""},null,{"$f":"IF(W20=\"\",\"\",VLOOKUP(W20,pole_in_use[],2,FALSE))","v":""},null,{"$f":"IF(Y20=\"\",\"\",VLOOKUP(Y20,pole_control[],2,FALSE))","v":""},null,{"$f":"IF(AA20=\"\",\"\",VLOOKUP(AA20,power_company[],2,FALSE))","v":""},null,null,null,null,{"$f":"IF(AF20=\"\",\"\",VLOOKUP(AF20,Install_reason[],2,FALSE))","v":""},null,{"$f":"IF(AH20=\"\",\"\",VLOOKUP(AH20,status[],2,FALSE))","v":""},null,null,{"$f":"IF(AK20=\"\",\"\",VLOOKUP(AK20,asset_owner[],2,FALSE))","v":""},null,null,null,null,{"$f":"IF(AP20=\"\",\"\",VLOOKUP(AP20,gps_method[],2,FALSE))","v":""},null,{"$f":"IF(AR20=\"\",\"\",VLOOKUP(AR20,risk_likelihood[],2,FALSE))","v":""},null,{"$f":"IF(AT20=\"\",\"\",VLOOKUP(AT20,risk_consequence[],2,FALSE))","v":""},null,{"$f":"IF(AV20=\"\",\"\",VLOOKUP(AV20,risk[],2,FALSE))","v":""},null,{"$f":"IF(AX20=\"\",\"\",VLOOKUP(AX20,rul_reset[],2,FALSE))","v":""},null,{"$f":"IF(AZ20=\"\",\"\",VLOOKUP(AZ20,use_default_rc[],2,FALSE))","v":""},null,{"$f":"IF(BB20=\"\",\"\",VLOOKUP(BB20,condition[],2,FALSE))","v":""},null,null,{"$f":"IF(BE20=\"\",\"\",VLOOKUP(BE20,Organisation[],2,FALSE))","v":""}]
["null",null,null,null,{"$f":"IF(D21=\"\",\"\",VLOOKUP(D21,side[],2,FALSE))","v":""},null,null,{"$f":"IF(G21=\"\",\"\",VLOOKUP(G21,Material[],2,FALSE))","v":""},null,{"$f":"IF(I21=\"\",\"\",VLOOKUP(I21,shape[],2,FALSE))","v":""},null,{"$f":"IF(K21=\"\",\"\",VLOOKUP(K21,make[],2,FALSE))","v":""},null,"",null,{"$f":"IF(O21=\"\",\"\",VLOOKUP(O21,mounting_type[],2,FALSE))","v":""},null,{"$f":"IF(Q21=\"\",\"\",VLOOKUP(Q21,attachment[],2,FALSE))","v":""},null,{"$f":"IF(S21=\"\",\"\",VLOOKUP(S21,purpose[],2,FALSE))","v":""},null,{"$f":"IF(U21=\"\",\"\",VLOOKUP(U21,coating[],2,FALSE))","v":""},null,{"$f":"IF(W21=\"\",\"\",VLOOKUP(W21,pole_in_use[],2,FALSE))","v":""},null,{"$f":"IF(Y21=\"\",\"\",VLOOKUP(Y21,pole_control[],2,FALSE))","v":""},null,{"$f":"IF(AA21=\"\",\"\",VLOOKUP(AA21,power_company[],2,FALSE))","v":""},null,null,null,null,{"$f":"IF(AF21=\"\",\"\",VLOOKUP(AF21,Install_reason[],2,FALSE))","v":""},null,{"$f":"IF(AH21=\"\",\"\",VLOOKUP(AH21,status[],2,FALSE))","v":""},null,null,{"$f":"IF(AK21=\"\",\"\",VLOOKUP(AK21,asset_owner[],2,FALSE))","v":""},null,null,null,null,{"$f":"IF(AP21=\"\",\"\",VLOOKUP(AP21,gps_method[],2,FALSE))","v":""},null,{"$f":"IF(AR21=\"\",\"\",VLOOKUP(AR21,risk_likelihood[],2,FALSE))","v":""},null,{"$f":"IF(AT21=\"\",\"\",VLOOKUP(AT21,risk_consequence[],2,FALSE))","v":""},null,{"$f":"IF(AV21=\"\",\"\",VLOOKUP(AV21,risk[],2,FALSE))","v":""},null,{"$f":"IF(AX21=\"\",\"\",VLOOKUP(AX21,rul_reset[],2,FALSE))","v":""},null,{"$f":"IF(AZ21=\"\",\"\",VLOOKUP(AZ21,use_default_rc[],2,FALSE))","v":""},null,{"$f":"IF(BB21=\"\",\"\",VLOOKUP(BB21,condition[],2,FALSE))","v":""},null,null,{"$f":"IF(BE21=\"\",\"\",VLOOKUP(BE21,Organisation[],2,FALSE))","v":""}]
["null",null,null,null,{"$f":"IF(D22=\"\",\"\",VLOOKUP(D22,side[],2,FALSE))","v":""},null,null,{"$f":"IF(G22=\"\",\"\",VLOOKUP(G22,Material[],2,FALSE))","v":""},null,{"$f":"IF(I22=\"\",\"\",VLOOKUP(I22,shape[],2,FALSE))","v":""},null,{"$f":"IF(K22=\"\",\"\",VLOOKUP(K22,make[],2,FALSE))","v":""},null,"",null,{"$f":"IF(O22=\"\",\"\",VLOOKUP(O22,mounting_type[],2,FALSE))","v":""},null,{"$f":"IF(Q22=\"\",\"\",VLOOKUP(Q22,attachment[],2,FALSE))","v":""},null,{"$f":"IF(S22=\"\",\"\",VLOOKUP(S22,purpose[],2,FALSE))","v":""},null,{"$f":"IF(U22=\"\",\"\",VLOOKUP(U22,coating[],2,FALSE))","v":""},null,{"$f":"IF(W22=\"\",\"\",VLOOKUP(W22,pole_in_use[],2,FALSE))","v":""},null,{"$f":"IF(Y22=\"\",\"\",VLOOKUP(Y22,pole_control[],2,FALSE))","v":""},null,{"$f":"IF(AA22=\"\",\"\",VLOOKUP(AA22,power_company[],2,FALSE))","v":""},null,null,null,null,{"$f":"IF(AF22=\"\",\"\",VLOOKUP(AF22,Install_reason[],2,FALSE))","v":""},null,{"$f":"IF(AH22=\"\",\"\",VLOOKUP(AH22,status[],2,FALSE))","v":""},null,null,{"$f":"IF(AK22=\"\",\"\",VLOOKUP(AK22,asset_owner[],2,FALSE))","v":""},null,null,null,null,{"$f":"IF(AP22=\"\",\"\",VLOOKUP(AP22,gps_method[],2,FALSE))","v":""},null,{"$f":"IF(AR22=\"\",\"\",VLOOKUP(AR22,risk_likelihood[],2,FALSE))","v":""},null,{"$f":"IF(AT22=\"\",\"\",VLOOKUP(AT22,risk_consequence[],2,FALSE))","v":""},null,{"$f":"IF(AV22=\"\",\"\",VLOOKUP(AV22,risk[],2,FALSE))","v":""},null,{"$f":"IF(AX22=\"\",\"\",VLOOKUP(AX22,rul_reset[],2,FALSE))","v":""},null,{"$f":"IF(AZ22=\"\",\"\",VLOOKUP(AZ22,use_default_rc[],2,FALSE))","v":""},null,{"$f":"IF(BB22=\"\",\"\",VLOOKUP(BB22,condition[],2,FALSE))","v":""},null,null,{"$f":"IF(BE22=\"\",\"\",VLOOKUP(BE22,Organisation[],2,FALSE))","v":""}]
["null",null,null,null,{"$f":"IF(D23=\"\",\"\",VLOOKUP(D23,side[],2,FALSE))","v":""},null,null,{"$f":"IF(G23=\"\",\"\",VLOOKUP(G23,Material[],2,FALSE))","v":""},null,{"$f":"IF(I23=\"\",\"\",VLOOKUP(I23,shape[],2,FALSE))","v":""},null,{"$f":"IF(K23=\"\",\"\",VLOOKUP(K23,make[],2,FALSE))","v":""},null,"",null,{"$f":"IF(O23=\"\",\"\",VLOOKUP(O23,mounting_type[],2,FALSE))","v":""},null,{"$f":"IF(Q23=\"\",\"\",VLOOKUP(Q23,attachment[],2,FALSE))","v":""},null,{"$f":"IF(S23=\"\",\"\",VLOOKUP(S23,purpose[],2,FALSE))","v":""},null,{"$f":"IF(U23=\"\",\"\",VLOOKUP(U23,coating[],2,FALSE))","v":""},null,{"$f":"IF(W23=\"\",\"\",VLOOKUP(W23,pole_in_use[],2,FALSE))","v":""},null,{"$f":"IF(Y23=\"\",\"\",VLOOKUP(Y23,pole_control[],2,FALSE))","v":""},null,{"$f":"IF(AA23=\"\",\"\",VLOOKUP(AA23,power_company[],2,FALSE))","v":""},null,null,null,null,{"$f":"IF(AF23=\"\",\"\",VLOOKUP(AF23,Install_reason[],2,FALSE))","v":""},null,{"$f":"IF(AH23=\"\",\"\",VLOOKUP(AH23,status[],2,FALSE))","v":""},null,null,{"$f":"IF(AK23=\"\",\"\",VLOOKUP(AK23,asset_owner[],2,FALSE))","v":""},null,null,null,null,{"$f":"IF(AP23=\"\",\"\",VLOOKUP(AP23,gps_method[],2,FALSE))","v":""},null,{"$f":"IF(AR23=\"\",\"\",VLOOKUP(AR23,risk_likelihood[],2,FALSE))","v":""},null,{"$f":"IF(AT23=\"\",\"\",VLOOKUP(AT23,risk_consequence[],2,FALSE))","v":""},null,{"$f":"IF(AV23=\"\",\"\",VLOOKUP(AV23,risk[],2,FALSE))","v":""},null,{"$f":"IF(AX23=\"\",\"\",VLOOKUP(AX23,rul_reset[],2,FALSE))","v":""},null,{"$f":"IF(AZ23=\"\",\"\",VLOOKUP(AZ23,use_default_rc[],2,FALSE))","v":""},null,{"$f":"IF(BB23=\"\",\"\",VLOOKUP(BB23,condition[],2,FALSE))","v":""},null,null,{"$f":"IF(BE23=\"\",\"\",VLOOKUP(BE23,Organisation[],2,FALSE))","v":""}]
["null",null,null,null,{"$f":"IF(D24=\"\",\"\",VLOOKUP(D24,side[],2,FALSE))","v":""},null,null,{"$f":"IF(G24=\"\",\"\",VLOOKUP(G24,Material[],2,FALSE))","v":""},null,{"$f":"IF(I24=\"\",\"\",VLOOKUP(I24,shape[],2,FALSE))","v":""},null,{"$f":"IF(K24=\"\",\"\",VLOOKUP(K24,make[],2,FALSE))","v":""},null,"",null,{"$f":"IF(O24=\"\",\"\",VLOOKUP(O24,mounting_type[],2,FALSE))","v":""},null,{"$f":"IF(Q24=\"\",\"\",VLOOKUP(Q24,attachment[],2,FALSE))","v":""},null,{"$f":"IF(S24=\"\",\"\",VLOOKUP(S24,purpose[],2,FALSE))","v":""},null,{"$f":"IF(U24=\"\",\"\",VLOOKUP(U24,coating[],2,FALSE))","v":""},null,{"$f":"IF(W24=\"\",\"\",VLOOKUP(W24,pole_in_use[],2,FALSE))","v":""},null,{"$f":"IF(Y24=\"\",\"\",VLOOKUP(Y24,pole_control[],2,FALSE))","v":""},null,{"$f":"IF(AA24=\"\",\"\",VLOOKUP(AA24,power_company[],2,FALSE))","v":""},null,null,null,null,{"$f":"IF(AF24=\"\",\"\",VLOOKUP(AF24,Install_reason[],2,FALSE))","v":""},null,{"$f":"IF(AH24=\"\",\"\",VLOOKUP(AH24,status[],2,FALSE))","v":""},null,null,{"$f":"IF(AK24=\"\",\"\",VLOOKUP(AK24,asset_owner[],2,FALSE))","v":""},null,null,null,null,{"$f":"IF(AP24=\"\",\"\",VLOOKUP(AP24,gps_method[],2,FALSE))","v":""},null,{"$f":"IF(AR24=\"\",\"\",VLOOKUP(AR24,risk_likelihood[],2,FALSE))","v":""},null,{"$f":"IF(AT24=\"\",\"\",VLOOKUP(AT24,risk_consequence[],2,FALSE))","v":""},null,{"$f":"IF(AV24=\"\",\"\",VLOOKUP(AV24,risk[],2,FALSE))","v":""},null,{"$f":"IF(AX24=\"\",\"\",VLOOKUP(AX24,rul_reset[],2,FALSE))","v":""},null,{"$f":"IF(AZ24=\"\",\"\",VLOOKUP(AZ24,use_default_rc[],2,FALSE))","v":""},null,{"$f":"IF(BB24=\"\",\"\",VLOOKUP(BB24,condition[],2,FALSE))","v":""},null,null,{"$f":"IF(BE24=\"\",\"\",VLOOKUP(BE24,Organisation[],2,FALSE))","v":""}]
["null",null,null,null,{"$f":"IF(D25=\"\",\"\",VLOOKUP(D25,side[],2,FALSE))","v":""},null,null,{"$f":"IF(G25=\"\",\"\",VLOOKUP(G25,Material[],2,FALSE))","v":""},null,{"$f":"IF(I25=\"\",\"\",VLOOKUP(I25,shape[],2,FALSE))","v":""},null,{"$f":"IF(K25=\"\",\"\",VLOOKUP(K25,make[],2,FALSE))","v":""},null,"",null,{"$f":"IF(O25=\"\",\"\",VLOOKUP(O25,mounting_type[],2,FALSE))","v":""},null,{"$f":"IF(Q25=\"\",\"\",VLOOKUP(Q25,attachment[],2,FALSE))","v":""},null,{"$f":"IF(S25=\"\",\"\",VLOOKUP(S25,purpose[],2,FALSE))","v":""},null,{"$f":"IF(U25=\"\",\"\",VLOOKUP(U25,coating[],2,FALSE))","v":""},null,{"$f":"IF(W25=\"\",\"\",VLOOKUP(W25,pole_in_use[],2,FALSE))","v":""},null,{"$f":"IF(Y25=\"\",\"\",VLOOKUP(Y25,pole_control[],2,FALSE))","v":""},null,{"$f":"IF(AA25=\"\",\"\",VLOOKUP(AA25,power_company[],2,FALSE))","v":""},null,null,null,null,{"$f":"IF(AF25=\"\",\"\",VLOOKUP(AF25,Install_reason[],2,FALSE))","v":""},null,{"$f":"IF(AH25=\"\",\"\",VLOOKUP(AH25,status[],2,FALSE))","v":""},null,null,{"$f":"IF(AK25=\"\",\"\",VLOOKUP(AK25,asset_owner[],2,FALSE))","v":""},null,null,null,null,{"$f":"IF(AP25=\"\",\"\",VLOOKUP(AP25,gps_method[],2,FALSE))","v":""},null,{"$f":"IF(AR25=\"\",\"\",VLOOKUP(AR25,risk_likelihood[],2,FALSE))","v":""},null,{"$f":"IF(AT25=\"\",\"\",VLOOKUP(AT25,risk_consequence[],2,FALSE))","v":""},null,{"$f":"IF(AV25=\"\",\"\",VLOOKUP(AV25,risk[],2,FALSE))","v":""},null,{"$f":"IF(AX25=\"\",\"\",VLOOKUP(AX25,rul_reset[],2,FALSE))","v":""},null,{"$f":"IF(AZ25=\"\",\"\",VLOOKUP(AZ25,use_default_rc[],2,FALSE))","v":""},null,{"$f":"IF(BB25=\"\",\"\",VLOOKUP(BB25,condition[],2,FALSE))","v":""},null,null,{"$f":"IF(BE25=\"\",\"\",VLOOKUP(BE25,Organisation[],2,FALSE))","v":""}]
["null",null,null,null,{"$f":"IF(D26=\"\",\"\",VLOOKUP(D26,side[],2,FALSE))","v":""},null,null,{"$f":"IF(G26=\"\",\"\",VLOOKUP(G26,Material[],2,FALSE))","v":""},null,{"$f":"IF(I26=\"\",\"\",VLOOKUP(I26,shape[],2,FALSE))","v":""},null,{"$f":"IF(K26=\"\",\"\",VLOOKUP(K26,make[],2,FALSE))","v":""},null,"",null,{"$f":"IF(O26=\"\",\"\",VLOOKUP(O26,mounting_type[],2,FALSE))","v":""},null,{"$f":"IF(Q26=\"\",\"\",VLOOKUP(Q26,attachment[],2,FALSE))","v":""},null,{"$f":"IF(S26=\"\",\"\",VLOOKUP(S26,purpose[],2,FALSE))","v":""},null,{"$f":"IF(U26=\"\",\"\",VLOOKUP(U26,coating[],2,FALSE))","v":""},null,{"$f":"IF(W26=\"\",\"\",VLOOKUP(W26,pole_in_use[],2,FALSE))","v":""},null,{"$f":"IF(Y26=\"\",\"\",VLOOKUP(Y26,pole_control[],2,FALSE))","v":""},null,{"$f":"IF(AA26=\"\",\"\",VLOOKUP(AA26,power_company[],2,FALSE))","v":""},null,null,null,null,{"$f":"IF(AF26=\"\",\"\",VLOOKUP(AF26,Install_reason[],2,FALSE))","v":""},null,{"$f":"IF(AH26=\"\",\"\",VLOOKUP(AH26,status[],2,FALSE))","v":""},null,null,{"$f":"IF(AK26=\"\",\"\",VLOOKUP(AK26,asset_owner[],2,FALSE))","v":""},null,null,null,null,{"$f":"IF(AP26=\"\",\"\",VLOOKUP(AP26,gps_method[],2,FALSE))","v":""},null,{"$f":"IF(AR26=\"\",\"\",VLOOKUP(AR26,risk_likelihood[],2,FALSE))","v":""},null,{"$f":"IF(AT26=\"\",\"\",VLOOKUP(AT26,risk_consequence[],2,FALSE))","v":""},null,{"$f":"IF(AV26=\"\",\"\",VLOOKUP(AV26,risk[],2,FALSE))","v":""},null,{"$f":"IF(AX26=\"\",\"\",VLOOKUP(AX26,rul_reset[],2,FALSE))","v":""},null,{"$f":"IF(AZ26=\"\",\"\",VLOOKUP(AZ26,use_default_rc[],2,FALSE))","v":""},null,{"$f":"IF(BB26=\"\",\"\",VLOOKUP(BB26,condition[],2,FALSE))","v":""},null,null,{"$f":"IF(BE26=\"\",\"\",VLOOKUP(BE26,Organisation[],2,FALSE))","v":""}]
["null",null,null,null,{"$f":"IF(D27=\"\",\"\",VLOOKUP(D27,side[],2,FALSE))","v":""},null,null,{"$f":"IF(G27=\"\",\"\",VLOOKUP(G27,Material[],2,FALSE))","v":""},null,{"$f":"IF(I27=\"\",\"\",VLOOKUP(I27,shape[],2,FALSE))","v":""},null,{"$f":"IF(K27=\"\",\"\",VLOOKUP(K27,make[],2,FALSE))","v":""},null,"",null,{"$f":"IF(O27=\"\",\"\",VLOOKUP(O27,mounting_type[],2,FALSE))","v":""},null,{"$f":"IF(Q27=\"\",\"\",VLOOKUP(Q27,attachment[],2,FALSE))","v":""},null,{"$f":"IF(S27=\"\",\"\",VLOOKUP(S27,purpose[],2,FALSE))","v":""},null,{"$f":"IF(U27=\"\",\"\",VLOOKUP(U27,coating[],2,FALSE))","v":""},null,{"$f":"IF(W27=\"\",\"\",VLOOKUP(W27,pole_in_use[],2,FALSE))","v":""},null,{"$f":"IF(Y27=\"\",\"\",VLOOKUP(Y27,pole_control[],2,FALSE))","v":""},null,{"$f":"IF(AA27=\"\",\"\",VLOOKUP(AA27,power_company[],2,FALSE))","v":""},null,null,null,null,{"$f":"IF(AF27=\"\",\"\",VLOOKUP(AF27,Install_reason[],2,FALSE))","v":""},null,{"$f":"IF(AH27=\"\",\"\",VLOOKUP(AH27,status[],2,FALSE))","v":""},null,null,{"$f":"IF(AK27=\"\",\"\",VLOOKUP(AK27,asset_owner[],2,FALSE))","v":""},null,null,null,null,{"$f":"IF(AP27=\"\",\"\",VLOOKUP(AP27,gps_method[],2,FALSE))","v":""},null,{"$f":"IF(AR27=\"\",\"\",VLOOKUP(AR27,risk_likelihood[],2,FALSE))","v":""},null,{"$f":"IF(AT27=\"\",\"\",VLOOKUP(AT27,risk_consequence[],2,FALSE))","v":""},null,{"$f":"IF(AV27=\"\",\"\",VLOOKUP(AV27,risk[],2,FALSE))","v":""},null,{"$f":"IF(AX27=\"\",\"\",VLOOKUP(AX27,rul_reset[],2,FALSE))","v":""},null,{"$f":"IF(AZ27=\"\",\"\",VLOOKUP(AZ27,use_default_rc[],2,FALSE))","v":""},null,{"$f":"IF(BB27=\"\",\"\",VLOOKUP(BB27,condition[],2,FALSE))","v":""},null,null,{"$f":"IF(BE27=\"\",\"\",VLOOKUP(BE27,Organisation[],2,FALSE))","v":""}]
["null",null,null,null,{"$f":"IF(D28=\"\",\"\",VLOOKUP(D28,side[],2,FALSE))","v":""},null,null,{"$f":"IF(G28=\"\",\"\",VLOOKUP(G28,Material[],2,FALSE))","v":""},null,{"$f":"IF(I28=\"\",\"\",VLOOKUP(I28,shape[],2,FALSE))","v":""},null,{"$f":"IF(K28=\"\",\"\",VLOOKUP(K28,make[],2,FALSE))","v":""},null,"",null,{"$f":"IF(O28=\"\",\"\",VLOOKUP(O28,mounting_type[],2,FALSE))","v":""},null,{"$f":"IF(Q28=\"\",\"\",VLOOKUP(Q28,attachment[],2,FALSE))","v":""},null,{"$f":"IF(S28=\"\",\"\",VLOOKUP(S28,purpose[],2,FALSE))","v":""},null,{"$f":"IF(U28=\"\",\"\",VLOOKUP(U28,coating[],2,FALSE))","v":""},null,{"$f":"IF(W28=\"\",\"\",VLOOKUP(W28,pole_in_use[],2,FALSE))","v":""},null,{"$f":"IF(Y28=\"\",\"\",VLOOKUP(Y28,pole_control[],2,FALSE))","v":""},null,{"$f":"IF(AA28=\"\",\"\",VLOOKUP(AA28,power_company[],2,FALSE))","v":""},null,null,null,null,{"$f":"IF(AF28=\"\",\"\",VLOOKUP(AF28,Install_reason[],2,FALSE))","v":""},null,{"$f":"IF(AH28=\"\",\"\",VLOOKUP(AH28,status[],2,FALSE))","v":""},null,null,{"$f":"IF(AK28=\"\",\"\",VLOOKUP(AK28,asset_owner[],2,FALSE))","v":""},null,null,null,null,{"$f":"IF(AP28=\"\",\"\",VLOOKUP(AP28,gps_method[],2,FALSE))","v":""},null,{"$f":"IF(AR28=\"\",\"\",VLOOKUP(AR28,risk_likelihood[],2,FALSE))","v":""},null,{"$f":"IF(AT28=\"\",\"\",VLOOKUP(AT28,risk_consequence[],2,FALSE))","v":""},null,{"$f":"IF(AV28=\"\",\"\",VLOOKUP(AV28,risk[],2,FALSE))","v":""},null,{"$f":"IF(AX28=\"\",\"\",VLOOKUP(AX28,rul_reset[],2,FALSE))","v":""},null,{"$f":"IF(AZ28=\"\",\"\",VLOOKUP(AZ28,use_default_rc[],2,FALSE))","v":""},null,{"$f":"IF(BB28=\"\",\"\",VLOOKUP(BB28,condition[],2,FALSE))","v":""},null,null,{"$f":"IF(BE28=\"\",\"\",VLOOKUP(BE28,Organisation[],2,FALSE))","v":""}]
["null",null,null,null,{"$f":"IF(D29=\"\",\"\",VLOOKUP(D29,side[],2,FALSE))","v":""},null,null,{"$f":"IF(G29=\"\",\"\",VLOOKUP(G29,Material[],2,FALSE))","v":""},null,{"$f":"IF(I29=\"\",\"\",VLOOKUP(I29,shape[],2,FALSE))","v":""},null,{"$f":"IF(K29=\"\",\"\",VLOOKUP(K29,make[],2,FALSE))","v":""},null,"",null,{"$f":"IF(O29=\"\",\"\",VLOOKUP(O29,mounting_type[],2,FALSE))","v":""},null,{"$f":"IF(Q29=\"\",\"\",VLOOKUP(Q29,attachment[],2,FALSE))","v":""},null,{"$f":"IF(S29=\"\",\"\",VLOOKUP(S29,purpose[],2,FALSE))","v":""},null,{"$f":"IF(U29=\"\",\"\",VLOOKUP(U29,coating[],2,FALSE))","v":""},null,{"$f":"IF(W29=\"\",\"\",VLOOKUP(W29,pole_in_use[],2,FALSE))","v":""},null,{"$f":"IF(Y29=\"\",\"\",VLOOKUP(Y29,pole_control[],2,FALSE))","v":""},null,{"$f":"IF(AA29=\"\",\"\",VLOOKUP(AA29,power_company[],2,FALSE))","v":""},null,null,null,null,{"$f":"IF(AF29=\"\",\"\",VLOOKUP(AF29,Install_reason[],2,FALSE))","v":""},null,{"$f":"IF(AH29=\"\",\"\",VLOOKUP(AH29,status[],2,FALSE))","v":""},null,null,{"$f":"IF(AK29=\"\",\"\",VLOOKUP(AK29,asset_owner[],2,FALSE))","v":""},null,null,null,null,{"$f":"IF(AP29=\"\",\"\",VLOOKUP(AP29,gps_method[],2,FALSE))","v":""},null,{"$f":"IF(AR29=\"\",\"\",VLOOKUP(AR29,risk_likelihood[],2,FALSE))","v":""},null,{"$f":"IF(AT29=\"\",\"\",VLOOKUP(AT29,risk_consequence[],2,FALSE))","v":""},null,{"$f":"IF(AV29=\"\",\"\",VLOOKUP(AV29,risk[],2,FALSE))","v":""},null,{"$f":"IF(AX29=\"\",\"\",VLOOKUP(AX29,rul_reset[],2,FALSE))","v":""},null,{"$f":"IF(AZ29=\"\",\"\",VLOOKUP(AZ29,use_default_rc[],2,FALSE))","v":""},null,{"$f":"IF(BB29=\"\",\"\",VLOOKUP(BB29,condition[],2,FALSE))","v":""},null,null,{"$f":"IF(BE29=\"\",\"\",VLOOKUP(BE29,Organisation[],2,FALSE))","v":""}]
["null",null,null,null,{"$f":"IF(D30=\"\",\"\",VLOOKUP(D30,side[],2,FALSE))","v":""},null,null,{"$f":"IF(G30=\"\",\"\",VLOOKUP(G30,Material[],2,FALSE))","v":""},null,{"$f":"IF(I30=\"\",\"\",VLOOKUP(I30,shape[],2,FALSE))","v":""},null,{"$f":"IF(K30=\"\",\"\",VLOOKUP(K30,make[],2,FALSE))","v":""},null,"",null,{"$f":"IF(O30=\"\",\"\",VLOOKUP(O30,mounting_type[],2,FALSE))","v":""},null,{"$f":"IF(Q30=\"\",\"\",VLOOKUP(Q30,attachment[],2,FALSE))","v":""},null,{"$f":"IF(S30=\"\",\"\",VLOOKUP(S30,purpose[],2,FALSE))","v":""},null,{"$f":"IF(U30=\"\",\"\",VLOOKUP(U30,coating[],2,FALSE))","v":""},null,{"$f":"IF(W30=\"\",\"\",VLOOKUP(W30,pole_in_use[],2,FALSE))","v":""},null,{"$f":"IF(Y30=\"\",\"\",VLOOKUP(Y30,pole_control[],2,FALSE))","v":""},null,{"$f":"IF(AA30=\"\",\"\",VLOOKUP(AA30,power_company[],2,FALSE))","v":""},null,null,null,null,{"$f":"IF(AF30=\"\",\"\",VLOOKUP(AF30,Install_reason[],2,FALSE))","v":""},null,{"$f":"IF(AH30=\"\",\"\",VLOOKUP(AH30,status[],2,FALSE))","v":""},null,null,{"$f":"IF(AK30=\"\",\"\",VLOOKUP(AK30,asset_owner[],2,FALSE))","v":""},null,null,null,null,{"$f":"IF(AP30=\"\",\"\",VLOOKUP(AP30,gps_method[],2,FALSE))","v":""},null,{"$f":"IF(AR30=\"\",\"\",VLOOKUP(AR30,risk_likelihood[],2,FALSE))","v":""},null,{"$f":"IF(AT30=\"\",\"\",VLOOKUP(AT30,risk_consequence[],2,FALSE))","v":""},null,{"$f":"IF(AV30=\"\",\"\",VLOOKUP(AV30,risk[],2,FALSE))","v":""},null,{"$f":"IF(AX30=\"\",\"\",VLOOKUP(AX30,rul_reset[],2,FALSE))","v":""},null,{"$f":"IF(AZ30=\"\",\"\",VLOOKUP(AZ30,use_default_rc[],2,FALSE))","v":""},null,{"$f":"IF(BB30=\"\",\"\",VLOOKUP(BB30,condition[],2,FALSE))","v":""},null,null,{"$f":"IF(BE30=\"\",\"\",VLOOKUP(BE30,Organisation[],2,FALSE))","v":""}]
["null",null,null,null,{"$f":"IF(D31=\"\",\"\",VLOOKUP(D31,side[],2,FALSE))","v":""},null,null,{"$f":"IF(G31=\"\",\"\",VLOOKUP(G31,Material[],2,FALSE))","v":""},null,{"$f":"IF(I31=\"\",\"\",VLOOKUP(I31,shape[],2,FALSE))","v":""},null,{"$f":"IF(K31=\"\",\"\",VLOOKUP(K31,make[],2,FALSE))","v":""},null,"",null,{"$f":"IF(O31=\"\",\"\",VLOOKUP(O31,mounting_type[],2,FALSE))","v":""},null,{"$f":"IF(Q31=\"\",\"\",VLOOKUP(Q31,attachment[],2,FALSE))","v":""},null,{"$f":"IF(S31=\"\",\"\",VLOOKUP(S31,purpose[],2,FALSE))","v":""},null,{"$f":"IF(U31=\"\",\"\",VLOOKUP(U31,coating[],2,FALSE))","v":""},null,{"$f":"IF(W31=\"\",\"\",VLOOKUP(W31,pole_in_use[],2,FALSE))","v":""},null,{"$f":"IF(Y31=\"\",\"\",VLOOKUP(Y31,pole_control[],2,FALSE))","v":""},null,{"$f":"IF(AA31=\"\",\"\",VLOOKUP(AA31,power_company[],2,FALSE))","v":""},null,null,null,null,{"$f":"IF(AF31=\"\",\"\",VLOOKUP(AF31,Install_reason[],2,FALSE))","v":""},null,{"$f":"IF(AH31=\"\",\"\",VLOOKUP(AH31,status[],2,FALSE))","v":""},null,null,{"$f":"IF(AK31=\"\",\"\",VLOOKUP(AK31,asset_owner[],2,FALSE))","v":""},null,null,null,null,{"$f":"IF(AP31=\"\",\"\",VLOOKUP(AP31,gps_method[],2,FALSE))","v":""},null,{"$f":"IF(AR31=\"\",\"\",VLOOKUP(AR31,risk_likelihood[],2,FALSE))","v":""},null,{"$f":"IF(AT31=\"\",\"\",VLOOKUP(AT31,risk_consequence[],2,FALSE))","v":""},null,{"$f":"IF(AV31=\"\",\"\",VLOOKUP(AV31,risk[],2,FALSE))","v":""},null,{"$f":"IF(AX31=\"\",\"\",VLOOKUP(AX31,rul_reset[],2,FALSE))","v":""},null,{"$f":"IF(AZ31=\"\",\"\",VLOOKUP(AZ31,use_default_rc[],2,FALSE))","v":""},null,{"$f":"IF(BB31=\"\",\"\",VLOOKUP(BB31,condition[],2,FALSE))","v":""},null,null,{"$f":"IF(BE31=\"\",\"\",VLOOKUP(BE31,Organisation[],2,FALSE))","v":""}]
["null",null,null,null,{"$f":"IF(D32=\"\",\"\",VLOOKUP(D32,side[],2,FALSE))","v":""},null,null,{"$f":"IF(G32=\"\",\"\",VLOOKUP(G32,Material[],2,FALSE))","v":""},null,{"$f":"IF(I32=\"\",\"\",VLOOKUP(I32,shape[],2,FALSE))","v":""},null,{"$f":"IF(K32=\"\",\"\",VLOOKUP(K32,make[],2,FALSE))","v":""},null,"",null,{"$f":"IF(O32=\"\",\"\",VLOOKUP(O32,mounting_type[],2,FALSE))","v":""},null,{"$f":"IF(Q32=\"\",\"\",VLOOKUP(Q32,attachment[],2,FALSE))","v":""},null,{"$f":"IF(S32=\"\",\"\",VLOOKUP(S32,purpose[],2,FALSE))","v":""},null,{"$f":"IF(U32=\"\",\"\",VLOOKUP(U32,coating[],2,FALSE))","v":""},null,{"$f":"IF(W32=\"\",\"\",VLOOKUP(W32,pole_in_use[],2,FALSE))","v":""},null,{"$f":"IF(Y32=\"\",\"\",VLOOKUP(Y32,pole_control[],2,FALSE))","v":""},null,{"$f":"IF(AA32=\"\",\"\",VLOOKUP(AA32,power_company[],2,FALSE))","v":""},null,null,null,null,{"$f":"IF(AF32=\"\",\"\",VLOOKUP(AF32,Install_reason[],2,FALSE))","v":""},null,{"$f":"IF(AH32=\"\",\"\",VLOOKUP(AH32,status[],2,FALSE))","v":""},null,null,{"$f":"IF(AK32=\"\",\"\",VLOOKUP(AK32,asset_owner[],2,FALSE))","v":""},null,null,null,null,{"$f":"IF(AP32=\"\",\"\",VLOOKUP(AP32,gps_method[],2,FALSE))","v":""},null,{"$f":"IF(AR32=\"\",\"\",VLOOKUP(AR32,risk_likelihood[],2,FALSE))","v":""},null,{"$f":"IF(AT32=\"\",\"\",VLOOKUP(AT32,risk_consequence[],2,FALSE))","v":""},null,{"$f":"IF(AV32=\"\",\"\",VLOOKUP(AV32,risk[],2,FALSE))","v":""},null,{"$f":"IF(AX32=\"\",\"\",VLOOKUP(AX32,rul_reset[],2,FALSE))","v":""},null,{"$f":"IF(AZ32=\"\",\"\",VLOOKUP(AZ32,use_default_rc[],2,FALSE))","v":""},null,{"$f":"IF(BB32=\"\",\"\",VLOOKUP(BB32,condition[],2,FALSE))","v":""},null,null,{"$f":"IF(BE32=\"\",\"\",VLOOKUP(BE32,Organisation[],2,FALSE))","v":""}]
["null",null,null,null,{"$f":"IF(D33=\"\",\"\",VLOOKUP(D33,side[],2,FALSE))","v":""},null,null,{"$f":"IF(G33=\"\",\"\",VLOOKUP(G33,Material[],2,FALSE))","v":""},null,{"$f":"IF(I33=\"\",\"\",VLOOKUP(I33,shape[],2,FALSE))","v":""},null,{"$f":"IF(K33=\"\",\"\",VLOOKUP(K33,make[],2,FALSE))","v":""},null,"",null,{"$f":"IF(O33=\"\",\"\",VLOOKUP(O33,mounting_type[],2,FALSE))","v":""},null,{"$f":"IF(Q33=\"\",\"\",VLOOKUP(Q33,attachment[],2,FALSE))","v":""},null,{"$f":"IF(S33=\"\",\"\",VLOOKUP(S33,purpose[],2,FALSE))","v":""},null,{"$f":"IF(U33=\"\",\"\",VLOOKUP(U33,coating[],2,FALSE))","v":""},null,{"$f":"IF(W33=\"\",\"\",VLOOKUP(W33,pole_in_use[],2,FALSE))","v":""},null,{"$f":"IF(Y33=\"\",\"\",VLOOKUP(Y33,pole_control[],2,FALSE))","v":""},null,{"$f":"IF(AA33=\"\",\"\",VLOOKUP(AA33,power_company[],2,FALSE))","v":""},null,null,null,null,{"$f":"IF(AF33=\"\",\"\",VLOOKUP(AF33,Install_reason[],2,FALSE))","v":""},null,{"$f":"IF(AH33=\"\",\"\",VLOOKUP(AH33,status[],2,FALSE))","v":""},null,null,{"$f":"IF(AK33=\"\",\"\",VLOOKUP(AK33,asset_owner[],2,FALSE))","v":""},null,null,null,null,{"$f":"IF(AP33=\"\",\"\",VLOOKUP(AP33,gps_method[],2,FALSE))","v":""},null,{"$f":"IF(AR33=\"\",\"\",VLOOKUP(AR33,risk_likelihood[],2,FALSE))","v":""},null,{"$f":"IF(AT33=\"\",\"\",VLOOKUP(AT33,risk_consequence[],2,FALSE))","v":""},null,{"$f":"IF(AV33=\"\",\"\",VLOOKUP(AV33,risk[],2,FALSE))","v":""},null,{"$f":"IF(AX33=\"\",\"\",VLOOKUP(AX33,rul_reset[],2,FALSE))","v":""},null,{"$f":"IF(AZ33=\"\",\"\",VLOOKUP(AZ33,use_default_rc[],2,FALSE))","v":""},null,{"$f":"IF(BB33=\"\",\"\",VLOOKUP(BB33,condition[],2,FALSE))","v":""},null,null,{"$f":"IF(BE33=\"\",\"\",VLOOKUP(BE33,Organisation[],2,FALSE))","v":""}]
["null",null,null,null,{"$f":"IF(D34=\"\",\"\",VLOOKUP(D34,side[],2,FALSE))","v":""},null,null,{"$f":"IF(G34=\"\",\"\",VLOOKUP(G34,Material[],2,FALSE))","v":""},null,{"$f":"IF(I34=\"\",\"\",VLOOKUP(I34,shape[],2,FALSE))","v":""},null,{"$f":"IF(K34=\"\",\"\",VLOOKUP(K34,make[],2,FALSE))","v":""},null,"",null,{"$f":"IF(O34=\"\",\"\",VLOOKUP(O34,mounting_type[],2,FALSE))","v":""},null,{"$f":"IF(Q34=\"\",\"\",VLOOKUP(Q34,attachment[],2,FALSE))","v":""},null,{"$f":"IF(S34=\"\",\"\",VLOOKUP(S34,purpose[],2,FALSE))","v":""},null,{"$f":"IF(U34=\"\",\"\",VLOOKUP(U34,coating[],2,FALSE))","v":""},null,{"$f":"IF(W34=\"\",\"\",VLOOKUP(W34,pole_in_use[],2,FALSE))","v":""},null,{"$f":"IF(Y34=\"\",\"\",VLOOKUP(Y34,pole_control[],2,FALSE))","v":""},null,{"$f":"IF(AA34=\"\",\"\",VLOOKUP(AA34,power_company[],2,FALSE))","v":""},null,null,null,null,{"$f":"IF(AF34=\"\",\"\",VLOOKUP(AF34,Install_reason[],2,FALSE))","v":""},null,{"$f":"IF(AH34=\"\",\"\",VLOOKUP(AH34,status[],2,FALSE))","v":""},null,null,{"$f":"IF(AK34=\"\",\"\",VLOOKUP(AK34,asset_owner[],2,FALSE))","v":""},null,null,null,null,{"$f":"IF(AP34=\"\",\"\",VLOOKUP(AP34,gps_method[],2,FALSE))","v":""},null,{"$f":"IF(AR34=\"\",\"\",VLOOKUP(AR34,risk_likelihood[],2,FALSE))","v":""},null,{"$f":"IF(AT34=\"\",\"\",VLOOKUP(AT34,risk_consequence[],2,FALSE))","v":""},null,{"$f":"IF(AV34=\"\",\"\",VLOOKUP(AV34,risk[],2,FALSE))","v":""},null,{"$f":"IF(AX34=\"\",\"\",VLOOKUP(AX34,rul_reset[],2,FALSE))","v":""},null,{"$f":"IF(AZ34=\"\",\"\",VLOOKUP(AZ34,use_default_rc[],2,FALSE))","v":""},null,{"$f":"IF(BB34=\"\",\"\",VLOOKUP(BB34,condition[],2,FALSE))","v":""},null,null,{"$f":"IF(BE34=\"\",\"\",VLOOKUP(BE34,Organisation[],2,FALSE))","v":""}]
["null",null,null,null,{"$f":"IF(D35=\"\",\"\",VLOOKUP(D35,side[],2,FALSE))","v":""},null,null,{"$f":"IF(G35=\"\",\"\",VLOOKUP(G35,Material[],2,FALSE))","v":""},null,{"$f":"IF(I35=\"\",\"\",VLOOKUP(I35,shape[],2,FALSE))","v":""},null,{"$f":"IF(K35=\"\",\"\",VLOOKUP(K35,make[],2,FALSE))","v":""},null,"",null,{"$f":"IF(O35=\"\",\"\",VLOOKUP(O35,mounting_type[],2,FALSE))","v":""},null,{"$f":"IF(Q35=\"\",\"\",VLOOKUP(Q35,attachment[],2,FALSE))","v":""},null,{"$f":"IF(S35=\"\",\"\",VLOOKUP(S35,purpose[],2,FALSE))","v":""},null,{"$f":"IF(U35=\"\",\"\",VLOOKUP(U35,coating[],2,FALSE))","v":""},null,{"$f":"IF(W35=\"\",\"\",VLOOKUP(W35,pole_in_use[],2,FALSE))","v":""},null,{"$f":"IF(Y35=\"\",\"\",VLOOKUP(Y35,pole_control[],2,FALSE))","v":""},null,{"$f":"IF(AA35=\"\",\"\",VLOOKUP(AA35,power_company[],2,FALSE))","v":""},null,null,null,null,{"$f":"IF(AF35=\"\",\"\",VLOOKUP(AF35,Install_reason[],2,FALSE))","v":""},null,{"$f":"IF(AH35=\"\",\"\",VLOOKUP(AH35,status[],2,FALSE))","v":""},null,null,{"$f":"IF(AK35=\"\",\"\",VLOOKUP(AK35,asset_owner[],2,FALSE))","v":""},null,null,null,null,{"$f":"IF(AP35=\"\",\"\",VLOOKUP(AP35,gps_method[],2,FALSE))","v":""},null,{"$f":"IF(AR35=\"\",\"\",VLOOKUP(AR35,risk_likelihood[],2,FALSE))","v":""},null,{"$f":"IF(AT35=\"\",\"\",VLOOKUP(AT35,risk_consequence[],2,FALSE))","v":""},null,{"$f":"IF(AV35=\"\",\"\",VLOOKUP(AV35,risk[],2,FALSE))","v":""},null,{"$f":"IF(AX35=\"\",\"\",VLOOKUP(AX35,rul_reset[],2,FALSE))","v":""},null,{"$f":"IF(AZ35=\"\",\"\",VLOOKUP(AZ35,use_default_rc[],2,FALSE))","v":""},null,{"$f":"IF(BB35=\"\",\"\",VLOOKUP(BB35,condition[],2,FALSE))","v":""},null,null,{"$f":"IF(BE35=\"\",\"\",VLOOKUP(BE35,Organisation[],2,FALSE))","v":""}]
["null",null,null,null,{"$f":"IF(D36=\"\",\"\",VLOOKUP(D36,side[],2,FALSE))","v":""},null,null,{"$f":"IF(G36=\"\",\"\",VLOOKUP(G36,Material[],2,FALSE))","v":""},null,{"$f":"IF(I36=\"\",\"\",VLOOKUP(I36,shape[],2,FALSE))","v":""},null,{"$f":"IF(K36=\"\",\"\",VLOOKUP(K36,make[],2,FALSE))","v":""},null,{"$f":"IF(M36=\"\",\"\",VLOOKUP(M36,model,2,FALSE))","v":""},null,{"$f":"IF(O36=\"\",\"\",VLOOKUP(O36,mounting_type[],2,FALSE))","v":""},null,{"$f":"IF(Q36=\"\",\"\",VLOOKUP(Q36,attachment[],2,FALSE))","v":""},null,{"$f":"IF(S36=\"\",\"\",VLOOKUP(S36,purpose[],2,FALSE))","v":""},null,{"$f":"IF(U36=\"\",\"\",VLOOKUP(U36,coating[],2,FALSE))","v":""},null,{"$f":"IF(W36=\"\",\"\",VLOOKUP(W36,pole_in_use[],2,FALSE))","v":""},null,{"$f":"IF(Y36=\"\",\"\",VLOOKUP(Y36,pole_control[],2,FALSE))","v":""},null,{"$f":"IF(AA36=\"\",\"\",VLOOKUP(AA36,power_company[],2,FALSE))","v":""},null,null,null,null,{"$f":"IF(AF36=\"\",\"\",VLOOKUP(AF36,Install_reason[],2,FALSE))","v":""},null,{"$f":"IF(AH36=\"\",\"\",VLOOKUP(AH36,status[],2,FALSE))","v":""},null,null,{"$f":"IF(AK36=\"\",\"\",VLOOKUP(AK36,asset_owner[],2,FALSE))","v":""},null,null,null,null,{"$f":"IF(AP36=\"\",\"\",VLOOKUP(AP36,gps_method[],2,FALSE))","v":""},null,{"$f":"IF(AR36=\"\",\"\",VLOOKUP(AR36,risk_likelihood[],2,FALSE))","v":""},null,{"$f":"IF(AT36=\"\",\"\",VLOOKUP(AT36,risk_consequence[],2,FALSE))","v":""},null,{"$f":"IF(AV36=\"\",\"\",VLOOKUP(AV36,risk[],2,FALSE))","v":""},null,{"$f":"IF(AX36=\"\",\"\",VLOOKUP(AX36,rul_reset[],2,FALSE))","v":""},null,{"$f":"IF(AZ36=\"\",\"\",VLOOKUP(AZ36,use_default_rc[],2,FALSE))","v":""},null,{"$f":"IF(BB36=\"\",\"\",VLOOKUP(BB36,condition[],2,FALSE))","v":""},null,null,{"$f":"IF(BE36=\"\",\"\",VLOOKUP(BE36,Organisation[],2,FALSE))","v":""}]
["null",null,null,null,{"$f":"IF(D37=\"\",\"\",VLOOKUP(D37,side[],2,FALSE))","v":""},null,null,{"$f":"IF(G37=\"\",\"\",VLOOKUP(G37,Material[],2,FALSE))","v":""},null,{"$f":"IF(I37=\"\",\"\",VLOOKUP(I37,shape[],2,FALSE))","v":""},null,{"$f":"IF(K37=\"\",\"\",VLOOKUP(K37,make[],2,FALSE))","v":""},null,"",null,{"$f":"IF(O37=\"\",\"\",VLOOKUP(O37,mounting_type[],2,FALSE))","v":""},null,{"$f":"IF(Q37=\"\",\"\",VLOOKUP(Q37,attachment[],2,FALSE))","v":""},null,{"$f":"IF(S37=\"\",\"\",VLOOKUP(S37,purpose[],2,FALSE))","v":""},null,{"$f":"IF(U37=\"\",\"\",VLOOKUP(U37,coating[],2,FALSE))","v":""},null,{"$f":"IF(W37=\"\",\"\",VLOOKUP(W37,pole_in_use[],2,FALSE))","v":""},null,{"$f":"IF(Y37=\"\",\"\",VLOOKUP(Y37,pole_control[],2,FALSE))","v":""},null,{"$f":"IF(AA37=\"\",\"\",VLOOKUP(AA37,power_company[],2,FALSE))","v":""},null,null,null,null,{"$f":"IF(AF37=\"\",\"\",VLOOKUP(AF37,Install_reason[],2,FALSE))","v":""},null,{"$f":"IF(AH37=\"\",\"\",VLOOKUP(AH37,status[],2,FALSE))","v":""},null,null,{"$f":"IF(AK37=\"\",\"\",VLOOKUP(AK37,asset_owner[],2,FALSE))","v":""},null,null,null,null,{"$f":"IF(AP37=\"\",\"\",VLOOKUP(AP37,gps_method[],2,FALSE))","v":""},null,{"$f":"IF(AR37=\"\",\"\",VLOOKUP(AR37,risk_likelihood[],2,FALSE))","v":""},null,{"$f":"IF(AT37=\"\",\"\",VLOOKUP(AT37,risk_consequence[],2,FALSE))","v":""},null,{"$f":"IF(AV37=\"\",\"\",VLOOKUP(AV37,risk[],2,FALSE))","v":""},null,{"$f":"IF(AX37=\"\",\"\",VLOOKUP(AX37,rul_reset[],2,FALSE))","v":""},null,{"$f":"IF(AZ37=\"\",\"\",VLOOKUP(AZ37,use_default_rc[],2,FALSE))","v":""},null,{"$f":"IF(BB37=\"\",\"\",VLOOKUP(BB37,condition[],2,FALSE))","v":""},null,null,{"$f":"IF(BE37=\"\",\"\",VLOOKUP(BE37,Organisation[],2,FALSE))","v":""}]
["null",null,null,null,{"$f":"IF(D38=\"\",\"\",VLOOKUP(D38,side[],2,FALSE))","v":""},null,null,{"$f":"IF(G38=\"\",\"\",VLOOKUP(G38,Material[],2,FALSE))","v":""},null,{"$f":"IF(I38=\"\",\"\",VLOOKUP(I38,shape[],2,FALSE))","v":""},null,{"$f":"IF(K38=\"\",\"\",VLOOKUP(K38,make[],2,FALSE))","v":""},null,"",null,{"$f":"IF(O38=\"\",\"\",VLOOKUP(O38,mounting_type[],2,FALSE))","v":""},null,{"$f":"IF(Q38=\"\",\"\",VLOOKUP(Q38,attachment[],2,FALSE))","v":""},null,{"$f":"IF(S38=\"\",\"\",VLOOKUP(S38,purpose[],2,FALSE))","v":""},null,{"$f":"IF(U38=\"\",\"\",VLOOKUP(U38,coating[],2,FALSE))","v":""},null,{"$f":"IF(W38=\"\",\"\",VLOOKUP(W38,pole_in_use[],2,FALSE))","v":""},null,{"$f":"IF(Y38=\"\",\"\",VLOOKUP(Y38,pole_control[],2,FALSE))","v":""},null,{"$f":"IF(AA38=\"\",\"\",VLOOKUP(AA38,power_company[],2,FALSE))","v":""},null,null,null,null,{"$f":"IF(AF38=\"\",\"\",VLOOKUP(AF38,Install_reason[],2,FALSE))","v":""},null,{"$f":"IF(AH38=\"\",\"\",VLOOKUP(AH38,status[],2,FALSE))","v":""},null,null,{"$f":"IF(AK38=\"\",\"\",VLOOKUP(AK38,asset_owner[],2,FALSE))","v":""},null,null,null,null,{"$f":"IF(AP38=\"\",\"\",VLOOKUP(AP38,gps_method[],2,FALSE))","v":""},null,{"$f":"IF(AR38=\"\",\"\",VLOOKUP(AR38,risk_likelihood[],2,FALSE))","v":""},null,{"$f":"IF(AT38=\"\",\"\",VLOOKUP(AT38,risk_consequence[],2,FALSE))","v":""},null,{"$f":"IF(AV38=\"\",\"\",VLOOKUP(AV38,risk[],2,FALSE))","v":""},null,{"$f":"IF(AX38=\"\",\"\",VLOOKUP(AX38,rul_reset[],2,FALSE))","v":""},null,{"$f":"IF(AZ38=\"\",\"\",VLOOKUP(AZ38,use_default_rc[],2,FALSE))","v":""},null,{"$f":"IF(BB38=\"\",\"\",VLOOKUP(BB38,condition[],2,FALSE))","v":""},null,null,{"$f":"IF(BE38=\"\",\"\",VLOOKUP(BE38,Organisation[],2,FALSE))","v":""}]
["null",null,null,null,{"$f":"IF(D39=\"\",\"\",VLOOKUP(D39,side[],2,FALSE))","v":""},null,null,{"$f":"IF(G39=\"\",\"\",VLOOKUP(G39,Material[],2,FALSE))","v":""},null,{"$f":"IF(I39=\"\",\"\",VLOOKUP(I39,shape[],2,FALSE))","v":""},null,{"$f":"IF(K39=\"\",\"\",VLOOKUP(K39,make[],2,FALSE))","v":""},null,"",null,{"$f":"IF(O39=\"\",\"\",VLOOKUP(O39,mounting_type[],2,FALSE))","v":""},null,{"$f":"IF(Q39=\"\",\"\",VLOOKUP(Q39,attachment[],2,FALSE))","v":""},null,{"$f":"IF(S39=\"\",\"\",VLOOKUP(S39,purpose[],2,FALSE))","v":""},null,{"$f":"IF(U39=\"\",\"\",VLOOKUP(U39,coating[],2,FALSE))","v":""},null,{"$f":"IF(W39=\"\",\"\",VLOOKUP(W39,pole_in_use[],2,FALSE))","v":""},null,{"$f":"IF(Y39=\"\",\"\",VLOOKUP(Y39,pole_control[],2,FALSE))","v":""},null,{"$f":"IF(AA39=\"\",\"\",VLOOKUP(AA39,power_company[],2,FALSE))","v":""},null,null,null,null,{"$f":"IF(AF39=\"\",\"\",VLOOKUP(AF39,Install_reason[],2,FALSE))","v":""},null,{"$f":"IF(AH39=\"\",\"\",VLOOKUP(AH39,status[],2,FALSE))","v":""},null,null,{"$f":"IF(AK39=\"\",\"\",VLOOKUP(AK39,asset_owner[],2,FALSE))","v":""},null,null,null,null,{"$f":"IF(AP39=\"\",\"\",VLOOKUP(AP39,gps_method[],2,FALSE))","v":""},null,{"$f":"IF(AR39=\"\",\"\",VLOOKUP(AR39,risk_likelihood[],2,FALSE))","v":""},null,{"$f":"IF(AT39=\"\",\"\",VLOOKUP(AT39,risk_consequence[],2,FALSE))","v":""},null,{"$f":"IF(AV39=\"\",\"\",VLOOKUP(AV39,risk[],2,FALSE))","v":""},null,{"$f":"IF(AX39=\"\",\"\",VLOOKUP(AX39,rul_reset[],2,FALSE))","v":""},null,{"$f":"IF(AZ39=\"\",\"\",VLOOKUP(AZ39,use_default_rc[],2,FALSE))","v":""},null,{"$f":"IF(BB39=\"\",\"\",VLOOKUP(BB39,condition[],2,FALSE))","v":""},null,null,{"$f":"IF(BE39=\"\",\"\",VLOOKUP(BE39,Organisation[],2,FALSE))","v":""}]
["null",null,null,null,{"$f":"IF(D40=\"\",\"\",VLOOKUP(D40,side[],2,FALSE))","v":""},null,null,{"$f":"IF(G40=\"\",\"\",VLOOKUP(G40,Material[],2,FALSE))","v":""},null,{"$f":"IF(I40=\"\",\"\",VLOOKUP(I40,shape[],2,FALSE))","v":""},null,{"$f":"IF(K40=\"\",\"\",VLOOKUP(K40,make[],2,FALSE))","v":""},null,"",null,{"$f":"IF(O40=\"\",\"\",VLOOKUP(O40,mounting_type[],2,FALSE))","v":""},null,{"$f":"IF(Q40=\"\",\"\",VLOOKUP(Q40,attachment[],2,FALSE))","v":""},null,{"$f":"IF(S40=\"\",\"\",VLOOKUP(S40,purpose[],2,FALSE))","v":""},null,{"$f":"IF(U40=\"\",\"\",VLOOKUP(U40,coating[],2,FALSE))","v":""},null,{"$f":"IF(W40=\"\",\"\",VLOOKUP(W40,pole_in_use[],2,FALSE))","v":""},null,{"$f":"IF(Y40=\"\",\"\",VLOOKUP(Y40,pole_control[],2,FALSE))","v":""},null,{"$f":"IF(AA40=\"\",\"\",VLOOKUP(AA40,power_company[],2,FALSE))","v":""},null,null,null,null,{"$f":"IF(AF40=\"\",\"\",VLOOKUP(AF40,Install_reason[],2,FALSE))","v":""},null,{"$f":"IF(AH40=\"\",\"\",VLOOKUP(AH40,status[],2,FALSE))","v":""},null,null,{"$f":"IF(AK40=\"\",\"\",VLOOKUP(AK40,asset_owner[],2,FALSE))","v":""},null,null,null,null,{"$f":"IF(AP40=\"\",\"\",VLOOKUP(AP40,gps_method[],2,FALSE))","v":""},null,{"$f":"IF(AR40=\"\",\"\",VLOOKUP(AR40,risk_likelihood[],2,FALSE))","v":""},null,{"$f":"IF(AT40=\"\",\"\",VLOOKUP(AT40,risk_consequence[],2,FALSE))","v":""},null,{"$f":"IF(AV40=\"\",\"\",VLOOKUP(AV40,risk[],2,FALSE))","v":""},null,{"$f":"IF(AX40=\"\",\"\",VLOOKUP(AX40,rul_reset[],2,FALSE))","v":""},null,{"$f":"IF(AZ40=\"\",\"\",VLOOKUP(AZ40,use_default_rc[],2,FALSE))","v":""},null,{"$f":"IF(BB40=\"\",\"\",VLOOKUP(BB40,condition[],2,FALSE))","v":""},null,null,{"$f":"IF(BE40=\"\",\"\",VLOOKUP(BE40,Organisation[],2,FALSE))","v":""}]
["null",null,null,null,{"$f":"IF(D41=\"\",\"\",VLOOKUP(D41,side[],2,FALSE))","v":""},null,null,{"$f":"IF(G41=\"\",\"\",VLOOKUP(G41,Material[],2,FALSE))","v":""},null,{"$f":"IF(I41=\"\",\"\",VLOOKUP(I41,shape[],2,FALSE))","v":""},null,{"$f":"IF(K41=\"\",\"\",VLOOKUP(K41,make[],2,FALSE))","v":""},null,"",null,{"$f":"IF(O41=\"\",\"\",VLOOKUP(O41,mounting_type[],2,FALSE))","v":""},null,{"$f":"IF(Q41=\"\",\"\",VLOOKUP(Q41,attachment[],2,FALSE))","v":""},null,{"$f":"IF(S41=\"\",\"\",VLOOKUP(S41,purpose[],2,FALSE))","v":""},null,{"$f":"IF(U41=\"\",\"\",VLOOKUP(U41,coating[],2,FALSE))","v":""},null,{"$f":"IF(W41=\"\",\"\",VLOOKUP(W41,pole_in_use[],2,FALSE))","v":""},null,{"$f":"IF(Y41=\"\",\"\",VLOOKUP(Y41,pole_control[],2,FALSE))","v":""},null,{"$f":"IF(AA41=\"\",\"\",VLOOKUP(AA41,power_company[],2,FALSE))","v":""},null,null,null,null,{"$f":"IF(AF41=\"\",\"\",VLOOKUP(AF41,Install_reason[],2,FALSE))","v":""},null,{"$f":"IF(AH41=\"\",\"\",VLOOKUP(AH41,status[],2,FALSE))","v":""},null,null,{"$f":"IF(AK41=\"\",\"\",VLOOKUP(AK41,asset_owner[],2,FALSE))","v":""},null,null,null,null,{"$f":"IF(AP41=\"\",\"\",VLOOKUP(AP41,gps_method[],2,FALSE))","v":""},null,{"$f":"IF(AR41=\"\",\"\",VLOOKUP(AR41,risk_likelihood[],2,FALSE))","v":""},null,{"$f":"IF(AT41=\"\",\"\",VLOOKUP(AT41,risk_consequence[],2,FALSE))","v":""},null,{"$f":"IF(AV41=\"\",\"\",VLOOKUP(AV41,risk[],2,FALSE))","v":""},null,{"$f":"IF(AX41=\"\",\"\",VLOOKUP(AX41,rul_reset[],2,FALSE))","v":""},null,{"$f":"IF(AZ41=\"\",\"\",VLOOKUP(AZ41,use_default_rc[],2,FALSE))","v":""},null,{"$f":"IF(BB41=\"\",\"\",VLOOKUP(BB41,condition[],2,FALSE))","v":""},null,null,{"$f":"IF(BE41=\"\",\"\",VLOOKUP(BE41,Organisation[],2,FALSE))","v":""}]
["null",null,null,null,{"$f":"IF(D42=\"\",\"\",VLOOKUP(D42,side[],2,FALSE))","v":""},null,null,{"$f":"IF(G42=\"\",\"\",VLOOKUP(G42,Material[],2,FALSE))","v":""},null,{"$f":"IF(I42=\"\",\"\",VLOOKUP(I42,shape[],2,FALSE))","v":""},null,{"$f":"IF(K42=\"\",\"\",VLOOKUP(K42,make[],2,FALSE))","v":""},null,"",null,{"$f":"IF(O42=\"\",\"\",VLOOKUP(O42,mounting_type[],2,FALSE))","v":""},null,{"$f":"IF(Q42=\"\",\"\",VLOOKUP(Q42,attachment[],2,FALSE))","v":""},null,{"$f":"IF(S42=\"\",\"\",VLOOKUP(S42,purpose[],2,FALSE))","v":""},null,{"$f":"IF(U42=\"\",\"\",VLOOKUP(U42,coating[],2,FALSE))","v":""},null,{"$f":"IF(W42=\"\",\"\",VLOOKUP(W42,pole_in_use[],2,FALSE))","v":""},null,{"$f":"IF(Y42=\"\",\"\",VLOOKUP(Y42,pole_control[],2,FALSE))","v":""},null,{"$f":"IF(AA42=\"\",\"\",VLOOKUP(AA42,power_company[],2,FALSE))","v":""},null,null,null,null,{"$f":"IF(AF42=\"\",\"\",VLOOKUP(AF42,Install_reason[],2,FALSE))","v":""},null,{"$f":"IF(AH42=\"\",\"\",VLOOKUP(AH42,status[],2,FALSE))","v":""},null,null,{"$f":"IF(AK42=\"\",\"\",VLOOKUP(AK42,asset_owner[],2,FALSE))","v":""},null,null,null,null,{"$f":"IF(AP42=\"\",\"\",VLOOKUP(AP42,gps_method[],2,FALSE))","v":""},null,{"$f":"IF(AR42=\"\",\"\",VLOOKUP(AR42,risk_likelihood[],2,FALSE))","v":""},null,{"$f":"IF(AT42=\"\",\"\",VLOOKUP(AT42,risk_consequence[],2,FALSE))","v":""},null,{"$f":"IF(AV42=\"\",\"\",VLOOKUP(AV42,risk[],2,FALSE))","v":""},null,{"$f":"IF(AX42=\"\",\"\",VLOOKUP(AX42,rul_reset[],2,FALSE))","v":""},null,{"$f":"IF(AZ42=\"\",\"\",VLOOKUP(AZ42,use_default_rc[],2,FALSE))","v":""},null,{"$f":"IF(BB42=\"\",\"\",VLOOKUP(BB42,condition[],2,FALSE))","v":""},null,null,{"$f":"IF(BE42=\"\",\"\",VLOOKUP(BE42,Organisation[],2,FALSE))","v":""}]
["null",null,null,null,{"$f":"IF(D43=\"\",\"\",VLOOKUP(D43,side[],2,FALSE))","v":""},null,null,{"$f":"IF(G43=\"\",\"\",VLOOKUP(G43,Material[],2,FALSE))","v":""},null,{"$f":"IF(I43=\"\",\"\",VLOOKUP(I43,shape[],2,FALSE))","v":""},null,{"$f":"IF(K43=\"\",\"\",VLOOKUP(K43,make[],2,FALSE))","v":""},null,"",null,{"$f":"IF(O43=\"\",\"\",VLOOKUP(O43,mounting_type[],2,FALSE))","v":""},null,{"$f":"IF(Q43=\"\",\"\",VLOOKUP(Q43,attachment[],2,FALSE))","v":""},null,{"$f":"IF(S43=\"\",\"\",VLOOKUP(S43,purpose[],2,FALSE))","v":""},null,{"$f":"IF(U43=\"\",\"\",VLOOKUP(U43,coating[],2,FALSE))","v":""},null,{"$f":"IF(W43=\"\",\"\",VLOOKUP(W43,pole_in_use[],2,FALSE))","v":""},null,{"$f":"IF(Y43=\"\",\"\",VLOOKUP(Y43,pole_control[],2,FALSE))","v":""},null,{"$f":"IF(AA43=\"\",\"\",VLOOKUP(AA43,power_company[],2,FALSE))","v":""},null,null,null,null,{"$f":"IF(AF43=\"\",\"\",VLOOKUP(AF43,Install_reason[],2,FALSE))","v":""},null,{"$f":"IF(AH43=\"\",\"\",VLOOKUP(AH43,status[],2,FALSE))","v":""},null,null,{"$f":"IF(AK43=\"\",\"\",VLOOKUP(AK43,asset_owner[],2,FALSE))","v":""},null,null,null,null,{"$f":"IF(AP43=\"\",\"\",VLOOKUP(AP43,gps_method[],2,FALSE))","v":""},null,{"$f":"IF(AR43=\"\",\"\",VLOOKUP(AR43,risk_likelihood[],2,FALSE))","v":""},null,{"$f":"IF(AT43=\"\",\"\",VLOOKUP(AT43,risk_consequence[],2,FALSE))","v":""},null,{"$f":"IF(AV43=\"\",\"\",VLOOKUP(AV43,risk[],2,FALSE))","v":""},null,{"$f":"IF(AX43=\"\",\"\",VLOOKUP(AX43,rul_reset[],2,FALSE))","v":""},null,{"$f":"IF(AZ43=\"\",\"\",VLOOKUP(AZ43,use_default_rc[],2,FALSE))","v":""},null,{"$f":"IF(BB43=\"\",\"\",VLOOKUP(BB43,condition[],2,FALSE))","v":""},null,null,{"$f":"IF(BE43=\"\",\"\",VLOOKUP(BE43,Organisation[],2,FALSE))","v":""}]
["null",null,null,null,{"$f":"IF(D44=\"\",\"\",VLOOKUP(D44,side[],2,FALSE))","v":""},null,null,{"$f":"IF(G44=\"\",\"\",VLOOKUP(G44,Material[],2,FALSE))","v":""},null,{"$f":"IF(I44=\"\",\"\",VLOOKUP(I44,shape[],2,FALSE))","v":""},null,{"$f":"IF(K44=\"\",\"\",VLOOKUP(K44,make[],2,FALSE))","v":""},null,"",null,{"$f":"IF(O44=\"\",\"\",VLOOKUP(O44,mounting_type[],2,FALSE))","v":""},null,{"$f":"IF(Q44=\"\",\"\",VLOOKUP(Q44,attachment[],2,FALSE))","v":""},null,{"$f":"IF(S44=\"\",\"\",VLOOKUP(S44,purpose[],2,FALSE))","v":""},null,{"$f":"IF(U44=\"\",\"\",VLOOKUP(U44,coating[],2,FALSE))","v":""},null,{"$f":"IF(W44=\"\",\"\",VLOOKUP(W44,pole_in_use[],2,FALSE))","v":""},null,{"$f":"IF(Y44=\"\",\"\",VLOOKUP(Y44,pole_control[],2,FALSE))","v":""},null,{"$f":"IF(AA44=\"\",\"\",VLOOKUP(AA44,power_company[],2,FALSE))","v":""},null,null,null,null,{"$f":"IF(AF44=\"\",\"\",VLOOKUP(AF44,Install_reason[],2,FALSE))","v":""},null,{"$f":"IF(AH44=\"\",\"\",VLOOKUP(AH44,status[],2,FALSE))","v":""},null,null,{"$f":"IF(AK44=\"\",\"\",VLOOKUP(AK44,asset_owner[],2,FALSE))","v":""},null,null,null,null,{"$f":"IF(AP44=\"\",\"\",VLOOKUP(AP44,gps_method[],2,FALSE))","v":""},null,{"$f":"IF(AR44=\"\",\"\",VLOOKUP(AR44,risk_likelihood[],2,FALSE))","v":""},null,{"$f":"IF(AT44=\"\",\"\",VLOOKUP(AT44,risk_consequence[],2,FALSE))","v":""},null,{"$f":"IF(AV44=\"\",\"\",VLOOKUP(AV44,risk[],2,FALSE))","v":""},null,{"$f":"IF(AX44=\"\",\"\",VLOOKUP(AX44,rul_reset[],2,FALSE))","v":""},null,{"$f":"IF(AZ44=\"\",\"\",VLOOKUP(AZ44,use_default_rc[],2,FALSE))","v":""},null,{"$f":"IF(BB44=\"\",\"\",VLOOKUP(BB44,condition[],2,FALSE))","v":""},null,null,{"$f":"IF(BE44=\"\",\"\",VLOOKUP(BE44,Organisation[],2,FALSE))","v":""}]
["null",null,null,null,{"$f":"IF(D45=\"\",\"\",VLOOKUP(D45,side[],2,FALSE))","v":""},null,null,{"$f":"IF(G45=\"\",\"\",VLOOKUP(G45,Material[],2,FALSE))","v":""},null,{"$f":"IF(I45=\"\",\"\",VLOOKUP(I45,shape[],2,FALSE))","v":""},null,{"$f":"IF(K45=\"\",\"\",VLOOKUP(K45,make[],2,FALSE))","v":""},null,"",null,{"$f":"IF(O45=\"\",\"\",VLOOKUP(O45,mounting_type[],2,FALSE))","v":""},null,{"$f":"IF(Q45=\"\",\"\",VLOOKUP(Q45,attachment[],2,FALSE))","v":""},null,{"$f":"IF(S45=\"\",\"\",VLOOKUP(S45,purpose[],2,FALSE))","v":""},null,{"$f":"IF(U45=\"\",\"\",VLOOKUP(U45,coating[],2,FALSE))","v":""},null,{"$f":"IF(W45=\"\",\"\",VLOOKUP(W45,pole_in_use[],2,FALSE))","v":""},null,{"$f":"IF(Y45=\"\",\"\",VLOOKUP(Y45,pole_control[],2,FALSE))","v":""},null,{"$f":"IF(AA45=\"\",\"\",VLOOKUP(AA45,power_company[],2,FALSE))","v":""},null,null,null,null,{"$f":"IF(AF45=\"\",\"\",VLOOKUP(AF45,Install_reason[],2,FALSE))","v":""},null,{"$f":"IF(AH45=\"\",\"\",VLOOKUP(AH45,status[],2,FALSE))","v":""},null,null,{"$f":"IF(AK45=\"\",\"\",VLOOKUP(AK45,asset_owner[],2,FALSE))","v":""},null,null,null,null,{"$f":"IF(AP45=\"\",\"\",VLOOKUP(AP45,gps_method[],2,FALSE))","v":""},null,{"$f":"IF(AR45=\"\",\"\",VLOOKUP(AR45,risk_likelihood[],2,FALSE))","v":""},null,{"$f":"IF(AT45=\"\",\"\",VLOOKUP(AT45,risk_consequence[],2,FALSE))","v":""},null,{"$f":"IF(AV45=\"\",\"\",VLOOKUP(AV45,risk[],2,FALSE))","v":""},null,{"$f":"IF(AX45=\"\",\"\",VLOOKUP(AX45,rul_reset[],2,FALSE))","v":""},null,{"$f":"IF(AZ45=\"\",\"\",VLOOKUP(AZ45,use_default_rc[],2,FALSE))","v":""},null,{"$f":"IF(BB45=\"\",\"\",VLOOKUP(BB45,condition[],2,FALSE))","v":""},null,null,{"$f":"IF(BE45=\"\",\"\",VLOOKUP(BE45,Organisation[],2,FALSE))","v":""}]
["null",null,null,null,{"$f":"IF(D46=\"\",\"\",VLOOKUP(D46,side[],2,FALSE))","v":""},null,null,{"$f":"IF(G46=\"\",\"\",VLOOKUP(G46,Material[],2,FALSE))","v":""},null,{"$f":"IF(I46=\"\",\"\",VLOOKUP(I46,shape[],2,FALSE))","v":""},null,{"$f":"IF(K46=\"\",\"\",VLOOKUP(K46,make[],2,FALSE))","v":""},null,"",null,{"$f":"IF(O46=\"\",\"\",VLOOKUP(O46,mounting_type[],2,FALSE))","v":""},null,{"$f":"IF(Q46=\"\",\"\",VLOOKUP(Q46,attachment[],2,FALSE))","v":""},null,{"$f":"IF(S46=\"\",\"\",VLOOKUP(S46,purpose[],2,FALSE))","v":""},null,{"$f":"IF(U46=\"\",\"\",VLOOKUP(U46,coating[],2,FALSE))","v":""},null,{"$f":"IF(W46=\"\",\"\",VLOOKUP(W46,pole_in_use[],2,FALSE))","v":""},null,{"$f":"IF(Y46=\"\",\"\",VLOOKUP(Y46,pole_control[],2,FALSE))","v":""},null,{"$f":"IF(AA46=\"\",\"\",VLOOKUP(AA46,power_company[],2,FALSE))","v":""},null,null,null,null,{"$f":"IF(AF46=\"\",\"\",VLOOKUP(AF46,Install_reason[],2,FALSE))","v":""},null,{"$f":"IF(AH46=\"\",\"\",VLOOKUP(AH46,status[],2,FALSE))","v":""},null,null,{"$f":"IF(AK46=\"\",\"\",VLOOKUP(AK46,asset_owner[],2,FALSE))","v":""},null,null,null,null,{"$f":"IF(AP46=\"\",\"\",VLOOKUP(AP46,gps_method[],2,FALSE))","v":""},null,{"$f":"IF(AR46=\"\",\"\",VLOOKUP(AR46,risk_likelihood[],2,FALSE))","v":""},null,{"$f":"IF(AT46=\"\",\"\",VLOOKUP(AT46,risk_consequence[],2,FALSE))","v":""},null,{"$f":"IF(AV46=\"\",\"\",VLOOKUP(AV46,risk[],2,FALSE))","v":""},null,{"$f":"IF(AX46=\"\",\"\",VLOOKUP(AX46,rul_reset[],2,FALSE))","v":""},null,{"$f":"IF(AZ46=\"\",\"\",VLOOKUP(AZ46,use_default_rc[],2,FALSE))","v":""},null,{"$f":"IF(BB46=\"\",\"\",VLOOKUP(BB46,condition[],2,FALSE))","v":""},null,null,{"$f":"IF(BE46=\"\",\"\",VLOOKUP(BE46,Organisation[],2,FALSE))","v":""}]
["null",null,null,null,{"$f":"IF(D47=\"\",\"\",VLOOKUP(D47,side[],2,FALSE))","v":""},null,null,{"$f":"IF(G47=\"\",\"\",VLOOKUP(G47,Material[],2,FALSE))","v":""},null,{"$f":"IF(I47=\"\",\"\",VLOOKUP(I47,shape[],2,FALSE))","v":""},null,{"$f":"IF(K47=\"\",\"\",VLOOKUP(K47,make[],2,FALSE))","v":""},null,"",null,{"$f":"IF(O47=\"\",\"\",VLOOKUP(O47,mounting_type[],2,FALSE))","v":""},null,{"$f":"IF(Q47=\"\",\"\",VLOOKUP(Q47,attachment[],2,FALSE))","v":""},null,{"$f":"IF(S47=\"\",\"\",VLOOKUP(S47,purpose[],2,FALSE))","v":""},null,{"$f":"IF(U47=\"\",\"\",VLOOKUP(U47,coating[],2,FALSE))","v":""},null,{"$f":"IF(W47=\"\",\"\",VLOOKUP(W47,pole_in_use[],2,FALSE))","v":""},null,{"$f":"IF(Y47=\"\",\"\",VLOOKUP(Y47,pole_control[],2,FALSE))","v":""},null,{"$f":"IF(AA47=\"\",\"\",VLOOKUP(AA47,power_company[],2,FALSE))","v":""},null,null,null,null,{"$f":"IF(AF47=\"\",\"\",VLOOKUP(AF47,Install_reason[],2,FALSE))","v":""},null,{"$f":"IF(AH47=\"\",\"\",VLOOKUP(AH47,status[],2,FALSE))","v":""},null,null,{"$f":"IF(AK47=\"\",\"\",VLOOKUP(AK47,asset_owner[],2,FALSE))","v":""},null,null,null,null,{"$f":"IF(AP47=\"\",\"\",VLOOKUP(AP47,gps_method[],2,FALSE))","v":""},null,{"$f":"IF(AR47=\"\",\"\",VLOOKUP(AR47,risk_likelihood[],2,FALSE))","v":""},null,{"$f":"IF(AT47=\"\",\"\",VLOOKUP(AT47,risk_consequence[],2,FALSE))","v":""},null,{"$f":"IF(AV47=\"\",\"\",VLOOKUP(AV47,risk[],2,FALSE))","v":""},null,{"$f":"IF(AX47=\"\",\"\",VLOOKUP(AX47,rul_reset[],2,FALSE))","v":""},null,{"$f":"IF(AZ47=\"\",\"\",VLOOKUP(AZ47,use_default_rc[],2,FALSE))","v":""},null,{"$f":"IF(BB47=\"\",\"\",VLOOKUP(BB47,condition[],2,FALSE))","v":""},null,null,{"$f":"IF(BE47=\"\",\"\",VLOOKUP(BE47,Organisation[],2,FALSE))","v":""}]
["null",null,null,null,{"$f":"IF(D48=\"\",\"\",VLOOKUP(D48,side[],2,FALSE))","v":""},null,null,{"$f":"IF(G48=\"\",\"\",VLOOKUP(G48,Material[],2,FALSE))","v":""},null,{"$f":"IF(I48=\"\",\"\",VLOOKUP(I48,shape[],2,FALSE))","v":""},null,{"$f":"IF(K48=\"\",\"\",VLOOKUP(K48,make[],2,FALSE))","v":""},null,"",null,{"$f":"IF(O48=\"\",\"\",VLOOKUP(O48,mounting_type[],2,FALSE))","v":""},null,{"$f":"IF(Q48=\"\",\"\",VLOOKUP(Q48,attachment[],2,FALSE))","v":""},null,{"$f":"IF(S48=\"\",\"\",VLOOKUP(S48,purpose[],2,FALSE))","v":""},null,{"$f":"IF(U48=\"\",\"\",VLOOKUP(U48,coating[],2,FALSE))","v":""},null,{"$f":"IF(W48=\"\",\"\",VLOOKUP(W48,pole_in_use[],2,FALSE))","v":""},null,{"$f":"IF(Y48=\"\",\"\",VLOOKUP(Y48,pole_control[],2,FALSE))","v":""},null,{"$f":"IF(AA48=\"\",\"\",VLOOKUP(AA48,power_company[],2,FALSE))","v":""},null,null,null,null,{"$f":"IF(AF48=\"\",\"\",VLOOKUP(AF48,Install_reason[],2,FALSE))","v":""},null,{"$f":"IF(AH48=\"\",\"\",VLOOKUP(AH48,status[],2,FALSE))","v":""},null,null,{"$f":"IF(AK48=\"\",\"\",VLOOKUP(AK48,asset_owner[],2,FALSE))","v":""},null,null,null,null,{"$f":"IF(AP48=\"\",\"\",VLOOKUP(AP48,gps_method[],2,FALSE))","v":""},null,{"$f":"IF(AR48=\"\",\"\",VLOOKUP(AR48,risk_likelihood[],2,FALSE))","v":""},null,{"$f":"IF(AT48=\"\",\"\",VLOOKUP(AT48,risk_consequence[],2,FALSE))","v":""},null,{"$f":"IF(AV48=\"\",\"\",VLOOKUP(AV48,risk[],2,FALSE))","v":""},null,{"$f":"IF(AX48=\"\",\"\",VLOOKUP(AX48,rul_reset[],2,FALSE))","v":""},null,{"$f":"IF(AZ48=\"\",\"\",VLOOKUP(AZ48,use_default_rc[],2,FALSE))","v":""},null,{"$f":"IF(BB48=\"\",\"\",VLOOKUP(BB48,condition[],2,FALSE))","v":""},null,null,{"$f":"IF(BE48=\"\",\"\",VLOOKUP(BE48,Organisation[],2,FALSE))","v":""}]
["null",null,null,null,{"$f":"IF(D49=\"\",\"\",VLOOKUP(D49,side[],2,FALSE))","v":""},null,null,{"$f":"IF(G49=\"\",\"\",VLOOKUP(G49,Material[],2,FALSE))","v":""},null,{"$f":"IF(I49=\"\",\"\",VLOOKUP(I49,shape[],2,FALSE))","v":""},null,{"$f":"IF(K49=\"\",\"\",VLOOKUP(K49,make[],2,FALSE))","v":""},null,"",null,{"$f":"IF(O49=\"\",\"\",VLOOKUP(O49,mounting_type[],2,FALSE))","v":""},null,{"$f":"IF(Q49=\"\",\"\",VLOOKUP(Q49,attachment[],2,FALSE))","v":""},null,{"$f":"IF(S49=\"\",\"\",VLOOKUP(S49,purpose[],2,FALSE))","v":""},null,{"$f":"IF(U49=\"\",\"\",VLOOKUP(U49,coating[],2,FALSE))","v":""},null,{"$f":"IF(W49=\"\",\"\",VLOOKUP(W49,pole_in_use[],2,FALSE))","v":""},null,{"$f":"IF(Y49=\"\",\"\",VLOOKUP(Y49,pole_control[],2,FALSE))","v":""},null,{"$f":"IF(AA49=\"\",\"\",VLOOKUP(AA49,power_company[],2,FALSE))","v":""},null,null,null,null,{"$f":"IF(AF49=\"\",\"\",VLOOKUP(AF49,Install_reason[],2,FALSE))","v":""},null,{"$f":"IF(AH49=\"\",\"\",VLOOKUP(AH49,status[],2,FALSE))","v":""},null,null,{"$f":"IF(AK49=\"\",\"\",VLOOKUP(AK49,asset_owner[],2,FALSE))","v":""},null,null,null,null,{"$f":"IF(AP49=\"\",\"\",VLOOKUP(AP49,gps_method[],2,FALSE))","v":""},null,{"$f":"IF(AR49=\"\",\"\",VLOOKUP(AR49,risk_likelihood[],2,FALSE))","v":""},null,{"$f":"IF(AT49=\"\",\"\",VLOOKUP(AT49,risk_consequence[],2,FALSE))","v":""},null,{"$f":"IF(AV49=\"\",\"\",VLOOKUP(AV49,risk[],2,FALSE))","v":""},null,{"$f":"IF(AX49=\"\",\"\",VLOOKUP(AX49,rul_reset[],2,FALSE))","v":""},null,{"$f":"IF(AZ49=\"\",\"\",VLOOKUP(AZ49,use_default_rc[],2,FALSE))","v":""},null,{"$f":"IF(BB49=\"\",\"\",VLOOKUP(BB49,condition[],2,FALSE))","v":""},null,null,{"$f":"IF(BE49=\"\",\"\",VLOOKUP(BE49,Organisation[],2,FALSE))","v":""}]
["null",null,null,null,{"$f":"IF(D50=\"\",\"\",VLOOKUP(D50,side[],2,FALSE))","v":""},null,null,{"$f":"IF(G50=\"\",\"\",VLOOKUP(G50,Material[],2,FALSE))","v":""},null,{"$f":"IF(I50=\"\",\"\",VLOOKUP(I50,shape[],2,FALSE))","v":""},null,{"$f":"IF(K50=\"\",\"\",VLOOKUP(K50,make[],2,FALSE))","v":""},null,"",null,{"$f":"IF(O50=\"\",\"\",VLOOKUP(O50,mounting_type[],2,FALSE))","v":""},null,{"$f":"IF(Q50=\"\",\"\",VLOOKUP(Q50,attachment[],2,FALSE))","v":""},null,{"$f":"IF(S50=\"\",\"\",VLOOKUP(S50,purpose[],2,FALSE))","v":""},null,{"$f":"IF(U50=\"\",\"\",VLOOKUP(U50,coating[],2,FALSE))","v":""},null,{"$f":"IF(W50=\"\",\"\",VLOOKUP(W50,pole_in_use[],2,FALSE))","v":""},null,{"$f":"IF(Y50=\"\",\"\",VLOOKUP(Y50,pole_control[],2,FALSE))","v":""},null,{"$f":"IF(AA50=\"\",\"\",VLOOKUP(AA50,power_company[],2,FALSE))","v":""},null,null,null,null,{"$f":"IF(AF50=\"\",\"\",VLOOKUP(AF50,Install_reason[],2,FALSE))","v":""},null,{"$f":"IF(AH50=\"\",\"\",VLOOKUP(AH50,status[],2,FALSE))","v":""},null,null,{"$f":"IF(AK50=\"\",\"\",VLOOKUP(AK50,asset_owner[],2,FALSE))","v":""},null,null,null,null,{"$f":"IF(AP50=\"\",\"\",VLOOKUP(AP50,gps_method[],2,FALSE))","v":""},null,{"$f":"IF(AR50=\"\",\"\",VLOOKUP(AR50,risk_likelihood[],2,FALSE))","v":""},null,{"$f":"IF(AT50=\"\",\"\",VLOOKUP(AT50,risk_consequence[],2,FALSE))","v":""},null,{"$f":"IF(AV50=\"\",\"\",VLOOKUP(AV50,risk[],2,FALSE))","v":""},null,{"$f":"IF(AX50=\"\",\"\",VLOOKUP(AX50,rul_reset[],2,FALSE))","v":""},null,{"$f":"IF(AZ50=\"\",\"\",VLOOKUP(AZ50,use_default_rc[],2,FALSE))","v":""},null,{"$f":"IF(BB50=\"\",\"\",VLOOKUP(BB50,condition[],2,FALSE))","v":""},null,null,{"$f":"IF(BE50=\"\",\"\",VLOOKUP(BE50,Organisation[],2,FALSE))","v":""}]
["null",null,null,null,{"$f":"IF(D51=\"\",\"\",VLOOKUP(D51,side[],2,FALSE))","v":""},null,null,{"$f":"IF(G51=\"\",\"\",VLOOKUP(G51,Material[],2,FALSE))","v":""},null,{"$f":"IF(I51=\"\",\"\",VLOOKUP(I51,shape[],2,FALSE))","v":""},null,{"$f":"IF(K51=\"\",\"\",VLOOKUP(K51,make[],2,FALSE))","v":""},null,"",null,{"$f":"IF(O51=\"\",\"\",VLOOKUP(O51,mounting_type[],2,FALSE))","v":""},null,{"$f":"IF(Q51=\"\",\"\",VLOOKUP(Q51,attachment[],2,FALSE))","v":""},null,{"$f":"IF(S51=\"\",\"\",VLOOKUP(S51,purpose[],2,FALSE))","v":""},null,{"$f":"IF(U51=\"\",\"\",VLOOKUP(U51,coating[],2,FALSE))","v":""},null,{"$f":"IF(W51=\"\",\"\",VLOOKUP(W51,pole_in_use[],2,FALSE))","v":""},null,{"$f":"IF(Y51=\"\",\"\",VLOOKUP(Y51,pole_control[],2,FALSE))","v":""},null,{"$f":"IF(AA51=\"\",\"\",VLOOKUP(AA51,power_company[],2,FALSE))","v":""},null,null,null,null,{"$f":"IF(AF51=\"\",\"\",VLOOKUP(AF51,Install_reason[],2,FALSE))","v":""},null,{"$f":"IF(AH51=\"\",\"\",VLOOKUP(AH51,status[],2,FALSE))","v":""},null,null,{"$f":"IF(AK51=\"\",\"\",VLOOKUP(AK51,asset_owner[],2,FALSE))","v":""},null,null,null,null,{"$f":"IF(AP51=\"\",\"\",VLOOKUP(AP51,gps_method[],2,FALSE))","v":""},null,{"$f":"IF(AR51=\"\",\"\",VLOOKUP(AR51,risk_likelihood[],2,FALSE))","v":""},null,{"$f":"IF(AT51=\"\",\"\",VLOOKUP(AT51,risk_consequence[],2,FALSE))","v":""},null,{"$f":"IF(AV51=\"\",\"\",VLOOKUP(AV51,risk[],2,FALSE))","v":""},null,{"$f":"IF(AX51=\"\",\"\",VLOOKUP(AX51,rul_reset[],2,FALSE))","v":""},null,{"$f":"IF(AZ51=\"\",\"\",VLOOKUP(AZ51,use_default_rc[],2,FALSE))","v":""},null,{"$f":"IF(BB51=\"\",\"\",VLOOKUP(BB51,condition[],2,FALSE))","v":""},null,null,{"$f":"IF(BE51=\"\",\"\",VLOOKUP(BE51,Organisation[],2,FALSE))","v":""}]
["null",null,null,null,{"$f":"IF(D52=\"\",\"\",VLOOKUP(D52,side[],2,FALSE))","v":""},null,null,{"$f":"IF(G52=\"\",\"\",VLOOKUP(G52,Material[],2,FALSE))","v":""},null,{"$f":"IF(I52=\"\",\"\",VLOOKUP(I52,shape[],2,FALSE))","v":""},null,{"$f":"IF(K52=\"\",\"\",VLOOKUP(K52,make[],2,FALSE))","v":""},null,"",null,{"$f":"IF(O52=\"\",\"\",VLOOKUP(O52,mounting_type[],2,FALSE))","v":""},null,{"$f":"IF(Q52=\"\",\"\",VLOOKUP(Q52,attachment[],2,FALSE))","v":""},null,{"$f":"IF(S52=\"\",\"\",VLOOKUP(S52,purpose[],2,FALSE))","v":""},null,{"$f":"IF(U52=\"\",\"\",VLOOKUP(U52,coating[],2,FALSE))","v":""},null,{"$f":"IF(W52=\"\",\"\",VLOOKUP(W52,pole_in_use[],2,FALSE))","v":""},null,{"$f":"IF(Y52=\"\",\"\",VLOOKUP(Y52,pole_control[],2,FALSE))","v":""},null,{"$f":"IF(AA52=\"\",\"\",VLOOKUP(AA52,power_company[],2,FALSE))","v":""},null,null,null,null,{"$f":"IF(AF52=\"\",\"\",VLOOKUP(AF52,Install_reason[],2,FALSE))","v":""},null,{"$f":"IF(AH52=\"\",\"\",VLOOKUP(AH52,status[],2,FALSE))","v":""},null,null,{"$f":"IF(AK52=\"\",\"\",VLOOKUP(AK52,asset_owner[],2,FALSE))","v":""},null,null,null,null,{"$f":"IF(AP52=\"\",\"\",VLOOKUP(AP52,gps_method[],2,FALSE))","v":""},null,{"$f":"IF(AR52=\"\",\"\",VLOOKUP(AR52,risk_likelihood[],2,FALSE))","v":""},null,{"$f":"IF(AT52=\"\",\"\",VLOOKUP(AT52,risk_consequence[],2,FALSE))","v":""},null,{"$f":"IF(AV52=\"\",\"\",VLOOKUP(AV52,risk[],2,FALSE))","v":""},null,{"$f":"IF(AX52=\"\",\"\",VLOOKUP(AX52,rul_reset[],2,FALSE))","v":""},null,{"$f":"IF(AZ52=\"\",\"\",VLOOKUP(AZ52,use_default_rc[],2,FALSE))","v":""},null,{"$f":"IF(BB52=\"\",\"\",VLOOKUP(BB52,condition[],2,FALSE))","v":""},null,null,{"$f":"IF(BE52=\"\",\"\",VLOOKUP(BE52,Organisation[],2,FALSE))","v":""}]
["null",null,null,null,{"$f":"IF(D53=\"\",\"\",VLOOKUP(D53,side[],2,FALSE))","v":""},null,null,{"$f":"IF(G53=\"\",\"\",VLOOKUP(G53,Material[],2,FALSE))","v":""},null,{"$f":"IF(I53=\"\",\"\",VLOOKUP(I53,shape[],2,FALSE))","v":""},null,{"$f":"IF(K53=\"\",\"\",VLOOKUP(K53,make[],2,FALSE))","v":""},null,"",null,{"$f":"IF(O53=\"\",\"\",VLOOKUP(O53,mounting_type[],2,FALSE))","v":""},null,{"$f":"IF(Q53=\"\",\"\",VLOOKUP(Q53,attachment[],2,FALSE))","v":""},null,{"$f":"IF(S53=\"\",\"\",VLOOKUP(S53,purpose[],2,FALSE))","v":""},null,{"$f":"IF(U53=\"\",\"\",VLOOKUP(U53,coating[],2,FALSE))","v":""},null,{"$f":"IF(W53=\"\",\"\",VLOOKUP(W53,pole_in_use[],2,FALSE))","v":""},null,{"$f":"IF(Y53=\"\",\"\",VLOOKUP(Y53,pole_control[],2,FALSE))","v":""},null,{"$f":"IF(AA53=\"\",\"\",VLOOKUP(AA53,power_company[],2,FALSE))","v":""},null,null,null,null,{"$f":"IF(AF53=\"\",\"\",VLOOKUP(AF53,Install_reason[],2,FALSE))","v":""},null,{"$f":"IF(AH53=\"\",\"\",VLOOKUP(AH53,status[],2,FALSE))","v":""},null,null,{"$f":"IF(AK53=\"\",\"\",VLOOKUP(AK53,asset_owner[],2,FALSE))","v":""},null,null,null,null,{"$f":"IF(AP53=\"\",\"\",VLOOKUP(AP53,gps_method[],2,FALSE))","v":""},null,{"$f":"IF(AR53=\"\",\"\",VLOOKUP(AR53,risk_likelihood[],2,FALSE))","v":""},null,{"$f":"IF(AT53=\"\",\"\",VLOOKUP(AT53,risk_consequence[],2,FALSE))","v":""},null,{"$f":"IF(AV53=\"\",\"\",VLOOKUP(AV53,risk[],2,FALSE))","v":""},null,{"$f":"IF(AX53=\"\",\"\",VLOOKUP(AX53,rul_reset[],2,FALSE))","v":""},null,{"$f":"IF(AZ53=\"\",\"\",VLOOKUP(AZ53,use_default_rc[],2,FALSE))","v":""},null,{"$f":"IF(BB53=\"\",\"\",VLOOKUP(BB53,condition[],2,FALSE))","v":""},null,null,{"$f":"IF(BE53=\"\",\"\",VLOOKUP(BE53,Organisation[],2,FALSE))","v":""}]
["null",null,null,null,{"$f":"IF(D54=\"\",\"\",VLOOKUP(D54,side[],2,FALSE))","v":""},null,null,{"$f":"IF(G54=\"\",\"\",VLOOKUP(G54,Material[],2,FALSE))","v":""},null,{"$f":"IF(I54=\"\",\"\",VLOOKUP(I54,shape[],2,FALSE))","v":""},null,{"$f":"IF(K54=\"\",\"\",VLOOKUP(K54,make[],2,FALSE))","v":""},null,"",null,{"$f":"IF(O54=\"\",\"\",VLOOKUP(O54,mounting_type[],2,FALSE))","v":""},null,{"$f":"IF(Q54=\"\",\"\",VLOOKUP(Q54,attachment[],2,FALSE))","v":""},null,{"$f":"IF(S54=\"\",\"\",VLOOKUP(S54,purpose[],2,FALSE))","v":""},null,{"$f":"IF(U54=\"\",\"\",VLOOKUP(U54,coating[],2,FALSE))","v":""},null,{"$f":"IF(W54=\"\",\"\",VLOOKUP(W54,pole_in_use[],2,FALSE))","v":""},null,{"$f":"IF(Y54=\"\",\"\",VLOOKUP(Y54,pole_control[],2,FALSE))","v":""},null,{"$f":"IF(AA54=\"\",\"\",VLOOKUP(AA54,power_company[],2,FALSE))","v":""},null,null,null,null,{"$f":"IF(AF54=\"\",\"\",VLOOKUP(AF54,Install_reason[],2,FALSE))","v":""},null,{"$f":"IF(AH54=\"\",\"\",VLOOKUP(AH54,status[],2,FALSE))","v":""},null,null,{"$f":"IF(AK54=\"\",\"\",VLOOKUP(AK54,asset_owner[],2,FALSE))","v":""},null,null,null,null,{"$f":"IF(AP54=\"\",\"\",VLOOKUP(AP54,gps_method[],2,FALSE))","v":""},null,{"$f":"IF(AR54=\"\",\"\",VLOOKUP(AR54,risk_likelihood[],2,FALSE))","v":""},null,{"$f":"IF(AT54=\"\",\"\",VLOOKUP(AT54,risk_consequence[],2,FALSE))","v":""},null,{"$f":"IF(AV54=\"\",\"\",VLOOKUP(AV54,risk[],2,FALSE))","v":""},null,{"$f":"IF(AX54=\"\",\"\",VLOOKUP(AX54,rul_reset[],2,FALSE))","v":""},null,{"$f":"IF(AZ54=\"\",\"\",VLOOKUP(AZ54,use_default_rc[],2,FALSE))","v":""},null,{"$f":"IF(BB54=\"\",\"\",VLOOKUP(BB54,condition[],2,FALSE))","v":""},null,null,{"$f":"IF(BE54=\"\",\"\",VLOOKUP(BE54,Organisation[],2,FALSE))","v":""}]
["null",null,null,null,{"$f":"IF(D55=\"\",\"\",VLOOKUP(D55,side[],2,FALSE))","v":""},null,null,{"$f":"IF(G55=\"\",\"\",VLOOKUP(G55,Material[],2,FALSE))","v":""},null,{"$f":"IF(I55=\"\",\"\",VLOOKUP(I55,shape[],2,FALSE))","v":""},null,{"$f":"IF(K55=\"\",\"\",VLOOKUP(K55,make[],2,FALSE))","v":""},null,"",null,{"$f":"IF(O55=\"\",\"\",VLOOKUP(O55,mounting_type[],2,FALSE))","v":""},null,{"$f":"IF(Q55=\"\",\"\",VLOOKUP(Q55,attachment[],2,FALSE))","v":""},null,{"$f":"IF(S55=\"\",\"\",VLOOKUP(S55,purpose[],2,FALSE))","v":""},null,{"$f":"IF(U55=\"\",\"\",VLOOKUP(U55,coating[],2,FALSE))","v":""},null,{"$f":"IF(W55=\"\",\"\",VLOOKUP(W55,pole_in_use[],2,FALSE))","v":""},null,{"$f":"IF(Y55=\"\",\"\",VLOOKUP(Y55,pole_control[],2,FALSE))","v":""},null,{"$f":"IF(AA55=\"\",\"\",VLOOKUP(AA55,power_company[],2,FALSE))","v":""},null,null,null,null,{"$f":"IF(AF55=\"\",\"\",VLOOKUP(AF55,Install_reason[],2,FALSE))","v":""},null,{"$f":"IF(AH55=\"\",\"\",VLOOKUP(AH55,status[],2,FALSE))","v":""},null,null,{"$f":"IF(AK55=\"\",\"\",VLOOKUP(AK55,asset_owner[],2,FALSE))","v":""},null,null,null,null,{"$f":"IF(AP55=\"\",\"\",VLOOKUP(AP55,gps_method[],2,FALSE))","v":""},null,{"$f":"IF(AR55=\"\",\"\",VLOOKUP(AR55,risk_likelihood[],2,FALSE))","v":""},null,{"$f":"IF(AT55=\"\",\"\",VLOOKUP(AT55,risk_consequence[],2,FALSE))","v":""},null,{"$f":"IF(AV55=\"\",\"\",VLOOKUP(AV55,risk[],2,FALSE))","v":""},null,{"$f":"IF(AX55=\"\",\"\",VLOOKUP(AX55,rul_reset[],2,FALSE))","v":""},null,{"$f":"IF(AZ55=\"\",\"\",VLOOKUP(AZ55,use_default_rc[],2,FALSE))","v":""},null,{"$f":"IF(BB55=\"\",\"\",VLOOKUP(BB55,condition[],2,FALSE))","v":""},null,null,{"$f":"IF(BE55=\"\",\"\",VLOOKUP(BE55,Organisation[],2,FALSE))","v":""}]
["null",null,null,null,{"$f":"IF(D56=\"\",\"\",VLOOKUP(D56,side[],2,FALSE))","v":""},null,null,{"$f":"IF(G56=\"\",\"\",VLOOKUP(G56,Material[],2,FALSE))","v":""},null,{"$f":"IF(I56=\"\",\"\",VLOOKUP(I56,shape[],2,FALSE))","v":""},null,{"$f":"IF(K56=\"\",\"\",VLOOKUP(K56,make[],2,FALSE))","v":""},null,"",null,{"$f":"IF(O56=\"\",\"\",VLOOKUP(O56,mounting_type[],2,FALSE))","v":""},null,{"$f":"IF(Q56=\"\",\"\",VLOOKUP(Q56,attachment[],2,FALSE))","v":""},null,{"$f":"IF(S56=\"\",\"\",VLOOKUP(S56,purpose[],2,FALSE))","v":""},null,{"$f":"IF(U56=\"\",\"\",VLOOKUP(U56,coating[],2,FALSE))","v":""},null,{"$f":"IF(W56=\"\",\"\",VLOOKUP(W56,pole_in_use[],2,FALSE))","v":""},null,{"$f":"IF(Y56=\"\",\"\",VLOOKUP(Y56,pole_control[],2,FALSE))","v":""},null,{"$f":"IF(AA56=\"\",\"\",VLOOKUP(AA56,power_company[],2,FALSE))","v":""},null,null,null,null,{"$f":"IF(AF56=\"\",\"\",VLOOKUP(AF56,Install_reason[],2,FALSE))","v":""},null,{"$f":"IF(AH56=\"\",\"\",VLOOKUP(AH56,status[],2,FALSE))","v":""},null,null,{"$f":"IF(AK56=\"\",\"\",VLOOKUP(AK56,asset_owner[],2,FALSE))","v":""},null,null,null,null,{"$f":"IF(AP56=\"\",\"\",VLOOKUP(AP56,gps_method[],2,FALSE))","v":""},null,{"$f":"IF(AR56=\"\",\"\",VLOOKUP(AR56,risk_likelihood[],2,FALSE))","v":""},null,{"$f":"IF(AT56=\"\",\"\",VLOOKUP(AT56,risk_consequence[],2,FALSE))","v":""},null,{"$f":"IF(AV56=\"\",\"\",VLOOKUP(AV56,risk[],2,FALSE))","v":""},null,{"$f":"IF(AX56=\"\",\"\",VLOOKUP(AX56,rul_reset[],2,FALSE))","v":""},null,{"$f":"IF(AZ56=\"\",\"\",VLOOKUP(AZ56,use_default_rc[],2,FALSE))","v":""},null,{"$f":"IF(BB56=\"\",\"\",VLOOKUP(BB56,condition[],2,FALSE))","v":""},null,null,{"$f":"IF(BE56=\"\",\"\",VLOOKUP(BE56,Organisation[],2,FALSE))","v":""}]
["null",null,null,null,{"$f":"IF(D57=\"\",\"\",VLOOKUP(D57,side[],2,FALSE))","v":""},null,null,{"$f":"IF(G57=\"\",\"\",VLOOKUP(G57,Material[],2,FALSE))","v":""},null,{"$f":"IF(I57=\"\",\"\",VLOOKUP(I57,shape[],2,FALSE))","v":""},null,{"$f":"IF(K57=\"\",\"\",VLOOKUP(K57,make[],2,FALSE))","v":""},null,"",null,{"$f":"IF(O57=\"\",\"\",VLOOKUP(O57,mounting_type[],2,FALSE))","v":""},null,{"$f":"IF(Q57=\"\",\"\",VLOOKUP(Q57,attachment[],2,FALSE))","v":""},null,{"$f":"IF(S57=\"\",\"\",VLOOKUP(S57,purpose[],2,FALSE))","v":""},null,{"$f":"IF(U57=\"\",\"\",VLOOKUP(U57,coating[],2,FALSE))","v":""},null,{"$f":"IF(W57=\"\",\"\",VLOOKUP(W57,pole_in_use[],2,FALSE))","v":""},null,{"$f":"IF(Y57=\"\",\"\",VLOOKUP(Y57,pole_control[],2,FALSE))","v":""},null,{"$f":"IF(AA57=\"\",\"\",VLOOKUP(AA57,power_company[],2,FALSE))","v":""},null,null,null,null,{"$f":"IF(AF57=\"\",\"\",VLOOKUP(AF57,Install_reason[],2,FALSE))","v":""},null,{"$f":"IF(AH57=\"\",\"\",VLOOKUP(AH57,status[],2,FALSE))","v":""},null,null,{"$f":"IF(AK57=\"\",\"\",VLOOKUP(AK57,asset_owner[],2,FALSE))","v":""},null,null,null,null,{"$f":"IF(AP57=\"\",\"\",VLOOKUP(AP57,gps_method[],2,FALSE))","v":""},null,{"$f":"IF(AR57=\"\",\"\",VLOOKUP(AR57,risk_likelihood[],2,FALSE))","v":""},null,{"$f":"IF(AT57=\"\",\"\",VLOOKUP(AT57,risk_consequence[],2,FALSE))","v":""},null,{"$f":"IF(AV57=\"\",\"\",VLOOKUP(AV57,risk[],2,FALSE))","v":""},null,{"$f":"IF(AX57=\"\",\"\",VLOOKUP(AX57,rul_reset[],2,FALSE))","v":""},null,{"$f":"IF(AZ57=\"\",\"\",VLOOKUP(AZ57,use_default_rc[],2,FALSE))","v":""},null,{"$f":"IF(BB57=\"\",\"\",VLOOKUP(BB57,condition[],2,FALSE))","v":""},null,null,{"$f":"IF(BE57=\"\",\"\",VLOOKUP(BE57,Organisation[],2,FALSE))","v":""}]
["null",null,null,null,{"$f":"IF(D58=\"\",\"\",VLOOKUP(D58,side[],2,FALSE))","v":""},null,null,{"$f":"IF(G58=\"\",\"\",VLOOKUP(G58,Material[],2,FALSE))","v":""},null,{"$f":"IF(I58=\"\",\"\",VLOOKUP(I58,shape[],2,FALSE))","v":""},null,{"$f":"IF(K58=\"\",\"\",VLOOKUP(K58,make[],2,FALSE))","v":""},null,"",null,{"$f":"IF(O58=\"\",\"\",VLOOKUP(O58,mounting_type[],2,FALSE))","v":""},null,{"$f":"IF(Q58=\"\",\"\",VLOOKUP(Q58,attachment[],2,FALSE))","v":""},null,{"$f":"IF(S58=\"\",\"\",VLOOKUP(S58,purpose[],2,FALSE))","v":""},null,{"$f":"IF(U58=\"\",\"\",VLOOKUP(U58,coating[],2,FALSE))","v":""},null,{"$f":"IF(W58=\"\",\"\",VLOOKUP(W58,pole_in_use[],2,FALSE))","v":""},null,{"$f":"IF(Y58=\"\",\"\",VLOOKUP(Y58,pole_control[],2,FALSE))","v":""},null,{"$f":"IF(AA58=\"\",\"\",VLOOKUP(AA58,power_company[],2,FALSE))","v":""},null,null,null,null,{"$f":"IF(AF58=\"\",\"\",VLOOKUP(AF58,Install_reason[],2,FALSE))","v":""},null,{"$f":"IF(AH58=\"\",\"\",VLOOKUP(AH58,status[],2,FALSE))","v":""},null,null,{"$f":"IF(AK58=\"\",\"\",VLOOKUP(AK58,asset_owner[],2,FALSE))","v":""},null,null,null,null,{"$f":"IF(AP58=\"\",\"\",VLOOKUP(AP58,gps_method[],2,FALSE))","v":""},null,{"$f":"IF(AR58=\"\",\"\",VLOOKUP(AR58,risk_likelihood[],2,FALSE))","v":""},null,{"$f":"IF(AT58=\"\",\"\",VLOOKUP(AT58,risk_consequence[],2,FALSE))","v":""},null,{"$f":"IF(AV58=\"\",\"\",VLOOKUP(AV58,risk[],2,FALSE))","v":""},null,{"$f":"IF(AX58=\"\",\"\",VLOOKUP(AX58,rul_reset[],2,FALSE))","v":""},null,{"$f":"IF(AZ58=\"\",\"\",VLOOKUP(AZ58,use_default_rc[],2,FALSE))","v":""},null,{"$f":"IF(BB58=\"\",\"\",VLOOKUP(BB58,condition[],2,FALSE))","v":""},null,null,{"$f":"IF(BE58=\"\",\"\",VLOOKUP(BE58,Organisation[],2,FALSE))","v":""}]
["null",null,null,null,{"$f":"IF(D59=\"\",\"\",VLOOKUP(D59,side[],2,FALSE))","v":""},null,null,{"$f":"IF(G59=\"\",\"\",VLOOKUP(G59,Material[],2,FALSE))","v":""},null,{"$f":"IF(I59=\"\",\"\",VLOOKUP(I59,shape[],2,FALSE))","v":""},null,{"$f":"IF(K59=\"\",\"\",VLOOKUP(K59,make[],2,FALSE))","v":""},null,"",null,{"$f":"IF(O59=\"\",\"\",VLOOKUP(O59,mounting_type[],2,FALSE))","v":""},null,{"$f":"IF(Q59=\"\",\"\",VLOOKUP(Q59,attachment[],2,FALSE))","v":""},null,{"$f":"IF(S59=\"\",\"\",VLOOKUP(S59,purpose[],2,FALSE))","v":""},null,{"$f":"IF(U59=\"\",\"\",VLOOKUP(U59,coating[],2,FALSE))","v":""},null,{"$f":"IF(W59=\"\",\"\",VLOOKUP(W59,pole_in_use[],2,FALSE))","v":""},null,{"$f":"IF(Y59=\"\",\"\",VLOOKUP(Y59,pole_control[],2,FALSE))","v":""},null,{"$f":"IF(AA59=\"\",\"\",VLOOKUP(AA59,power_company[],2,FALSE))","v":""},null,null,null,null,{"$f":"IF(AF59=\"\",\"\",VLOOKUP(AF59,Install_reason[],2,FALSE))","v":""},null,{"$f":"IF(AH59=\"\",\"\",VLOOKUP(AH59,status[],2,FALSE))","v":""},null,null,{"$f":"IF(AK59=\"\",\"\",VLOOKUP(AK59,asset_owner[],2,FALSE))","v":""},null,null,null,null,{"$f":"IF(AP59=\"\",\"\",VLOOKUP(AP59,gps_method[],2,FALSE))","v":""},null,{"$f":"IF(AR59=\"\",\"\",VLOOKUP(AR59,risk_likelihood[],2,FALSE))","v":""},null,{"$f":"IF(AT59=\"\",\"\",VLOOKUP(AT59,risk_consequence[],2,FALSE))","v":""},null,{"$f":"IF(AV59=\"\",\"\",VLOOKUP(AV59,risk[],2,FALSE))","v":""},null,{"$f":"IF(AX59=\"\",\"\",VLOOKUP(AX59,rul_reset[],2,FALSE))","v":""},null,{"$f":"IF(AZ59=\"\",\"\",VLOOKUP(AZ59,use_default_rc[],2,FALSE))","v":""},null,{"$f":"IF(BB59=\"\",\"\",VLOOKUP(BB59,condition[],2,FALSE))","v":""},null,null,{"$f":"IF(BE59=\"\",\"\",VLOOKUP(BE59,Organisation[],2,FALSE))","v":""}]
["null",null,null,null,{"$f":"IF(D60=\"\",\"\",VLOOKUP(D60,side[],2,FALSE))","v":""},null,null,{"$f":"IF(G60=\"\",\"\",VLOOKUP(G60,Material[],2,FALSE))","v":""},null,{"$f":"IF(I60=\"\",\"\",VLOOKUP(I60,shape[],2,FALSE))","v":""},null,{"$f":"IF(K60=\"\",\"\",VLOOKUP(K60,make[],2,FALSE))","v":""},null,"",null,{"$f":"IF(O60=\"\",\"\",VLOOKUP(O60,mounting_type[],2,FALSE))","v":""},null,{"$f":"IF(Q60=\"\",\"\",VLOOKUP(Q60,attachment[],2,FALSE))","v":""},null,{"$f":"IF(S60=\"\",\"\",VLOOKUP(S60,purpose[],2,FALSE))","v":""},null,{"$f":"IF(U60=\"\",\"\",VLOOKUP(U60,coating[],2,FALSE))","v":""},null,{"$f":"IF(W60=\"\",\"\",VLOOKUP(W60,pole_in_use[],2,FALSE))","v":""},null,{"$f":"IF(Y60=\"\",\"\",VLOOKUP(Y60,pole_control[],2,FALSE))","v":""},null,{"$f":"IF(AA60=\"\",\"\",VLOOKUP(AA60,power_company[],2,FALSE))","v":""},null,null,null,null,{"$f":"IF(AF60=\"\",\"\",VLOOKUP(AF60,Install_reason[],2,FALSE))","v":""},null,{"$f":"IF(AH60=\"\",\"\",VLOOKUP(AH60,status[],2,FALSE))","v":""},null,null,{"$f":"IF(AK60=\"\",\"\",VLOOKUP(AK60,asset_owner[],2,FALSE))","v":""},null,null,null,null,{"$f":"IF(AP60=\"\",\"\",VLOOKUP(AP60,gps_method[],2,FALSE))","v":""},null,{"$f":"IF(AR60=\"\",\"\",VLOOKUP(AR60,risk_likelihood[],2,FALSE))","v":""},null,{"$f":"IF(AT60=\"\",\"\",VLOOKUP(AT60,risk_consequence[],2,FALSE))","v":""},null,{"$f":"IF(AV60=\"\",\"\",VLOOKUP(AV60,risk[],2,FALSE))","v":""},null,{"$f":"IF(AX60=\"\",\"\",VLOOKUP(AX60,rul_reset[],2,FALSE))","v":""},null,{"$f":"IF(AZ60=\"\",\"\",VLOOKUP(AZ60,use_default_rc[],2,FALSE))","v":""},null,{"$f":"IF(BB60=\"\",\"\",VLOOKUP(BB60,condition[],2,FALSE))","v":""},null,null,{"$f":"IF(BE60=\"\",\"\",VLOOKUP(BE60,Organisation[],2,FALSE))","v":""}]
["null",null,null,null,{"$f":"IF(D61=\"\",\"\",VLOOKUP(D61,side[],2,FALSE))","v":""},null,null,{"$f":"IF(G61=\"\",\"\",VLOOKUP(G61,Material[],2,FALSE))","v":""},null,{"$f":"IF(I61=\"\",\"\",VLOOKUP(I61,shape[],2,FALSE))","v":""},null,{"$f":"IF(K61=\"\",\"\",VLOOKUP(K61,make[],2,FALSE))","v":""},null,"",null,{"$f":"IF(O61=\"\",\"\",VLOOKUP(O61,mounting_type[],2,FALSE))","v":""},null,{"$f":"IF(Q61=\"\",\"\",VLOOKUP(Q61,attachment[],2,FALSE))","v":""},null,{"$f":"IF(S61=\"\",\"\",VLOOKUP(S61,purpose[],2,FALSE))","v":""},null,{"$f":"IF(U61=\"\",\"\",VLOOKUP(U61,coating[],2,FALSE))","v":""},null,{"$f":"IF(W61=\"\",\"\",VLOOKUP(W61,pole_in_use[],2,FALSE))","v":""},null,{"$f":"IF(Y61=\"\",\"\",VLOOKUP(Y61,pole_control[],2,FALSE))","v":""},null,{"$f":"IF(AA61=\"\",\"\",VLOOKUP(AA61,power_company[],2,FALSE))","v":""},null,null,null,null,{"$f":"IF(AF61=\"\",\"\",VLOOKUP(AF61,Install_reason[],2,FALSE))","v":""},null,{"$f":"IF(AH61=\"\",\"\",VLOOKUP(AH61,status[],2,FALSE))","v":""},null,null,{"$f":"IF(AK61=\"\",\"\",VLOOKUP(AK61,asset_owner[],2,FALSE))","v":""},null,null,null,null,{"$f":"IF(AP61=\"\",\"\",VLOOKUP(AP61,gps_method[],2,FALSE))","v":""},null,{"$f":"IF(AR61=\"\",\"\",VLOOKUP(AR61,risk_likelihood[],2,FALSE))","v":""},null,{"$f":"IF(AT61=\"\",\"\",VLOOKUP(AT61,risk_consequence[],2,FALSE))","v":""},null,{"$f":"IF(AV61=\"\",\"\",VLOOKUP(AV61,risk[],2,FALSE))","v":""},null,{"$f":"IF(AX61=\"\",\"\",VLOOKUP(AX61,rul_reset[],2,FALSE))","v":""},null,{"$f":"IF(AZ61=\"\",\"\",VLOOKUP(AZ61,use_default_rc[],2,FALSE))","v":""},null,{"$f":"IF(BB61=\"\",\"\",VLOOKUP(BB61,condition[],2,FALSE))","v":""},null,null,{"$f":"IF(BE61=\"\",\"\",VLOOKUP(BE61,Organisation[],2,FALSE))","v":""}]
["null",null,null,null,{"$f":"IF(D62=\"\",\"\",VLOOKUP(D62,side[],2,FALSE))","v":""},null,null,{"$f":"IF(G62=\"\",\"\",VLOOKUP(G62,Material[],2,FALSE))","v":""},null,{"$f":"IF(I62=\"\",\"\",VLOOKUP(I62,shape[],2,FALSE))","v":""},null,{"$f":"IF(K62=\"\",\"\",VLOOKUP(K62,make[],2,FALSE))","v":""},null,"",null,{"$f":"IF(O62=\"\",\"\",VLOOKUP(O62,mounting_type[],2,FALSE))","v":""},null,{"$f":"IF(Q62=\"\",\"\",VLOOKUP(Q62,attachment[],2,FALSE))","v":""},null,{"$f":"IF(S62=\"\",\"\",VLOOKUP(S62,purpose[],2,FALSE))","v":""},null,{"$f":"IF(U62=\"\",\"\",VLOOKUP(U62,coating[],2,FALSE))","v":""},null,{"$f":"IF(W62=\"\",\"\",VLOOKUP(W62,pole_in_use[],2,FALSE))","v":""},null,{"$f":"IF(Y62=\"\",\"\",VLOOKUP(Y62,pole_control[],2,FALSE))","v":""},null,{"$f":"IF(AA62=\"\",\"\",VLOOKUP(AA62,power_company[],2,FALSE))","v":""},null,null,null,null,{"$f":"IF(AF62=\"\",\"\",VLOOKUP(AF62,Install_reason[],2,FALSE))","v":""},null,{"$f":"IF(AH62=\"\",\"\",VLOOKUP(AH62,status[],2,FALSE))","v":""},null,null,{"$f":"IF(AK62=\"\",\"\",VLOOKUP(AK62,asset_owner[],2,FALSE))","v":""},null,null,null,null,{"$f":"IF(AP62=\"\",\"\",VLOOKUP(AP62,gps_method[],2,FALSE))","v":""},null,{"$f":"IF(AR62=\"\",\"\",VLOOKUP(AR62,risk_likelihood[],2,FALSE))","v":""},null,{"$f":"IF(AT62=\"\",\"\",VLOOKUP(AT62,risk_consequence[],2,FALSE))","v":""},null,{"$f":"IF(AV62=\"\",\"\",VLOOKUP(AV62,risk[],2,FALSE))","v":""},null,{"$f":"IF(AX62=\"\",\"\",VLOOKUP(AX62,rul_reset[],2,FALSE))","v":""},null,{"$f":"IF(AZ62=\"\",\"\",VLOOKUP(AZ62,use_default_rc[],2,FALSE))","v":""},null,{"$f":"IF(BB62=\"\",\"\",VLOOKUP(BB62,condition[],2,FALSE))","v":""},null,null,{"$f":"IF(BE62=\"\",\"\",VLOOKUP(BE62,Organisation[],2,FALSE))","v":""}]
["null",null,null,null,{"$f":"IF(D63=\"\",\"\",VLOOKUP(D63,side[],2,FALSE))","v":""},null,null,{"$f":"IF(G63=\"\",\"\",VLOOKUP(G63,Material[],2,FALSE))","v":""},null,{"$f":"IF(I63=\"\",\"\",VLOOKUP(I63,shape[],2,FALSE))","v":""},null,{"$f":"IF(K63=\"\",\"\",VLOOKUP(K63,make[],2,FALSE))","v":""},null,"",null,{"$f":"IF(O63=\"\",\"\",VLOOKUP(O63,mounting_type[],2,FALSE))","v":""},null,{"$f":"IF(Q63=\"\",\"\",VLOOKUP(Q63,attachment[],2,FALSE))","v":""},null,{"$f":"IF(S63=\"\",\"\",VLOOKUP(S63,purpose[],2,FALSE))","v":""},null,{"$f":"IF(U63=\"\",\"\",VLOOKUP(U63,coating[],2,FALSE))","v":""},null,{"$f":"IF(W63=\"\",\"\",VLOOKUP(W63,pole_in_use[],2,FALSE))","v":""},null,{"$f":"IF(Y63=\"\",\"\",VLOOKUP(Y63,pole_control[],2,FALSE))","v":""},null,{"$f":"IF(AA63=\"\",\"\",VLOOKUP(AA63,power_company[],2,FALSE))","v":""},null,null,null,null,{"$f":"IF(AF63=\"\",\"\",VLOOKUP(AF63,Install_reason[],2,FALSE))","v":""},null,{"$f":"IF(AH63=\"\",\"\",VLOOKUP(AH63,status[],2,FALSE))","v":""},null,null,{"$f":"IF(AK63=\"\",\"\",VLOOKUP(AK63,asset_owner[],2,FALSE))","v":""},null,null,null,null,{"$f":"IF(AP63=\"\",\"\",VLOOKUP(AP63,gps_method[],2,FALSE))","v":""},null,{"$f":"IF(AR63=\"\",\"\",VLOOKUP(AR63,risk_likelihood[],2,FALSE))","v":""},null,{"$f":"IF(AT63=\"\",\"\",VLOOKUP(AT63,risk_consequence[],2,FALSE))","v":""},null,{"$f":"IF(AV63=\"\",\"\",VLOOKUP(AV63,risk[],2,FALSE))","v":""},null,{"$f":"IF(AX63=\"\",\"\",VLOOKUP(AX63,rul_reset[],2,FALSE))","v":""},null,{"$f":"IF(AZ63=\"\",\"\",VLOOKUP(AZ63,use_default_rc[],2,FALSE))","v":""},null,{"$f":"IF(BB63=\"\",\"\",VLOOKUP(BB63,condition[],2,FALSE))","v":""},null,null,{"$f":"IF(BE63=\"\",\"\",VLOOKUP(BE63,Organisation[],2,FALSE))","v":""}]
["null",null,null,null,{"$f":"IF(D64=\"\",\"\",VLOOKUP(D64,side[],2,FALSE))","v":""},null,null,{"$f":"IF(G64=\"\",\"\",VLOOKUP(G64,Material[],2,FALSE))","v":""},null,{"$f":"IF(I64=\"\",\"\",VLOOKUP(I64,shape[],2,FALSE))","v":""},null,{"$f":"IF(K64=\"\",\"\",VLOOKUP(K64,make[],2,FALSE))","v":""},null,"",null,{"$f":"IF(O64=\"\",\"\",VLOOKUP(O64,mounting_type[],2,FALSE))","v":""},null,{"$f":"IF(Q64=\"\",\"\",VLOOKUP(Q64,attachment[],2,FALSE))","v":""},null,{"$f":"IF(S64=\"\",\"\",VLOOKUP(S64,purpose[],2,FALSE))","v":""},null,{"$f":"IF(U64=\"\",\"\",VLOOKUP(U64,coating[],2,FALSE))","v":""},null,{"$f":"IF(W64=\"\",\"\",VLOOKUP(W64,pole_in_use[],2,FALSE))","v":""},null,{"$f":"IF(Y64=\"\",\"\",VLOOKUP(Y64,pole_control[],2,FALSE))","v":""},null,{"$f":"IF(AA64=\"\",\"\",VLOOKUP(AA64,power_company[],2,FALSE))","v":""},null,null,null,null,{"$f":"IF(AF64=\"\",\"\",VLOOKUP(AF64,Install_reason[],2,FALSE))","v":""},null,{"$f":"IF(AH64=\"\",\"\",VLOOKUP(AH64,status[],2,FALSE))","v":""},null,null,{"$f":"IF(AK64=\"\",\"\",VLOOKUP(AK64,asset_owner[],2,FALSE))","v":""},null,null,null,null,{"$f":"IF(AP64=\"\",\"\",VLOOKUP(AP64,gps_method[],2,FALSE))","v":""},null,{"$f":"IF(AR64=\"\",\"\",VLOOKUP(AR64,risk_likelihood[],2,FALSE))","v":""},null,{"$f":"IF(AT64=\"\",\"\",VLOOKUP(AT64,risk_consequence[],2,FALSE))","v":""},null,{"$f":"IF(AV64=\"\",\"\",VLOOKUP(AV64,risk[],2,FALSE))","v":""},null,{"$f":"IF(AX64=\"\",\"\",VLOOKUP(AX64,rul_reset[],2,FALSE))","v":""},null,{"$f":"IF(AZ64=\"\",\"\",VLOOKUP(AZ64,use_default_rc[],2,FALSE))","v":""},null,{"$f":"IF(BB64=\"\",\"\",VLOOKUP(BB64,condition[],2,FALSE))","v":""},null,null,{"$f":"IF(BE64=\"\",\"\",VLOOKUP(BE64,Organisation[],2,FALSE))","v":""}]
["null",null,null,null,{"$f":"IF(D65=\"\",\"\",VLOOKUP(D65,side[],2,FALSE))","v":""},null,null,{"$f":"IF(G65=\"\",\"\",VLOOKUP(G65,Material[],2,FALSE))","v":""},null,{"$f":"IF(I65=\"\",\"\",VLOOKUP(I65,shape[],2,FALSE))","v":""},null,{"$f":"IF(K65=\"\",\"\",VLOOKUP(K65,make[],2,FALSE))","v":""},null,"",null,{"$f":"IF(O65=\"\",\"\",VLOOKUP(O65,mounting_type[],2,FALSE))","v":""},null,{"$f":"IF(Q65=\"\",\"\",VLOOKUP(Q65,attachment[],2,FALSE))","v":""},null,{"$f":"IF(S65=\"\",\"\",VLOOKUP(S65,purpose[],2,FALSE))","v":""},null,{"$f":"IF(U65=\"\",\"\",VLOOKUP(U65,coating[],2,FALSE))","v":""},null,{"$f":"IF(W65=\"\",\"\",VLOOKUP(W65,pole_in_use[],2,FALSE))","v":""},null,{"$f":"IF(Y65=\"\",\"\",VLOOKUP(Y65,pole_control[],2,FALSE))","v":""},null,{"$f":"IF(AA65=\"\",\"\",VLOOKUP(AA65,power_company[],2,FALSE))","v":""},null,null,null,null,{"$f":"IF(AF65=\"\",\"\",VLOOKUP(AF65,Install_reason[],2,FALSE))","v":""},null,{"$f":"IF(AH65=\"\",\"\",VLOOKUP(AH65,status[],2,FALSE))","v":""},null,null,{"$f":"IF(AK65=\"\",\"\",VLOOKUP(AK65,asset_owner[],2,FALSE))","v":""},null,null,null,null,{"$f":"IF(AP65=\"\",\"\",VLOOKUP(AP65,gps_method[],2,FALSE))","v":""},null,{"$f":"IF(AR65=\"\",\"\",VLOOKUP(AR65,risk_likelihood[],2,FALSE))","v":""},null,{"$f":"IF(AT65=\"\",\"\",VLOOKUP(AT65,risk_consequence[],2,FALSE))","v":""},null,{"$f":"IF(AV65=\"\",\"\",VLOOKUP(AV65,risk[],2,FALSE))","v":""},null,{"$f":"IF(AX65=\"\",\"\",VLOOKUP(AX65,rul_reset[],2,FALSE))","v":""},null,{"$f":"IF(AZ65=\"\",\"\",VLOOKUP(AZ65,use_default_rc[],2,FALSE))","v":""},null,{"$f":"IF(BB65=\"\",\"\",VLOOKUP(BB65,condition[],2,FALSE))","v":""},null,null,{"$f":"IF(BE65=\"\",\"\",VLOOKUP(BE65,Organisation[],2,FALSE))","v":""}]
["null",null,null,null,{"$f":"IF(D66=\"\",\"\",VLOOKUP(D66,side[],2,FALSE))","v":""},null,null,{"$f":"IF(G66=\"\",\"\",VLOOKUP(G66,Material[],2,FALSE))","v":""},null,{"$f":"IF(I66=\"\",\"\",VLOOKUP(I66,shape[],2,FALSE))","v":""},null,{"$f":"IF(K66=\"\",\"\",VLOOKUP(K66,make[],2,FALSE))","v":""},null,"",null,{"$f":"IF(O66=\"\",\"\",VLOOKUP(O66,mounting_type[],2,FALSE))","v":""},null,{"$f":"IF(Q66=\"\",\"\",VLOOKUP(Q66,attachment[],2,FALSE))","v":""},null,{"$f":"IF(S66=\"\",\"\",VLOOKUP(S66,purpose[],2,FALSE))","v":""},null,{"$f":"IF(U66=\"\",\"\",VLOOKUP(U66,coating[],2,FALSE))","v":""},null,{"$f":"IF(W66=\"\",\"\",VLOOKUP(W66,pole_in_use[],2,FALSE))","v":""},null,{"$f":"IF(Y66=\"\",\"\",VLOOKUP(Y66,pole_control[],2,FALSE))","v":""},null,{"$f":"IF(AA66=\"\",\"\",VLOOKUP(AA66,power_company[],2,FALSE))","v":""},null,null,null,null,{"$f":"IF(AF66=\"\",\"\",VLOOKUP(AF66,Install_reason[],2,FALSE))","v":""},null,{"$f":"IF(AH66=\"\",\"\",VLOOKUP(AH66,status[],2,FALSE))","v":""},null,null,{"$f":"IF(AK66=\"\",\"\",VLOOKUP(AK66,asset_owner[],2,FALSE))","v":""},null,null,null,null,{"$f":"IF(AP66=\"\",\"\",VLOOKUP(AP66,gps_method[],2,FALSE))","v":""},null,{"$f":"IF(AR66=\"\",\"\",VLOOKUP(AR66,risk_likelihood[],2,FALSE))","v":""},null,{"$f":"IF(AT66=\"\",\"\",VLOOKUP(AT66,risk_consequence[],2,FALSE))","v":""},null,{"$f":"IF(AV66=\"\",\"\",VLOOKUP(AV66,risk[],2,FALSE))","v":""},null,{"$f":"IF(AX66=\"\",\"\",VLOOKUP(AX66,rul_reset[],2,FALSE))","v":""},null,{"$f":"IF(AZ66=\"\",\"\",VLOOKUP(AZ66,use_default_rc[],2,FALSE))","v":""},null,{"$f":"IF(BB66=\"\",\"\",VLOOKUP(BB66,condition[],2,FALSE))","v":""},null,null,{"$f":"IF(BE66=\"\",\"\",VLOOKUP(BE66,Organisation[],2,FALSE))","v":""}]
["null",null,null,null,{"$f":"IF(D67=\"\",\"\",VLOOKUP(D67,side[],2,FALSE))","v":""},null,null,{"$f":"IF(G67=\"\",\"\",VLOOKUP(G67,Material[],2,FALSE))","v":""},null,{"$f":"IF(I67=\"\",\"\",VLOOKUP(I67,shape[],2,FALSE))","v":""},null,{"$f":"IF(K67=\"\",\"\",VLOOKUP(K67,make[],2,FALSE))","v":""},null,"",null,{"$f":"IF(O67=\"\",\"\",VLOOKUP(O67,mounting_type[],2,FALSE))","v":""},null,{"$f":"IF(Q67=\"\",\"\",VLOOKUP(Q67,attachment[],2,FALSE))","v":""},null,{"$f":"IF(S67=\"\",\"\",VLOOKUP(S67,purpose[],2,FALSE))","v":""},null,{"$f":"IF(U67=\"\",\"\",VLOOKUP(U67,coating[],2,FALSE))","v":""},null,{"$f":"IF(W67=\"\",\"\",VLOOKUP(W67,pole_in_use[],2,FALSE))","v":""},null,{"$f":"IF(Y67=\"\",\"\",VLOOKUP(Y67,pole_control[],2,FALSE))","v":""},null,{"$f":"IF(AA67=\"\",\"\",VLOOKUP(AA67,power_company[],2,FALSE))","v":""},null,null,null,null,{"$f":"IF(AF67=\"\",\"\",VLOOKUP(AF67,Install_reason[],2,FALSE))","v":""},null,{"$f":"IF(AH67=\"\",\"\",VLOOKUP(AH67,status[],2,FALSE))","v":""},null,null,{"$f":"IF(AK67=\"\",\"\",VLOOKUP(AK67,asset_owner[],2,FALSE))","v":""},null,null,null,null,{"$f":"IF(AP67=\"\",\"\",VLOOKUP(AP67,gps_method[],2,FALSE))","v":""},null,{"$f":"IF(AR67=\"\",\"\",VLOOKUP(AR67,risk_likelihood[],2,FALSE))","v":""},null,{"$f":"IF(AT67=\"\",\"\",VLOOKUP(AT67,risk_consequence[],2,FALSE))","v":""},null,{"$f":"IF(AV67=\"\",\"\",VLOOKUP(AV67,risk[],2,FALSE))","v":""},null,{"$f":"IF(AX67=\"\",\"\",VLOOKUP(AX67,rul_reset[],2,FALSE))","v":""},null,{"$f":"IF(AZ67=\"\",\"\",VLOOKUP(AZ67,use_default_rc[],2,FALSE))","v":""},null,{"$f":"IF(BB67=\"\",\"\",VLOOKUP(BB67,condition[],2,FALSE))","v":""},null,null,{"$f":"IF(BE67=\"\",\"\",VLOOKUP(BE67,Organisation[],2,FALSE))","v":""}]
["null",null,null,null,{"$f":"IF(D68=\"\",\"\",VLOOKUP(D68,side[],2,FALSE))","v":""},null,null,{"$f":"IF(G68=\"\",\"\",VLOOKUP(G68,Material[],2,FALSE))","v":""},null,{"$f":"IF(I68=\"\",\"\",VLOOKUP(I68,shape[],2,FALSE))","v":""},null,{"$f":"IF(K68=\"\",\"\",VLOOKUP(K68,make[],2,FALSE))","v":""},null,{"$f":"IF(M68=\"\",\"\",VLOOKUP(M68,model,2,FALSE))","v":""},null,{"$f":"IF(O68=\"\",\"\",VLOOKUP(O68,mounting_type[],2,FALSE))","v":""},null,{"$f":"IF(Q68=\"\",\"\",VLOOKUP(Q68,attachment[],2,FALSE))","v":""},null,{"$f":"IF(S68=\"\",\"\",VLOOKUP(S68,purpose[],2,FALSE))","v":""},null,{"$f":"IF(U68=\"\",\"\",VLOOKUP(U68,coating[],2,FALSE))","v":""},null,{"$f":"IF(W68=\"\",\"\",VLOOKUP(W68,pole_in_use[],2,FALSE))","v":""},null,{"$f":"IF(Y68=\"\",\"\",VLOOKUP(Y68,pole_control[],2,FALSE))","v":""},null,{"$f":"IF(AA68=\"\",\"\",VLOOKUP(AA68,power_company[],2,FALSE))","v":""},null,null,null,null,{"$f":"IF(AF68=\"\",\"\",VLOOKUP(AF68,Install_reason[],2,FALSE))","v":""},null,{"$f":"IF(AH68=\"\",\"\",VLOOKUP(AH68,status[],2,FALSE))","v":""},null,null,{"$f":"IF(AK68=\"\",\"\",VLOOKUP(AK68,asset_owner[],2,FALSE))","v":""},null,null,null,null,{"$f":"IF(AP68=\"\",\"\",VLOOKUP(AP68,gps_method[],2,FALSE))","v":""},null,{"$f":"IF(AR68=\"\",\"\",VLOOKUP(AR68,risk_likelihood[],2,FALSE))","v":""},null,{"$f":"IF(AT68=\"\",\"\",VLOOKUP(AT68,risk_consequence[],2,FALSE))","v":""},null,{"$f":"IF(AV68=\"\",\"\",VLOOKUP(AV68,risk[],2,FALSE))","v":""},null,{"$f":"IF(AX68=\"\",\"\",VLOOKUP(AX68,rul_reset[],2,FALSE))","v":""},null,{"$f":"IF(AZ68=\"\",\"\",VLOOKUP(AZ68,use_default_rc[],2,FALSE))","v":""},null,{"$f":"IF(BB68=\"\",\"\",VLOOKUP(BB68,condition[],2,FALSE))","v":""},null,null,{"$f":"IF(BE68=\"\",\"\",VLOOKUP(BE68,Organisation[],2,FALSE))","v":""}]
[{"$f":"_xlfn.FILTERXML(_xlfn.WEBSERVICE(\"https://nds-beta.mobileroad.org/xy_sh?rp=\"&B69&\"/\"&C69&\"&xml=true\"),\"/lrms/id_road\")","v":"null"},null,null,null,{"$f":"IF(D69=\"\",\"\",VLOOKUP(D69,side[],2,FALSE))","v":""},null,null,{"$f":"IF(G69=\"\",\"\",VLOOKUP(G69,Material[],2,FALSE))","v":""},null,{"$f":"IF(I69=\"\",\"\",VLOOKUP(I69,shape[],2,FALSE))","v":""},null,{"$f":"IF(K69=\"\",\"\",VLOOKUP(K69,make[],2,FALSE))","v":""},null,"",null,{"$f":"IF(O69=\"\",\"\",VLOOKUP(O69,mounting_type[],2,FALSE))","v":""},null,{"$f":"IF(Q69=\"\",\"\",VLOOKUP(Q69,attachment[],2,FALSE))","v":""},null,{"$f":"IF(S69=\"\",\"\",VLOOKUP(S69,purpose[],2,FALSE))","v":""},null,{"$f":"IF(U69=\"\",\"\",VLOOKUP(U69,coating[],2,FALSE))","v":""},null,{"$f":"IF(W69=\"\",\"\",VLOOKUP(W69,pole_in_use[],2,FALSE))","v":""},null,{"$f":"IF(Y69=\"\",\"\",VLOOKUP(Y69,pole_control[],2,FALSE))","v":""},null,{"$f":"IF(AA69=\"\",\"\",VLOOKUP(AA69,power_company[],2,FALSE))","v":""},null,null,null,null,{"$f":"IF(AF69=\"\",\"\",VLOOKUP(AF69,Install_reason[],2,FALSE))","v":""},null,{"$f":"IF(AH69=\"\",\"\",VLOOKUP(AH69,status[],2,FALSE))","v":""},null,null,{"$f":"IF(AK69=\"\",\"\",VLOOKUP(AK69,asset_owner[],2,FALSE))","v":""},null,null,null,null,{"$f":"IF(AP69=\"\",\"\",VLOOKUP(AP69,gps_method[],2,FALSE))","v":""},null,{"$f":"IF(AR69=\"\",\"\",VLOOKUP(AR69,risk_likelihood[],2,FALSE))","v":""},null,{"$f":"IF(AT69=\"\",\"\",VLOOKUP(AT69,risk_consequence[],2,FALSE))","v":""},null,{"$f":"IF(AV69=\"\",\"\",VLOOKUP(AV69,risk[],2,FALSE))","v":""},null,{"$f":"IF(AX69=\"\",\"\",VLOOKUP(AX69,rul_reset[],2,FALSE))","v":""},null,{"$f":"IF(AZ69=\"\",\"\",VLOOKUP(AZ69,use_default_rc[],2,FALSE))","v":""},null,{"$f":"IF(BB69=\"\",\"\",VLOOKUP(BB69,condition[],2,FALSE))","v":""},null,null,{"$f":"IF(BE69=\"\",\"\",VLOOKUP(BE69,Organisation[],2,FALSE))","v":""}]
["null",null,null,null,{"$f":"IF(D70=\"\",\"\",VLOOKUP(D70,side[],2,FALSE))","v":""},null,null,{"$f":"IF(G70=\"\",\"\",VLOOKUP(G70,Material[],2,FALSE))","v":""},null,{"$f":"IF(I70=\"\",\"\",VLOOKUP(I70,shape[],2,FALSE))","v":""},null,{"$f":"IF(K70=\"\",\"\",VLOOKUP(K70,make[],2,FALSE))","v":""},null,"",null,{"$f":"IF(O70=\"\",\"\",VLOOKUP(O70,mounting_type[],2,FALSE))","v":""},null,{"$f":"IF(Q70=\"\",\"\",VLOOKUP(Q70,attachment[],2,FALSE))","v":""},null,{"$f":"IF(S70=\"\",\"\",VLOOKUP(S70,purpose[],2,FALSE))","v":""},null,{"$f":"IF(U70=\"\",\"\",VLOOKUP(U70,coating[],2,FALSE))","v":""},null,{"$f":"IF(W70=\"\",\"\",VLOOKUP(W70,pole_in_use[],2,FALSE))","v":""},null,{"$f":"IF(Y70=\"\",\"\",VLOOKUP(Y70,pole_control[],2,FALSE))","v":""},null,{"$f":"IF(AA70=\"\",\"\",VLOOKUP(AA70,power_company[],2,FALSE))","v":""},null,null,null,null,{"$f":"IF(AF70=\"\",\"\",VLOOKUP(AF70,Install_reason[],2,FALSE))","v":""},null,{"$f":"IF(AH70=\"\",\"\",VLOOKUP(AH70,status[],2,FALSE))","v":""},null,null,{"$f":"IF(AK70=\"\",\"\",VLOOKUP(AK70,asset_owner[],2,FALSE))","v":""},null,null,null,null,{"$f":"IF(AP70=\"\",\"\",VLOOKUP(AP70,gps_method[],2,FALSE))","v":""},null,{"$f":"IF(AR70=\"\",\"\",VLOOKUP(AR70,risk_likelihood[],2,FALSE))","v":""},null,{"$f":"IF(AT70=\"\",\"\",VLOOKUP(AT70,risk_consequence[],2,FALSE))","v":""},null,{"$f":"IF(AV70=\"\",\"\",VLOOKUP(AV70,risk[],2,FALSE))","v":""},null,{"$f":"IF(AX70=\"\",\"\",VLOOKUP(AX70,rul_reset[],2,FALSE))","v":""},null,{"$f":"IF(AZ70=\"\",\"\",VLOOKUP(AZ70,use_default_rc[],2,FALSE))","v":""},null,{"$f":"IF(BB70=\"\",\"\",VLOOKUP(BB70,condition[],2,FALSE))","v":""},null,null,{"$f":"IF(BE70=\"\",\"\",VLOOKUP(BE70,Organisation[],2,FALSE))","v":""}]
["null",null,null,null,{"$f":"IF(D71=\"\",\"\",VLOOKUP(D71,side[],2,FALSE))","v":""},null,null,{"$f":"IF(G71=\"\",\"\",VLOOKUP(G71,Material[],2,FALSE))","v":""},null,{"$f":"IF(I71=\"\",\"\",VLOOKUP(I71,shape[],2,FALSE))","v":""},null,{"$f":"IF(K71=\"\",\"\",VLOOKUP(K71,make[],2,FALSE))","v":""},null,"",null,{"$f":"IF(O71=\"\",\"\",VLOOKUP(O71,mounting_type[],2,FALSE))","v":""},null,{"$f":"IF(Q71=\"\",\"\",VLOOKUP(Q71,attachment[],2,FALSE))","v":""},null,{"$f":"IF(S71=\"\",\"\",VLOOKUP(S71,purpose[],2,FALSE))","v":""},null,{"$f":"IF(U71=\"\",\"\",VLOOKUP(U71,coating[],2,FALSE))","v":""},null,{"$f":"IF(W71=\"\",\"\",VLOOKUP(W71,pole_in_use[],2,FALSE))","v":""},null,{"$f":"IF(Y71=\"\",\"\",VLOOKUP(Y71,pole_control[],2,FALSE))","v":""},null,{"$f":"IF(AA71=\"\",\"\",VLOOKUP(AA71,power_company[],2,FALSE))","v":""},null,null,null,null,{"$f":"IF(AF71=\"\",\"\",VLOOKUP(AF71,Install_reason[],2,FALSE))","v":""},null,{"$f":"IF(AH71=\"\",\"\",VLOOKUP(AH71,status[],2,FALSE))","v":""},null,null,{"$f":"IF(AK71=\"\",\"\",VLOOKUP(AK71,asset_owner[],2,FALSE))","v":""},null,null,null,null,{"$f":"IF(AP71=\"\",\"\",VLOOKUP(AP71,gps_method[],2,FALSE))","v":""},null,{"$f":"IF(AR71=\"\",\"\",VLOOKUP(AR71,risk_likelihood[],2,FALSE))","v":""},null,{"$f":"IF(AT71=\"\",\"\",VLOOKUP(AT71,risk_consequence[],2,FALSE))","v":""},null,{"$f":"IF(AV71=\"\",\"\",VLOOKUP(AV71,risk[],2,FALSE))","v":""},null,{"$f":"IF(AX71=\"\",\"\",VLOOKUP(AX71,rul_reset[],2,FALSE))","v":""},null,{"$f":"IF(AZ71=\"\",\"\",VLOOKUP(AZ71,use_default_rc[],2,FALSE))","v":""},null,{"$f":"IF(BB71=\"\",\"\",VLOOKUP(BB71,condition[],2,FALSE))","v":""},null,null,{"$f":"IF(BE71=\"\",\"\",VLOOKUP(BE71,Organisation[],2,FALSE))","v":""}]
["null",null,null,null,{"$f":"IF(D72=\"\",\"\",VLOOKUP(D72,side[],2,FALSE))","v":""},null,null,{"$f":"IF(G72=\"\",\"\",VLOOKUP(G72,Material[],2,FALSE))","v":""},null,{"$f":"IF(I72=\"\",\"\",VLOOKUP(I72,shape[],2,FALSE))","v":""},null,{"$f":"IF(K72=\"\",\"\",VLOOKUP(K72,make[],2,FALSE))","v":""},null,"",null,{"$f":"IF(O72=\"\",\"\",VLOOKUP(O72,mounting_type[],2,FALSE))","v":""},null,{"$f":"IF(Q72=\"\",\"\",VLOOKUP(Q72,attachment[],2,FALSE))","v":""},null,{"$f":"IF(S72=\"\",\"\",VLOOKUP(S72,purpose[],2,FALSE))","v":""},null,{"$f":"IF(U72=\"\",\"\",VLOOKUP(U72,coating[],2,FALSE))","v":""},null,{"$f":"IF(W72=\"\",\"\",VLOOKUP(W72,pole_in_use[],2,FALSE))","v":""},null,{"$f":"IF(Y72=\"\",\"\",VLOOKUP(Y72,pole_control[],2,FALSE))","v":""},null,{"$f":"IF(AA72=\"\",\"\",VLOOKUP(AA72,power_company[],2,FALSE))","v":""},null,null,null,null,{"$f":"IF(AF72=\"\",\"\",VLOOKUP(AF72,Install_reason[],2,FALSE))","v":""},null,{"$f":"IF(AH72=\"\",\"\",VLOOKUP(AH72,status[],2,FALSE))","v":""},null,null,{"$f":"IF(AK72=\"\",\"\",VLOOKUP(AK72,asset_owner[],2,FALSE))","v":""},null,null,null,null,{"$f":"IF(AP72=\"\",\"\",VLOOKUP(AP72,gps_method[],2,FALSE))","v":""},null,{"$f":"IF(AR72=\"\",\"\",VLOOKUP(AR72,risk_likelihood[],2,FALSE))","v":""},null,{"$f":"IF(AT72=\"\",\"\",VLOOKUP(AT72,risk_consequence[],2,FALSE))","v":""},null,{"$f":"IF(AV72=\"\",\"\",VLOOKUP(AV72,risk[],2,FALSE))","v":""},null,{"$f":"IF(AX72=\"\",\"\",VLOOKUP(AX72,rul_reset[],2,FALSE))","v":""},null,{"$f":"IF(AZ72=\"\",\"\",VLOOKUP(AZ72,use_default_rc[],2,FALSE))","v":""},null,{"$f":"IF(BB72=\"\",\"\",VLOOKUP(BB72,condition[],2,FALSE))","v":""},null,null,{"$f":"IF(BE72=\"\",\"\",VLOOKUP(BE72,Organisation[],2,FALSE))","v":""}]
["null",null,null,null,{"$f":"IF(D73=\"\",\"\",VLOOKUP(D73,side[],2,FALSE))","v":""},null,null,{"$f":"IF(G73=\"\",\"\",VLOOKUP(G73,Material[],2,FALSE))","v":""},null,{"$f":"IF(I73=\"\",\"\",VLOOKUP(I73,shape[],2,FALSE))","v":""},null,{"$f":"IF(K73=\"\",\"\",VLOOKUP(K73,make[],2,FALSE))","v":""},null,"",null,{"$f":"IF(O73=\"\",\"\",VLOOKUP(O73,mounting_type[],2,FALSE))","v":""},null,{"$f":"IF(Q73=\"\",\"\",VLOOKUP(Q73,attachment[],2,FALSE))","v":""},null,{"$f":"IF(S73=\"\",\"\",VLOOKUP(S73,purpose[],2,FALSE))","v":""},null,{"$f":"IF(U73=\"\",\"\",VLOOKUP(U73,coating[],2,FALSE))","v":""},null,{"$f":"IF(W73=\"\",\"\",VLOOKUP(W73,pole_in_use[],2,FALSE))","v":""},null,{"$f":"IF(Y73=\"\",\"\",VLOOKUP(Y73,pole_control[],2,FALSE))","v":""},null,{"$f":"IF(AA73=\"\",\"\",VLOOKUP(AA73,power_company[],2,FALSE))","v":""},null,null,null,null,{"$f":"IF(AF73=\"\",\"\",VLOOKUP(AF73,Install_reason[],2,FALSE))","v":""},null,{"$f":"IF(AH73=\"\",\"\",VLOOKUP(AH73,status[],2,FALSE))","v":""},null,null,{"$f":"IF(AK73=\"\",\"\",VLOOKUP(AK73,asset_owner[],2,FALSE))","v":""},null,null,null,null,{"$f":"IF(AP73=\"\",\"\",VLOOKUP(AP73,gps_method[],2,FALSE))","v":""},null,{"$f":"IF(AR73=\"\",\"\",VLOOKUP(AR73,risk_likelihood[],2,FALSE))","v":""},null,{"$f":"IF(AT73=\"\",\"\",VLOOKUP(AT73,risk_consequence[],2,FALSE))","v":""},null,{"$f":"IF(AV73=\"\",\"\",VLOOKUP(AV73,risk[],2,FALSE))","v":""},null,{"$f":"IF(AX73=\"\",\"\",VLOOKUP(AX73,rul_reset[],2,FALSE))","v":""},null,{"$f":"IF(AZ73=\"\",\"\",VLOOKUP(AZ73,use_default_rc[],2,FALSE))","v":""},null,{"$f":"IF(BB73=\"\",\"\",VLOOKUP(BB73,condition[],2,FALSE))","v":""},null,null,{"$f":"IF(BE73=\"\",\"\",VLOOKUP(BE73,Organisation[],2,FALSE))","v":""}]
["null",null,null,null,{"$f":"IF(D74=\"\",\"\",VLOOKUP(D74,side[],2,FALSE))","v":""},null,null,{"$f":"IF(G74=\"\",\"\",VLOOKUP(G74,Material[],2,FALSE))","v":""},null,{"$f":"IF(I74=\"\",\"\",VLOOKUP(I74,shape[],2,FALSE))","v":""},null,{"$f":"IF(K74=\"\",\"\",VLOOKUP(K74,make[],2,FALSE))","v":""},null,"",null,{"$f":"IF(O74=\"\",\"\",VLOOKUP(O74,mounting_type[],2,FALSE))","v":""},null,{"$f":"IF(Q74=\"\",\"\",VLOOKUP(Q74,attachment[],2,FALSE))","v":""},null,{"$f":"IF(S74=\"\",\"\",VLOOKUP(S74,purpose[],2,FALSE))","v":""},null,{"$f":"IF(U74=\"\",\"\",VLOOKUP(U74,coating[],2,FALSE))","v":""},null,{"$f":"IF(W74=\"\",\"\",VLOOKUP(W74,pole_in_use[],2,FALSE))","v":""},null,{"$f":"IF(Y74=\"\",\"\",VLOOKUP(Y74,pole_control[],2,FALSE))","v":""},null,{"$f":"IF(AA74=\"\",\"\",VLOOKUP(AA74,power_company[],2,FALSE))","v":""},null,null,null,null,{"$f":"IF(AF74=\"\",\"\",VLOOKUP(AF74,Install_reason[],2,FALSE))","v":""},null,{"$f":"IF(AH74=\"\",\"\",VLOOKUP(AH74,status[],2,FALSE))","v":""},null,null,{"$f":"IF(AK74=\"\",\"\",VLOOKUP(AK74,asset_owner[],2,FALSE))","v":""},null,null,null,null,{"$f":"IF(AP74=\"\",\"\",VLOOKUP(AP74,gps_method[],2,FALSE))","v":""},null,{"$f":"IF(AR74=\"\",\"\",VLOOKUP(AR74,risk_likelihood[],2,FALSE))","v":""},null,{"$f":"IF(AT74=\"\",\"\",VLOOKUP(AT74,risk_consequence[],2,FALSE))","v":""},null,{"$f":"IF(AV74=\"\",\"\",VLOOKUP(AV74,risk[],2,FALSE))","v":""},null,{"$f":"IF(AX74=\"\",\"\",VLOOKUP(AX74,rul_reset[],2,FALSE))","v":""},null,{"$f":"IF(AZ74=\"\",\"\",VLOOKUP(AZ74,use_default_rc[],2,FALSE))","v":""},null,{"$f":"IF(BB74=\"\",\"\",VLOOKUP(BB74,condition[],2,FALSE))","v":""},null,null,{"$f":"IF(BE74=\"\",\"\",VLOOKUP(BE74,Organisation[],2,FALSE))","v":""}]
["null",null,null,null,{"$f":"IF(D75=\"\",\"\",VLOOKUP(D75,side[],2,FALSE))","v":""},null,null,{"$f":"IF(G75=\"\",\"\",VLOOKUP(G75,Material[],2,FALSE))","v":""},null,{"$f":"IF(I75=\"\",\"\",VLOOKUP(I75,shape[],2,FALSE))","v":""},null,{"$f":"IF(K75=\"\",\"\",VLOOKUP(K75,make[],2,FALSE))","v":""},null,"",null,{"$f":"IF(O75=\"\",\"\",VLOOKUP(O75,mounting_type[],2,FALSE))","v":""},null,{"$f":"IF(Q75=\"\",\"\",VLOOKUP(Q75,attachment[],2,FALSE))","v":""},null,{"$f":"IF(S75=\"\",\"\",VLOOKUP(S75,purpose[],2,FALSE))","v":""},null,{"$f":"IF(U75=\"\",\"\",VLOOKUP(U75,coating[],2,FALSE))","v":""},null,{"$f":"IF(W75=\"\",\"\",VLOOKUP(W75,pole_in_use[],2,FALSE))","v":""},null,{"$f":"IF(Y75=\"\",\"\",VLOOKUP(Y75,pole_control[],2,FALSE))","v":""},null,{"$f":"IF(AA75=\"\",\"\",VLOOKUP(AA75,power_company[],2,FALSE))","v":""},null,null,null,null,{"$f":"IF(AF75=\"\",\"\",VLOOKUP(AF75,Install_reason[],2,FALSE))","v":""},null,{"$f":"IF(AH75=\"\",\"\",VLOOKUP(AH75,status[],2,FALSE))","v":""},null,null,{"$f":"IF(AK75=\"\",\"\",VLOOKUP(AK75,asset_owner[],2,FALSE))","v":""},null,null,null,null,{"$f":"IF(AP75=\"\",\"\",VLOOKUP(AP75,gps_method[],2,FALSE))","v":""},null,{"$f":"IF(AR75=\"\",\"\",VLOOKUP(AR75,risk_likelihood[],2,FALSE))","v":""},null,{"$f":"IF(AT75=\"\",\"\",VLOOKUP(AT75,risk_consequence[],2,FALSE))","v":""},null,{"$f":"IF(AV75=\"\",\"\",VLOOKUP(AV75,risk[],2,FALSE))","v":""},null,{"$f":"IF(AX75=\"\",\"\",VLOOKUP(AX75,rul_reset[],2,FALSE))","v":""},null,{"$f":"IF(AZ75=\"\",\"\",VLOOKUP(AZ75,use_default_rc[],2,FALSE))","v":""},null,{"$f":"IF(BB75=\"\",\"\",VLOOKUP(BB75,condition[],2,FALSE))","v":""},null,null,{"$f":"IF(BE75=\"\",\"\",VLOOKUP(BE75,Organisation[],2,FALSE))","v":""}]
["null",null,null,null,{"$f":"IF(D76=\"\",\"\",VLOOKUP(D76,side[],2,FALSE))","v":""},null,null,{"$f":"IF(G76=\"\",\"\",VLOOKUP(G76,Material[],2,FALSE))","v":""},null,{"$f":"IF(I76=\"\",\"\",VLOOKUP(I76,shape[],2,FALSE))","v":""},null,{"$f":"IF(K76=\"\",\"\",VLOOKUP(K76,make[],2,FALSE))","v":""},null,"",null,{"$f":"IF(O76=\"\",\"\",VLOOKUP(O76,mounting_type[],2,FALSE))","v":""},null,{"$f":"IF(Q76=\"\",\"\",VLOOKUP(Q76,attachment[],2,FALSE))","v":""},null,{"$f":"IF(S76=\"\",\"\",VLOOKUP(S76,purpose[],2,FALSE))","v":""},null,{"$f":"IF(U76=\"\",\"\",VLOOKUP(U76,coating[],2,FALSE))","v":""},null,{"$f":"IF(W76=\"\",\"\",VLOOKUP(W76,pole_in_use[],2,FALSE))","v":""},null,{"$f":"IF(Y76=\"\",\"\",VLOOKUP(Y76,pole_control[],2,FALSE))","v":""},null,{"$f":"IF(AA76=\"\",\"\",VLOOKUP(AA76,power_company[],2,FALSE))","v":""},null,null,null,null,{"$f":"IF(AF76=\"\",\"\",VLOOKUP(AF76,Install_reason[],2,FALSE))","v":""},null,{"$f":"IF(AH76=\"\",\"\",VLOOKUP(AH76,status[],2,FALSE))","v":""},null,null,{"$f":"IF(AK76=\"\",\"\",VLOOKUP(AK76,asset_owner[],2,FALSE))","v":""},null,null,null,null,{"$f":"IF(AP76=\"\",\"\",VLOOKUP(AP76,gps_method[],2,FALSE))","v":""},null,{"$f":"IF(AR76=\"\",\"\",VLOOKUP(AR76,risk_likelihood[],2,FALSE))","v":""},null,{"$f":"IF(AT76=\"\",\"\",VLOOKUP(AT76,risk_consequence[],2,FALSE))","v":""},null,{"$f":"IF(AV76=\"\",\"\",VLOOKUP(AV76,risk[],2,FALSE))","v":""},null,{"$f":"IF(AX76=\"\",\"\",VLOOKUP(AX76,rul_reset[],2,FALSE))","v":""},null,{"$f":"IF(AZ76=\"\",\"\",VLOOKUP(AZ76,use_default_rc[],2,FALSE))","v":""},null,{"$f":"IF(BB76=\"\",\"\",VLOOKUP(BB76,condition[],2,FALSE))","v":""},null,null,{"$f":"IF(BE76=\"\",\"\",VLOOKUP(BE76,Organisation[],2,FALSE))","v":""}]
["null",null,null,null,{"$f":"IF(D77=\"\",\"\",VLOOKUP(D77,side[],2,FALSE))","v":""},null,null,{"$f":"IF(G77=\"\",\"\",VLOOKUP(G77,Material[],2,FALSE))","v":""},null,{"$f":"IF(I77=\"\",\"\",VLOOKUP(I77,shape[],2,FALSE))","v":""},null,{"$f":"IF(K77=\"\",\"\",VLOOKUP(K77,make[],2,FALSE))","v":""},null,"",null,{"$f":"IF(O77=\"\",\"\",VLOOKUP(O77,mounting_type[],2,FALSE))","v":""},null,{"$f":"IF(Q77=\"\",\"\",VLOOKUP(Q77,attachment[],2,FALSE))","v":""},null,{"$f":"IF(S77=\"\",\"\",VLOOKUP(S77,purpose[],2,FALSE))","v":""},null,{"$f":"IF(U77=\"\",\"\",VLOOKUP(U77,coating[],2,FALSE))","v":""},null,{"$f":"IF(W77=\"\",\"\",VLOOKUP(W77,pole_in_use[],2,FALSE))","v":""},null,{"$f":"IF(Y77=\"\",\"\",VLOOKUP(Y77,pole_control[],2,FALSE))","v":""},null,{"$f":"IF(AA77=\"\",\"\",VLOOKUP(AA77,power_company[],2,FALSE))","v":""},null,null,null,null,{"$f":"IF(AF77=\"\",\"\",VLOOKUP(AF77,Install_reason[],2,FALSE))","v":""},null,{"$f":"IF(AH77=\"\",\"\",VLOOKUP(AH77,status[],2,FALSE))","v":""},null,null,{"$f":"IF(AK77=\"\",\"\",VLOOKUP(AK77,asset_owner[],2,FALSE))","v":""},null,null,null,null,{"$f":"IF(AP77=\"\",\"\",VLOOKUP(AP77,gps_method[],2,FALSE))","v":""},null,{"$f":"IF(AR77=\"\",\"\",VLOOKUP(AR77,risk_likelihood[],2,FALSE))","v":""},null,{"$f":"IF(AT77=\"\",\"\",VLOOKUP(AT77,risk_consequence[],2,FALSE))","v":""},null,{"$f":"IF(AV77=\"\",\"\",VLOOKUP(AV77,risk[],2,FALSE))","v":""},null,{"$f":"IF(AX77=\"\",\"\",VLOOKUP(AX77,rul_reset[],2,FALSE))","v":""},null,{"$f":"IF(AZ77=\"\",\"\",VLOOKUP(AZ77,use_default_rc[],2,FALSE))","v":""},null,{"$f":"IF(BB77=\"\",\"\",VLOOKUP(BB77,condition[],2,FALSE))","v":""},null,null,{"$f":"IF(BE77=\"\",\"\",VLOOKUP(BE77,Organisation[],2,FALSE))","v":""}]
["null",null,null,null,{"$f":"IF(D78=\"\",\"\",VLOOKUP(D78,side[],2,FALSE))","v":""},null,null,{"$f":"IF(G78=\"\",\"\",VLOOKUP(G78,Material[],2,FALSE))","v":""},null,{"$f":"IF(I78=\"\",\"\",VLOOKUP(I78,shape[],2,FALSE))","v":""},null,{"$f":"IF(K78=\"\",\"\",VLOOKUP(K78,make[],2,FALSE))","v":""},null,"",null,{"$f":"IF(O78=\"\",\"\",VLOOKUP(O78,mounting_type[],2,FALSE))","v":""},null,{"$f":"IF(Q78=\"\",\"\",VLOOKUP(Q78,attachment[],2,FALSE))","v":""},null,{"$f":"IF(S78=\"\",\"\",VLOOKUP(S78,purpose[],2,FALSE))","v":""},null,{"$f":"IF(U78=\"\",\"\",VLOOKUP(U78,coating[],2,FALSE))","v":""},null,{"$f":"IF(W78=\"\",\"\",VLOOKUP(W78,pole_in_use[],2,FALSE))","v":""},null,{"$f":"IF(Y78=\"\",\"\",VLOOKUP(Y78,pole_control[],2,FALSE))","v":""},null,{"$f":"IF(AA78=\"\",\"\",VLOOKUP(AA78,power_company[],2,FALSE))","v":""},null,null,null,null,{"$f":"IF(AF78=\"\",\"\",VLOOKUP(AF78,Install_reason[],2,FALSE))","v":""},null,{"$f":"IF(AH78=\"\",\"\",VLOOKUP(AH78,status[],2,FALSE))","v":""},null,null,{"$f":"IF(AK78=\"\",\"\",VLOOKUP(AK78,asset_owner[],2,FALSE))","v":""},null,null,null,null,{"$f":"IF(AP78=\"\",\"\",VLOOKUP(AP78,gps_method[],2,FALSE))","v":""},null,{"$f":"IF(AR78=\"\",\"\",VLOOKUP(AR78,risk_likelihood[],2,FALSE))","v":""},null,{"$f":"IF(AT78=\"\",\"\",VLOOKUP(AT78,risk_consequence[],2,FALSE))","v":""},null,{"$f":"IF(AV78=\"\",\"\",VLOOKUP(AV78,risk[],2,FALSE))","v":""},null,{"$f":"IF(AX78=\"\",\"\",VLOOKUP(AX78,rul_reset[],2,FALSE))","v":""},null,{"$f":"IF(AZ78=\"\",\"\",VLOOKUP(AZ78,use_default_rc[],2,FALSE))","v":""},null,{"$f":"IF(BB78=\"\",\"\",VLOOKUP(BB78,condition[],2,FALSE))","v":""},null,null,{"$f":"IF(BE78=\"\",\"\",VLOOKUP(BE78,Organisation[],2,FALSE))","v":""}]
["null",null,null,null,{"$f":"IF(D79=\"\",\"\",VLOOKUP(D79,side[],2,FALSE))","v":""},null,null,{"$f":"IF(G79=\"\",\"\",VLOOKUP(G79,Material[],2,FALSE))","v":""},null,{"$f":"IF(I79=\"\",\"\",VLOOKUP(I79,shape[],2,FALSE))","v":""},null,{"$f":"IF(K79=\"\",\"\",VLOOKUP(K79,make[],2,FALSE))","v":""},null,"",null,{"$f":"IF(O79=\"\",\"\",VLOOKUP(O79,mounting_type[],2,FALSE))","v":""},null,{"$f":"IF(Q79=\"\",\"\",VLOOKUP(Q79,attachment[],2,FALSE))","v":""},null,{"$f":"IF(S79=\"\",\"\",VLOOKUP(S79,purpose[],2,FALSE))","v":""},null,{"$f":"IF(U79=\"\",\"\",VLOOKUP(U79,coating[],2,FALSE))","v":""},null,{"$f":"IF(W79=\"\",\"\",VLOOKUP(W79,pole_in_use[],2,FALSE))","v":""},null,{"$f":"IF(Y79=\"\",\"\",VLOOKUP(Y79,pole_control[],2,FALSE))","v":""},null,{"$f":"IF(AA79=\"\",\"\",VLOOKUP(AA79,power_company[],2,FALSE))","v":""},null,null,null,null,{"$f":"IF(AF79=\"\",\"\",VLOOKUP(AF79,Install_reason[],2,FALSE))","v":""},null,{"$f":"IF(AH79=\"\",\"\",VLOOKUP(AH79,status[],2,FALSE))","v":""},null,null,{"$f":"IF(AK79=\"\",\"\",VLOOKUP(AK79,asset_owner[],2,FALSE))","v":""},null,null,null,null,{"$f":"IF(AP79=\"\",\"\",VLOOKUP(AP79,gps_method[],2,FALSE))","v":""},null,{"$f":"IF(AR79=\"\",\"\",VLOOKUP(AR79,risk_likelihood[],2,FALSE))","v":""},null,{"$f":"IF(AT79=\"\",\"\",VLOOKUP(AT79,risk_consequence[],2,FALSE))","v":""},null,{"$f":"IF(AV79=\"\",\"\",VLOOKUP(AV79,risk[],2,FALSE))","v":""},null,{"$f":"IF(AX79=\"\",\"\",VLOOKUP(AX79,rul_reset[],2,FALSE))","v":""},null,{"$f":"IF(AZ79=\"\",\"\",VLOOKUP(AZ79,use_default_rc[],2,FALSE))","v":""},null,{"$f":"IF(BB79=\"\",\"\",VLOOKUP(BB79,condition[],2,FALSE))","v":""},null,null,{"$f":"IF(BE79=\"\",\"\",VLOOKUP(BE79,Organisation[],2,FALSE))","v":""}]
["null",null,null,null,{"$f":"IF(D80=\"\",\"\",VLOOKUP(D80,side[],2,FALSE))","v":""},null,null,{"$f":"IF(G80=\"\",\"\",VLOOKUP(G80,Material[],2,FALSE))","v":""},null,{"$f":"IF(I80=\"\",\"\",VLOOKUP(I80,shape[],2,FALSE))","v":""},null,{"$f":"IF(K80=\"\",\"\",VLOOKUP(K80,make[],2,FALSE))","v":""},null,"",null,{"$f":"IF(O80=\"\",\"\",VLOOKUP(O80,mounting_type[],2,FALSE))","v":""},null,{"$f":"IF(Q80=\"\",\"\",VLOOKUP(Q80,attachment[],2,FALSE))","v":""},null,{"$f":"IF(S80=\"\",\"\",VLOOKUP(S80,purpose[],2,FALSE))","v":""},null,{"$f":"IF(U80=\"\",\"\",VLOOKUP(U80,coating[],2,FALSE))","v":""},null,{"$f":"IF(W80=\"\",\"\",VLOOKUP(W80,pole_in_use[],2,FALSE))","v":""},null,{"$f":"IF(Y80=\"\",\"\",VLOOKUP(Y80,pole_control[],2,FALSE))","v":""},null,{"$f":"IF(AA80=\"\",\"\",VLOOKUP(AA80,power_company[],2,FALSE))","v":""},null,null,null,null,{"$f":"IF(AF80=\"\",\"\",VLOOKUP(AF80,Install_reason[],2,FALSE))","v":""},null,{"$f":"IF(AH80=\"\",\"\",VLOOKUP(AH80,status[],2,FALSE))","v":""},null,null,{"$f":"IF(AK80=\"\",\"\",VLOOKUP(AK80,asset_owner[],2,FALSE))","v":""},null,null,null,null,{"$f":"IF(AP80=\"\",\"\",VLOOKUP(AP80,gps_method[],2,FALSE))","v":""},null,{"$f":"IF(AR80=\"\",\"\",VLOOKUP(AR80,risk_likelihood[],2,FALSE))","v":""},null,{"$f":"IF(AT80=\"\",\"\",VLOOKUP(AT80,risk_consequence[],2,FALSE))","v":""},null,{"$f":"IF(AV80=\"\",\"\",VLOOKUP(AV80,risk[],2,FALSE))","v":""},null,{"$f":"IF(AX80=\"\",\"\",VLOOKUP(AX80,rul_reset[],2,FALSE))","v":""},null,{"$f":"IF(AZ80=\"\",\"\",VLOOKUP(AZ80,use_default_rc[],2,FALSE))","v":""},null,{"$f":"IF(BB80=\"\",\"\",VLOOKUP(BB80,condition[],2,FALSE))","v":""},null,null,{"$f":"IF(BE80=\"\",\"\",VLOOKUP(BE80,Organisation[],2,FALSE))","v":""}]
["null",null,null,null,{"$f":"IF(D81=\"\",\"\",VLOOKUP(D81,side[],2,FALSE))","v":""},null,null,{"$f":"IF(G81=\"\",\"\",VLOOKUP(G81,Material[],2,FALSE))","v":""},null,{"$f":"IF(I81=\"\",\"\",VLOOKUP(I81,shape[],2,FALSE))","v":""},null,{"$f":"IF(K81=\"\",\"\",VLOOKUP(K81,make[],2,FALSE))","v":""},null,"",null,{"$f":"IF(O81=\"\",\"\",VLOOKUP(O81,mounting_type[],2,FALSE))","v":""},null,{"$f":"IF(Q81=\"\",\"\",VLOOKUP(Q81,attachment[],2,FALSE))","v":""},null,{"$f":"IF(S81=\"\",\"\",VLOOKUP(S81,purpose[],2,FALSE))","v":""},null,{"$f":"IF(U81=\"\",\"\",VLOOKUP(U81,coating[],2,FALSE))","v":""},null,{"$f":"IF(W81=\"\",\"\",VLOOKUP(W81,pole_in_use[],2,FALSE))","v":""},null,{"$f":"IF(Y81=\"\",\"\",VLOOKUP(Y81,pole_control[],2,FALSE))","v":""},null,{"$f":"IF(AA81=\"\",\"\",VLOOKUP(AA81,power_company[],2,FALSE))","v":""},null,null,null,null,{"$f":"IF(AF81=\"\",\"\",VLOOKUP(AF81,Install_reason[],2,FALSE))","v":""},null,{"$f":"IF(AH81=\"\",\"\",VLOOKUP(AH81,status[],2,FALSE))","v":""},null,null,{"$f":"IF(AK81=\"\",\"\",VLOOKUP(AK81,asset_owner[],2,FALSE))","v":""},null,null,null,null,{"$f":"IF(AP81=\"\",\"\",VLOOKUP(AP81,gps_method[],2,FALSE))","v":""},null,{"$f":"IF(AR81=\"\",\"\",VLOOKUP(AR81,risk_likelihood[],2,FALSE))","v":""},null,{"$f":"IF(AT81=\"\",\"\",VLOOKUP(AT81,risk_consequence[],2,FALSE))","v":""},null,{"$f":"IF(AV81=\"\",\"\",VLOOKUP(AV81,risk[],2,FALSE))","v":""},null,{"$f":"IF(AX81=\"\",\"\",VLOOKUP(AX81,rul_reset[],2,FALSE))","v":""},null,{"$f":"IF(AZ81=\"\",\"\",VLOOKUP(AZ81,use_default_rc[],2,FALSE))","v":""},null,{"$f":"IF(BB81=\"\",\"\",VLOOKUP(BB81,condition[],2,FALSE))","v":""},null,null,{"$f":"IF(BE81=\"\",\"\",VLOOKUP(BE81,Organisation[],2,FALSE))","v":""}]
["null",null,null,null,{"$f":"IF(D82=\"\",\"\",VLOOKUP(D82,side[],2,FALSE))","v":""},null,null,{"$f":"IF(G82=\"\",\"\",VLOOKUP(G82,Material[],2,FALSE))","v":""},null,{"$f":"IF(I82=\"\",\"\",VLOOKUP(I82,shape[],2,FALSE))","v":""},null,{"$f":"IF(K82=\"\",\"\",VLOOKUP(K82,make[],2,FALSE))","v":""},null,"",null,{"$f":"IF(O82=\"\",\"\",VLOOKUP(O82,mounting_type[],2,FALSE))","v":""},null,{"$f":"IF(Q82=\"\",\"\",VLOOKUP(Q82,attachment[],2,FALSE))","v":""},null,{"$f":"IF(S82=\"\",\"\",VLOOKUP(S82,purpose[],2,FALSE))","v":""},null,{"$f":"IF(U82=\"\",\"\",VLOOKUP(U82,coating[],2,FALSE))","v":""},null,{"$f":"IF(W82=\"\",\"\",VLOOKUP(W82,pole_in_use[],2,FALSE))","v":""},null,{"$f":"IF(Y82=\"\",\"\",VLOOKUP(Y82,pole_control[],2,FALSE))","v":""},null,{"$f":"IF(AA82=\"\",\"\",VLOOKUP(AA82,power_company[],2,FALSE))","v":""},null,null,null,null,{"$f":"IF(AF82=\"\",\"\",VLOOKUP(AF82,Install_reason[],2,FALSE))","v":""},null,{"$f":"IF(AH82=\"\",\"\",VLOOKUP(AH82,status[],2,FALSE))","v":""},null,null,{"$f":"IF(AK82=\"\",\"\",VLOOKUP(AK82,asset_owner[],2,FALSE))","v":""},null,null,null,null,{"$f":"IF(AP82=\"\",\"\",VLOOKUP(AP82,gps_method[],2,FALSE))","v":""},null,{"$f":"IF(AR82=\"\",\"\",VLOOKUP(AR82,risk_likelihood[],2,FALSE))","v":""},null,{"$f":"IF(AT82=\"\",\"\",VLOOKUP(AT82,risk_consequence[],2,FALSE))","v":""},null,{"$f":"IF(AV82=\"\",\"\",VLOOKUP(AV82,risk[],2,FALSE))","v":""},null,{"$f":"IF(AX82=\"\",\"\",VLOOKUP(AX82,rul_reset[],2,FALSE))","v":""},null,{"$f":"IF(AZ82=\"\",\"\",VLOOKUP(AZ82,use_default_rc[],2,FALSE))","v":""},null,{"$f":"IF(BB82=\"\",\"\",VLOOKUP(BB82,condition[],2,FALSE))","v":""},null,null,{"$f":"IF(BE82=\"\",\"\",VLOOKUP(BE82,Organisation[],2,FALSE))","v":""}]
["null",null,null,null,{"$f":"IF(D83=\"\",\"\",VLOOKUP(D83,side[],2,FALSE))","v":""},null,null,{"$f":"IF(G83=\"\",\"\",VLOOKUP(G83,Material[],2,FALSE))","v":""},null,{"$f":"IF(I83=\"\",\"\",VLOOKUP(I83,shape[],2,FALSE))","v":""},null,{"$f":"IF(K83=\"\",\"\",VLOOKUP(K83,make[],2,FALSE))","v":""},null,"",null,{"$f":"IF(O83=\"\",\"\",VLOOKUP(O83,mounting_type[],2,FALSE))","v":""},null,{"$f":"IF(Q83=\"\",\"\",VLOOKUP(Q83,attachment[],2,FALSE))","v":""},null,{"$f":"IF(S83=\"\",\"\",VLOOKUP(S83,purpose[],2,FALSE))","v":""},null,{"$f":"IF(U83=\"\",\"\",VLOOKUP(U83,coating[],2,FALSE))","v":""},null,{"$f":"IF(W83=\"\",\"\",VLOOKUP(W83,pole_in_use[],2,FALSE))","v":""},null,{"$f":"IF(Y83=\"\",\"\",VLOOKUP(Y83,pole_control[],2,FALSE))","v":""},null,{"$f":"IF(AA83=\"\",\"\",VLOOKUP(AA83,power_company[],2,FALSE))","v":""},null,null,null,null,{"$f":"IF(AF83=\"\",\"\",VLOOKUP(AF83,Install_reason[],2,FALSE))","v":""},null,{"$f":"IF(AH83=\"\",\"\",VLOOKUP(AH83,status[],2,FALSE))","v":""},null,null,{"$f":"IF(AK83=\"\",\"\",VLOOKUP(AK83,asset_owner[],2,FALSE))","v":""},null,null,null,null,{"$f":"IF(AP83=\"\",\"\",VLOOKUP(AP83,gps_method[],2,FALSE))","v":""},null,{"$f":"IF(AR83=\"\",\"\",VLOOKUP(AR83,risk_likelihood[],2,FALSE))","v":""},null,{"$f":"IF(AT83=\"\",\"\",VLOOKUP(AT83,risk_consequence[],2,FALSE))","v":""},null,{"$f":"IF(AV83=\"\",\"\",VLOOKUP(AV83,risk[],2,FALSE))","v":""},null,{"$f":"IF(AX83=\"\",\"\",VLOOKUP(AX83,rul_reset[],2,FALSE))","v":""},null,{"$f":"IF(AZ83=\"\",\"\",VLOOKUP(AZ83,use_default_rc[],2,FALSE))","v":""},null,{"$f":"IF(BB83=\"\",\"\",VLOOKUP(BB83,condition[],2,FALSE))","v":""},null,null,{"$f":"IF(BE83=\"\",\"\",VLOOKUP(BE83,Organisation[],2,FALSE))","v":""}]
["null",null,null,null,{"$f":"IF(D84=\"\",\"\",VLOOKUP(D84,side[],2,FALSE))","v":""},null,null,{"$f":"IF(G84=\"\",\"\",VLOOKUP(G84,Material[],2,FALSE))","v":""},null,{"$f":"IF(I84=\"\",\"\",VLOOKUP(I84,shape[],2,FALSE))","v":""},null,{"$f":"IF(K84=\"\",\"\",VLOOKUP(K84,make[],2,FALSE))","v":""},null,"",null,{"$f":"IF(O84=\"\",\"\",VLOOKUP(O84,mounting_type[],2,FALSE))","v":""},null,{"$f":"IF(Q84=\"\",\"\",VLOOKUP(Q84,attachment[],2,FALSE))","v":""},null,{"$f":"IF(S84=\"\",\"\",VLOOKUP(S84,purpose[],2,FALSE))","v":""},null,{"$f":"IF(U84=\"\",\"\",VLOOKUP(U84,coating[],2,FALSE))","v":""},null,{"$f":"IF(W84=\"\",\"\",VLOOKUP(W84,pole_in_use[],2,FALSE))","v":""},null,{"$f":"IF(Y84=\"\",\"\",VLOOKUP(Y84,pole_control[],2,FALSE))","v":""},null,{"$f":"IF(AA84=\"\",\"\",VLOOKUP(AA84,power_company[],2,FALSE))","v":""},null,null,null,null,{"$f":"IF(AF84=\"\",\"\",VLOOKUP(AF84,Install_reason[],2,FALSE))","v":""},null,{"$f":"IF(AH84=\"\",\"\",VLOOKUP(AH84,status[],2,FALSE))","v":""},null,null,{"$f":"IF(AK84=\"\",\"\",VLOOKUP(AK84,asset_owner[],2,FALSE))","v":""},null,null,null,null,{"$f":"IF(AP84=\"\",\"\",VLOOKUP(AP84,gps_method[],2,FALSE))","v":""},null,{"$f":"IF(AR84=\"\",\"\",VLOOKUP(AR84,risk_likelihood[],2,FALSE))","v":""},null,{"$f":"IF(AT84=\"\",\"\",VLOOKUP(AT84,risk_consequence[],2,FALSE))","v":""},null,{"$f":"IF(AV84=\"\",\"\",VLOOKUP(AV84,risk[],2,FALSE))","v":""},null,{"$f":"IF(AX84=\"\",\"\",VLOOKUP(AX84,rul_reset[],2,FALSE))","v":""},null,{"$f":"IF(AZ84=\"\",\"\",VLOOKUP(AZ84,use_default_rc[],2,FALSE))","v":""},null,{"$f":"IF(BB84=\"\",\"\",VLOOKUP(BB84,condition[],2,FALSE))","v":""},null,null,{"$f":"IF(BE84=\"\",\"\",VLOOKUP(BE84,Organisation[],2,FALSE))","v":""}]
["null",null,null,null,{"$f":"IF(D85=\"\",\"\",VLOOKUP(D85,side[],2,FALSE))","v":""},null,null,{"$f":"IF(G85=\"\",\"\",VLOOKUP(G85,Material[],2,FALSE))","v":""},null,{"$f":"IF(I85=\"\",\"\",VLOOKUP(I85,shape[],2,FALSE))","v":""},null,{"$f":"IF(K85=\"\",\"\",VLOOKUP(K85,make[],2,FALSE))","v":""},null,"",null,{"$f":"IF(O85=\"\",\"\",VLOOKUP(O85,mounting_type[],2,FALSE))","v":""},null,{"$f":"IF(Q85=\"\",\"\",VLOOKUP(Q85,attachment[],2,FALSE))","v":""},null,{"$f":"IF(S85=\"\",\"\",VLOOKUP(S85,purpose[],2,FALSE))","v":""},null,{"$f":"IF(U85=\"\",\"\",VLOOKUP(U85,coating[],2,FALSE))","v":""},null,{"$f":"IF(W85=\"\",\"\",VLOOKUP(W85,pole_in_use[],2,FALSE))","v":""},null,{"$f":"IF(Y85=\"\",\"\",VLOOKUP(Y85,pole_control[],2,FALSE))","v":""},null,{"$f":"IF(AA85=\"\",\"\",VLOOKUP(AA85,power_company[],2,FALSE))","v":""},null,null,null,null,{"$f":"IF(AF85=\"\",\"\",VLOOKUP(AF85,Install_reason[],2,FALSE))","v":""},null,{"$f":"IF(AH85=\"\",\"\",VLOOKUP(AH85,status[],2,FALSE))","v":""},null,null,{"$f":"IF(AK85=\"\",\"\",VLOOKUP(AK85,asset_owner[],2,FALSE))","v":""},null,null,null,null,{"$f":"IF(AP85=\"\",\"\",VLOOKUP(AP85,gps_method[],2,FALSE))","v":""},null,{"$f":"IF(AR85=\"\",\"\",VLOOKUP(AR85,risk_likelihood[],2,FALSE))","v":""},null,{"$f":"IF(AT85=\"\",\"\",VLOOKUP(AT85,risk_consequence[],2,FALSE))","v":""},null,{"$f":"IF(AV85=\"\",\"\",VLOOKUP(AV85,risk[],2,FALSE))","v":""},null,{"$f":"IF(AX85=\"\",\"\",VLOOKUP(AX85,rul_reset[],2,FALSE))","v":""},null,{"$f":"IF(AZ85=\"\",\"\",VLOOKUP(AZ85,use_default_rc[],2,FALSE))","v":""},null,{"$f":"IF(BB85=\"\",\"\",VLOOKUP(BB85,condition[],2,FALSE))","v":""},null,null,{"$f":"IF(BE85=\"\",\"\",VLOOKUP(BE85,Organisation[],2,FALSE))","v":""}]
["null",null,null,null,{"$f":"IF(D86=\"\",\"\",VLOOKUP(D86,side[],2,FALSE))","v":""},null,null,{"$f":"IF(G86=\"\",\"\",VLOOKUP(G86,Material[],2,FALSE))","v":""},null,{"$f":"IF(I86=\"\",\"\",VLOOKUP(I86,shape[],2,FALSE))","v":""},null,{"$f":"IF(K86=\"\",\"\",VLOOKUP(K86,make[],2,FALSE))","v":""},null,"",null,{"$f":"IF(O86=\"\",\"\",VLOOKUP(O86,mounting_type[],2,FALSE))","v":""},null,{"$f":"IF(Q86=\"\",\"\",VLOOKUP(Q86,attachment[],2,FALSE))","v":""},null,{"$f":"IF(S86=\"\",\"\",VLOOKUP(S86,purpose[],2,FALSE))","v":""},null,{"$f":"IF(U86=\"\",\"\",VLOOKUP(U86,coating[],2,FALSE))","v":""},null,{"$f":"IF(W86=\"\",\"\",VLOOKUP(W86,pole_in_use[],2,FALSE))","v":""},null,{"$f":"IF(Y86=\"\",\"\",VLOOKUP(Y86,pole_control[],2,FALSE))","v":""},null,{"$f":"IF(AA86=\"\",\"\",VLOOKUP(AA86,power_company[],2,FALSE))","v":""},null,null,null,null,{"$f":"IF(AF86=\"\",\"\",VLOOKUP(AF86,Install_reason[],2,FALSE))","v":""},null,{"$f":"IF(AH86=\"\",\"\",VLOOKUP(AH86,status[],2,FALSE))","v":""},null,null,{"$f":"IF(AK86=\"\",\"\",VLOOKUP(AK86,asset_owner[],2,FALSE))","v":""},null,null,null,null,{"$f":"IF(AP86=\"\",\"\",VLOOKUP(AP86,gps_method[],2,FALSE))","v":""},null,{"$f":"IF(AR86=\"\",\"\",VLOOKUP(AR86,risk_likelihood[],2,FALSE))","v":""},null,{"$f":"IF(AT86=\"\",\"\",VLOOKUP(AT86,risk_consequence[],2,FALSE))","v":""},null,{"$f":"IF(AV86=\"\",\"\",VLOOKUP(AV86,risk[],2,FALSE))","v":""},null,{"$f":"IF(AX86=\"\",\"\",VLOOKUP(AX86,rul_reset[],2,FALSE))","v":""},null,{"$f":"IF(AZ86=\"\",\"\",VLOOKUP(AZ86,use_default_rc[],2,FALSE))","v":""},null,{"$f":"IF(BB86=\"\",\"\",VLOOKUP(BB86,condition[],2,FALSE))","v":""},null,null,{"$f":"IF(BE86=\"\",\"\",VLOOKUP(BE86,Organisation[],2,FALSE))","v":""}]
["null",null,null,null,{"$f":"IF(D87=\"\",\"\",VLOOKUP(D87,side[],2,FALSE))","v":""},null,null,{"$f":"IF(G87=\"\",\"\",VLOOKUP(G87,Material[],2,FALSE))","v":""},null,{"$f":"IF(I87=\"\",\"\",VLOOKUP(I87,shape[],2,FALSE))","v":""},null,{"$f":"IF(K87=\"\",\"\",VLOOKUP(K87,make[],2,FALSE))","v":""},null,"",null,{"$f":"IF(O87=\"\",\"\",VLOOKUP(O87,mounting_type[],2,FALSE))","v":""},null,{"$f":"IF(Q87=\"\",\"\",VLOOKUP(Q87,attachment[],2,FALSE))","v":""},null,{"$f":"IF(S87=\"\",\"\",VLOOKUP(S87,purpose[],2,FALSE))","v":""},null,{"$f":"IF(U87=\"\",\"\",VLOOKUP(U87,coating[],2,FALSE))","v":""},null,{"$f":"IF(W87=\"\",\"\",VLOOKUP(W87,pole_in_use[],2,FALSE))","v":""},null,{"$f":"IF(Y87=\"\",\"\",VLOOKUP(Y87,pole_control[],2,FALSE))","v":""},null,{"$f":"IF(AA87=\"\",\"\",VLOOKUP(AA87,power_company[],2,FALSE))","v":""},null,null,null,null,{"$f":"IF(AF87=\"\",\"\",VLOOKUP(AF87,Install_reason[],2,FALSE))","v":""},null,{"$f":"IF(AH87=\"\",\"\",VLOOKUP(AH87,status[],2,FALSE))","v":""},null,null,{"$f":"IF(AK87=\"\",\"\",VLOOKUP(AK87,asset_owner[],2,FALSE))","v":""},null,null,null,null,{"$f":"IF(AP87=\"\",\"\",VLOOKUP(AP87,gps_method[],2,FALSE))","v":""},null,{"$f":"IF(AR87=\"\",\"\",VLOOKUP(AR87,risk_likelihood[],2,FALSE))","v":""},null,{"$f":"IF(AT87=\"\",\"\",VLOOKUP(AT87,risk_consequence[],2,FALSE))","v":""},null,{"$f":"IF(AV87=\"\",\"\",VLOOKUP(AV87,risk[],2,FALSE))","v":""},null,{"$f":"IF(AX87=\"\",\"\",VLOOKUP(AX87,rul_reset[],2,FALSE))","v":""},null,{"$f":"IF(AZ87=\"\",\"\",VLOOKUP(AZ87,use_default_rc[],2,FALSE))","v":""},null,{"$f":"IF(BB87=\"\",\"\",VLOOKUP(BB87,condition[],2,FALSE))","v":""},null,null,{"$f":"IF(BE87=\"\",\"\",VLOOKUP(BE87,Organisation[],2,FALSE))","v":""}]
["null",null,null,null,{"$f":"IF(D88=\"\",\"\",VLOOKUP(D88,side[],2,FALSE))","v":""},null,null,{"$f":"IF(G88=\"\",\"\",VLOOKUP(G88,Material[],2,FALSE))","v":""},null,{"$f":"IF(I88=\"\",\"\",VLOOKUP(I88,shape[],2,FALSE))","v":""},null,{"$f":"IF(K88=\"\",\"\",VLOOKUP(K88,make[],2,FALSE))","v":""},null,"",null,{"$f":"IF(O88=\"\",\"\",VLOOKUP(O88,mounting_type[],2,FALSE))","v":""},null,{"$f":"IF(Q88=\"\",\"\",VLOOKUP(Q88,attachment[],2,FALSE))","v":""},null,{"$f":"IF(S88=\"\",\"\",VLOOKUP(S88,purpose[],2,FALSE))","v":""},null,{"$f":"IF(U88=\"\",\"\",VLOOKUP(U88,coating[],2,FALSE))","v":""},null,{"$f":"IF(W88=\"\",\"\",VLOOKUP(W88,pole_in_use[],2,FALSE))","v":""},null,{"$f":"IF(Y88=\"\",\"\",VLOOKUP(Y88,pole_control[],2,FALSE))","v":""},null,{"$f":"IF(AA88=\"\",\"\",VLOOKUP(AA88,power_company[],2,FALSE))","v":""},null,null,null,null,{"$f":"IF(AF88=\"\",\"\",VLOOKUP(AF88,Install_reason[],2,FALSE))","v":""},null,{"$f":"IF(AH88=\"\",\"\",VLOOKUP(AH88,status[],2,FALSE))","v":""},null,null,{"$f":"IF(AK88=\"\",\"\",VLOOKUP(AK88,asset_owner[],2,FALSE))","v":""},null,null,null,null,{"$f":"IF(AP88=\"\",\"\",VLOOKUP(AP88,gps_method[],2,FALSE))","v":""},null,{"$f":"IF(AR88=\"\",\"\",VLOOKUP(AR88,risk_likelihood[],2,FALSE))","v":""},null,{"$f":"IF(AT88=\"\",\"\",VLOOKUP(AT88,risk_consequence[],2,FALSE))","v":""},null,{"$f":"IF(AV88=\"\",\"\",VLOOKUP(AV88,risk[],2,FALSE))","v":""},null,{"$f":"IF(AX88=\"\",\"\",VLOOKUP(AX88,rul_reset[],2,FALSE))","v":""},null,{"$f":"IF(AZ88=\"\",\"\",VLOOKUP(AZ88,use_default_rc[],2,FALSE))","v":""},null,{"$f":"IF(BB88=\"\",\"\",VLOOKUP(BB88,condition[],2,FALSE))","v":""},null,null,{"$f":"IF(BE88=\"\",\"\",VLOOKUP(BE88,Organisation[],2,FALSE))","v":""}]
["null",null,null,null,{"$f":"IF(D89=\"\",\"\",VLOOKUP(D89,side[],2,FALSE))","v":""},null,null,{"$f":"IF(G89=\"\",\"\",VLOOKUP(G89,Material[],2,FALSE))","v":""},null,{"$f":"IF(I89=\"\",\"\",VLOOKUP(I89,shape[],2,FALSE))","v":""},null,{"$f":"IF(K89=\"\",\"\",VLOOKUP(K89,make[],2,FALSE))","v":""},null,"",null,{"$f":"IF(O89=\"\",\"\",VLOOKUP(O89,mounting_type[],2,FALSE))","v":""},null,{"$f":"IF(Q89=\"\",\"\",VLOOKUP(Q89,attachment[],2,FALSE))","v":""},null,{"$f":"IF(S89=\"\",\"\",VLOOKUP(S89,purpose[],2,FALSE))","v":""},null,{"$f":"IF(U89=\"\",\"\",VLOOKUP(U89,coating[],2,FALSE))","v":""},null,{"$f":"IF(W89=\"\",\"\",VLOOKUP(W89,pole_in_use[],2,FALSE))","v":""},null,{"$f":"IF(Y89=\"\",\"\",VLOOKUP(Y89,pole_control[],2,FALSE))","v":""},null,{"$f":"IF(AA89=\"\",\"\",VLOOKUP(AA89,power_company[],2,FALSE))","v":""},null,null,null,null,{"$f":"IF(AF89=\"\",\"\",VLOOKUP(AF89,Install_reason[],2,FALSE))","v":""},null,{"$f":"IF(AH89=\"\",\"\",VLOOKUP(AH89,status[],2,FALSE))","v":""},null,null,{"$f":"IF(AK89=\"\",\"\",VLOOKUP(AK89,asset_owner[],2,FALSE))","v":""},null,null,null,null,{"$f":"IF(AP89=\"\",\"\",VLOOKUP(AP89,gps_method[],2,FALSE))","v":""},null,{"$f":"IF(AR89=\"\",\"\",VLOOKUP(AR89,risk_likelihood[],2,FALSE))","v":""},null,{"$f":"IF(AT89=\"\",\"\",VLOOKUP(AT89,risk_consequence[],2,FALSE))","v":""},null,{"$f":"IF(AV89=\"\",\"\",VLOOKUP(AV89,risk[],2,FALSE))","v":""},null,{"$f":"IF(AX89=\"\",\"\",VLOOKUP(AX89,rul_reset[],2,FALSE))","v":""},null,{"$f":"IF(AZ89=\"\",\"\",VLOOKUP(AZ89,use_default_rc[],2,FALSE))","v":""},null,{"$f":"IF(BB89=\"\",\"\",VLOOKUP(BB89,condition[],2,FALSE))","v":""},null,null,{"$f":"IF(BE89=\"\",\"\",VLOOKUP(BE89,Organisation[],2,FALSE))","v":""}]
["null",null,null,null,{"$f":"IF(D90=\"\",\"\",VLOOKUP(D90,side[],2,FALSE))","v":""},null,null,{"$f":"IF(G90=\"\",\"\",VLOOKUP(G90,Material[],2,FALSE))","v":""},null,{"$f":"IF(I90=\"\",\"\",VLOOKUP(I90,shape[],2,FALSE))","v":""},null,{"$f":"IF(K90=\"\",\"\",VLOOKUP(K90,make[],2,FALSE))","v":""},null,"",null,{"$f":"IF(O90=\"\",\"\",VLOOKUP(O90,mounting_type[],2,FALSE))","v":""},null,{"$f":"IF(Q90=\"\",\"\",VLOOKUP(Q90,attachment[],2,FALSE))","v":""},null,{"$f":"IF(S90=\"\",\"\",VLOOKUP(S90,purpose[],2,FALSE))","v":""},null,{"$f":"IF(U90=\"\",\"\",VLOOKUP(U90,coating[],2,FALSE))","v":""},null,{"$f":"IF(W90=\"\",\"\",VLOOKUP(W90,pole_in_use[],2,FALSE))","v":""},null,{"$f":"IF(Y90=\"\",\"\",VLOOKUP(Y90,pole_control[],2,FALSE))","v":""},null,{"$f":"IF(AA90=\"\",\"\",VLOOKUP(AA90,power_company[],2,FALSE))","v":""},null,null,null,null,{"$f":"IF(AF90=\"\",\"\",VLOOKUP(AF90,Install_reason[],2,FALSE))","v":""},null,{"$f":"IF(AH90=\"\",\"\",VLOOKUP(AH90,status[],2,FALSE))","v":""},null,null,{"$f":"IF(AK90=\"\",\"\",VLOOKUP(AK90,asset_owner[],2,FALSE))","v":""},null,null,null,null,{"$f":"IF(AP90=\"\",\"\",VLOOKUP(AP90,gps_method[],2,FALSE))","v":""},null,{"$f":"IF(AR90=\"\",\"\",VLOOKUP(AR90,risk_likelihood[],2,FALSE))","v":""},null,{"$f":"IF(AT90=\"\",\"\",VLOOKUP(AT90,risk_consequence[],2,FALSE))","v":""},null,{"$f":"IF(AV90=\"\",\"\",VLOOKUP(AV90,risk[],2,FALSE))","v":""},null,{"$f":"IF(AX90=\"\",\"\",VLOOKUP(AX90,rul_reset[],2,FALSE))","v":""},null,{"$f":"IF(AZ90=\"\",\"\",VLOOKUP(AZ90,use_default_rc[],2,FALSE))","v":""},null,{"$f":"IF(BB90=\"\",\"\",VLOOKUP(BB90,condition[],2,FALSE))","v":""},null,null,{"$f":"IF(BE90=\"\",\"\",VLOOKUP(BE90,Organisation[],2,FALSE))","v":""}]
["null",null,null,null,{"$f":"IF(D91=\"\",\"\",VLOOKUP(D91,side[],2,FALSE))","v":""},null,null,{"$f":"IF(G91=\"\",\"\",VLOOKUP(G91,Material[],2,FALSE))","v":""},null,{"$f":"IF(I91=\"\",\"\",VLOOKUP(I91,shape[],2,FALSE))","v":""},null,{"$f":"IF(K91=\"\",\"\",VLOOKUP(K91,make[],2,FALSE))","v":""},null,"",null,{"$f":"IF(O91=\"\",\"\",VLOOKUP(O91,mounting_type[],2,FALSE))","v":""},null,{"$f":"IF(Q91=\"\",\"\",VLOOKUP(Q91,attachment[],2,FALSE))","v":""},null,{"$f":"IF(S91=\"\",\"\",VLOOKUP(S91,purpose[],2,FALSE))","v":""},null,{"$f":"IF(U91=\"\",\"\",VLOOKUP(U91,coating[],2,FALSE))","v":""},null,{"$f":"IF(W91=\"\",\"\",VLOOKUP(W91,pole_in_use[],2,FALSE))","v":""},null,{"$f":"IF(Y91=\"\",\"\",VLOOKUP(Y91,pole_control[],2,FALSE))","v":""},null,{"$f":"IF(AA91=\"\",\"\",VLOOKUP(AA91,power_company[],2,FALSE))","v":""},null,null,null,null,{"$f":"IF(AF91=\"\",\"\",VLOOKUP(AF91,Install_reason[],2,FALSE))","v":""},null,{"$f":"IF(AH91=\"\",\"\",VLOOKUP(AH91,status[],2,FALSE))","v":""},null,null,{"$f":"IF(AK91=\"\",\"\",VLOOKUP(AK91,asset_owner[],2,FALSE))","v":""},null,null,null,null,{"$f":"IF(AP91=\"\",\"\",VLOOKUP(AP91,gps_method[],2,FALSE))","v":""},null,{"$f":"IF(AR91=\"\",\"\",VLOOKUP(AR91,risk_likelihood[],2,FALSE))","v":""},null,{"$f":"IF(AT91=\"\",\"\",VLOOKUP(AT91,risk_consequence[],2,FALSE))","v":""},null,{"$f":"IF(AV91=\"\",\"\",VLOOKUP(AV91,risk[],2,FALSE))","v":""},null,{"$f":"IF(AX91=\"\",\"\",VLOOKUP(AX91,rul_reset[],2,FALSE))","v":""},null,{"$f":"IF(AZ91=\"\",\"\",VLOOKUP(AZ91,use_default_rc[],2,FALSE))","v":""},null,{"$f":"IF(BB91=\"\",\"\",VLOOKUP(BB91,condition[],2,FALSE))","v":""},null,null,{"$f":"IF(BE91=\"\",\"\",VLOOKUP(BE91,Organisation[],2,FALSE))","v":""}]
["null",null,null,null,{"$f":"IF(D92=\"\",\"\",VLOOKUP(D92,side[],2,FALSE))","v":""},null,null,{"$f":"IF(G92=\"\",\"\",VLOOKUP(G92,Material[],2,FALSE))","v":""},null,{"$f":"IF(I92=\"\",\"\",VLOOKUP(I92,shape[],2,FALSE))","v":""},null,{"$f":"IF(K92=\"\",\"\",VLOOKUP(K92,make[],2,FALSE))","v":""},null,"",null,{"$f":"IF(O92=\"\",\"\",VLOOKUP(O92,mounting_type[],2,FALSE))","v":""},null,{"$f":"IF(Q92=\"\",\"\",VLOOKUP(Q92,attachment[],2,FALSE))","v":""},null,{"$f":"IF(S92=\"\",\"\",VLOOKUP(S92,purpose[],2,FALSE))","v":""},null,{"$f":"IF(U92=\"\",\"\",VLOOKUP(U92,coating[],2,FALSE))","v":""},null,{"$f":"IF(W92=\"\",\"\",VLOOKUP(W92,pole_in_use[],2,FALSE))","v":""},null,{"$f":"IF(Y92=\"\",\"\",VLOOKUP(Y92,pole_control[],2,FALSE))","v":""},null,{"$f":"IF(AA92=\"\",\"\",VLOOKUP(AA92,power_company[],2,FALSE))","v":""},null,null,null,null,{"$f":"IF(AF92=\"\",\"\",VLOOKUP(AF92,Install_reason[],2,FALSE))","v":""},null,{"$f":"IF(AH92=\"\",\"\",VLOOKUP(AH92,status[],2,FALSE))","v":""},null,null,{"$f":"IF(AK92=\"\",\"\",VLOOKUP(AK92,asset_owner[],2,FALSE))","v":""},null,null,null,null,{"$f":"IF(AP92=\"\",\"\",VLOOKUP(AP92,gps_method[],2,FALSE))","v":""},null,{"$f":"IF(AR92=\"\",\"\",VLOOKUP(AR92,risk_likelihood[],2,FALSE))","v":""},null,{"$f":"IF(AT92=\"\",\"\",VLOOKUP(AT92,risk_consequence[],2,FALSE))","v":""},null,{"$f":"IF(AV92=\"\",\"\",VLOOKUP(AV92,risk[],2,FALSE))","v":""},null,{"$f":"IF(AX92=\"\",\"\",VLOOKUP(AX92,rul_reset[],2,FALSE))","v":""},null,{"$f":"IF(AZ92=\"\",\"\",VLOOKUP(AZ92,use_default_rc[],2,FALSE))","v":""},null,{"$f":"IF(BB92=\"\",\"\",VLOOKUP(BB92,condition[],2,FALSE))","v":""},null,null,{"$f":"IF(BE92=\"\",\"\",VLOOKUP(BE92,Organisation[],2,FALSE))","v":""}]
["null",null,null,null,{"$f":"IF(D93=\"\",\"\",VLOOKUP(D93,side[],2,FALSE))","v":""},null,null,{"$f":"IF(G93=\"\",\"\",VLOOKUP(G93,Material[],2,FALSE))","v":""},null,{"$f":"IF(I93=\"\",\"\",VLOOKUP(I93,shape[],2,FALSE))","v":""},null,{"$f":"IF(K93=\"\",\"\",VLOOKUP(K93,make[],2,FALSE))","v":""},null,"",null,{"$f":"IF(O93=\"\",\"\",VLOOKUP(O93,mounting_type[],2,FALSE))","v":""},null,{"$f":"IF(Q93=\"\",\"\",VLOOKUP(Q93,attachment[],2,FALSE))","v":""},null,{"$f":"IF(S93=\"\",\"\",VLOOKUP(S93,purpose[],2,FALSE))","v":""},null,{"$f":"IF(U93=\"\",\"\",VLOOKUP(U93,coating[],2,FALSE))","v":""},null,{"$f":"IF(W93=\"\",\"\",VLOOKUP(W93,pole_in_use[],2,FALSE))","v":""},null,{"$f":"IF(Y93=\"\",\"\",VLOOKUP(Y93,pole_control[],2,FALSE))","v":""},null,{"$f":"IF(AA93=\"\",\"\",VLOOKUP(AA93,power_company[],2,FALSE))","v":""},null,null,null,null,{"$f":"IF(AF93=\"\",\"\",VLOOKUP(AF93,Install_reason[],2,FALSE))","v":""},null,{"$f":"IF(AH93=\"\",\"\",VLOOKUP(AH93,status[],2,FALSE))","v":""},null,null,{"$f":"IF(AK93=\"\",\"\",VLOOKUP(AK93,asset_owner[],2,FALSE))","v":""},null,null,null,null,{"$f":"IF(AP93=\"\",\"\",VLOOKUP(AP93,gps_method[],2,FALSE))","v":""},null,{"$f":"IF(AR93=\"\",\"\",VLOOKUP(AR93,risk_likelihood[],2,FALSE))","v":""},null,{"$f":"IF(AT93=\"\",\"\",VLOOKUP(AT93,risk_consequence[],2,FALSE))","v":""},null,{"$f":"IF(AV93=\"\",\"\",VLOOKUP(AV93,risk[],2,FALSE))","v":""},null,{"$f":"IF(AX93=\"\",\"\",VLOOKUP(AX93,rul_reset[],2,FALSE))","v":""},null,{"$f":"IF(AZ93=\"\",\"\",VLOOKUP(AZ93,use_default_rc[],2,FALSE))","v":""},null,{"$f":"IF(BB93=\"\",\"\",VLOOKUP(BB93,condition[],2,FALSE))","v":""},null,null,{"$f":"IF(BE93=\"\",\"\",VLOOKUP(BE93,Organisation[],2,FALSE))","v":""}]
["null",null,null,null,{"$f":"IF(D94=\"\",\"\",VLOOKUP(D94,side[],2,FALSE))","v":""},null,null,{"$f":"IF(G94=\"\",\"\",VLOOKUP(G94,Material[],2,FALSE))","v":""},null,{"$f":"IF(I94=\"\",\"\",VLOOKUP(I94,shape[],2,FALSE))","v":""},null,{"$f":"IF(K94=\"\",\"\",VLOOKUP(K94,make[],2,FALSE))","v":""},null,"",null,{"$f":"IF(O94=\"\",\"\",VLOOKUP(O94,mounting_type[],2,FALSE))","v":""},null,{"$f":"IF(Q94=\"\",\"\",VLOOKUP(Q94,attachment[],2,FALSE))","v":""},null,{"$f":"IF(S94=\"\",\"\",VLOOKUP(S94,purpose[],2,FALSE))","v":""},null,{"$f":"IF(U94=\"\",\"\",VLOOKUP(U94,coating[],2,FALSE))","v":""},null,{"$f":"IF(W94=\"\",\"\",VLOOKUP(W94,pole_in_use[],2,FALSE))","v":""},null,{"$f":"IF(Y94=\"\",\"\",VLOOKUP(Y94,pole_control[],2,FALSE))","v":""},null,{"$f":"IF(AA94=\"\",\"\",VLOOKUP(AA94,power_company[],2,FALSE))","v":""},null,null,null,null,{"$f":"IF(AF94=\"\",\"\",VLOOKUP(AF94,Install_reason[],2,FALSE))","v":""},null,{"$f":"IF(AH94=\"\",\"\",VLOOKUP(AH94,status[],2,FALSE))","v":""},null,null,{"$f":"IF(AK94=\"\",\"\",VLOOKUP(AK94,asset_owner[],2,FALSE))","v":""},null,null,null,null,{"$f":"IF(AP94=\"\",\"\",VLOOKUP(AP94,gps_method[],2,FALSE))","v":""},null,{"$f":"IF(AR94=\"\",\"\",VLOOKUP(AR94,risk_likelihood[],2,FALSE))","v":""},null,{"$f":"IF(AT94=\"\",\"\",VLOOKUP(AT94,risk_consequence[],2,FALSE))","v":""},null,{"$f":"IF(AV94=\"\",\"\",VLOOKUP(AV94,risk[],2,FALSE))","v":""},null,{"$f":"IF(AX94=\"\",\"\",VLOOKUP(AX94,rul_reset[],2,FALSE))","v":""},null,{"$f":"IF(AZ94=\"\",\"\",VLOOKUP(AZ94,use_default_rc[],2,FALSE))","v":""},null,{"$f":"IF(BB94=\"\",\"\",VLOOKUP(BB94,condition[],2,FALSE))","v":""},null,null,{"$f":"IF(BE94=\"\",\"\",VLOOKUP(BE94,Organisation[],2,FALSE))","v":""}]
["null",null,null,null,{"$f":"IF(D95=\"\",\"\",VLOOKUP(D95,side[],2,FALSE))","v":""},null,null,{"$f":"IF(G95=\"\",\"\",VLOOKUP(G95,Material[],2,FALSE))","v":""},null,{"$f":"IF(I95=\"\",\"\",VLOOKUP(I95,shape[],2,FALSE))","v":""},null,{"$f":"IF(K95=\"\",\"\",VLOOKUP(K95,make[],2,FALSE))","v":""},null,"",null,{"$f":"IF(O95=\"\",\"\",VLOOKUP(O95,mounting_type[],2,FALSE))","v":""},null,{"$f":"IF(Q95=\"\",\"\",VLOOKUP(Q95,attachment[],2,FALSE))","v":""},null,{"$f":"IF(S95=\"\",\"\",VLOOKUP(S95,purpose[],2,FALSE))","v":""},null,{"$f":"IF(U95=\"\",\"\",VLOOKUP(U95,coating[],2,FALSE))","v":""},null,{"$f":"IF(W95=\"\",\"\",VLOOKUP(W95,pole_in_use[],2,FALSE))","v":""},null,{"$f":"IF(Y95=\"\",\"\",VLOOKUP(Y95,pole_control[],2,FALSE))","v":""},null,{"$f":"IF(AA95=\"\",\"\",VLOOKUP(AA95,power_company[],2,FALSE))","v":""},null,null,null,null,{"$f":"IF(AF95=\"\",\"\",VLOOKUP(AF95,Install_reason[],2,FALSE))","v":""},null,{"$f":"IF(AH95=\"\",\"\",VLOOKUP(AH95,status[],2,FALSE))","v":""},null,null,{"$f":"IF(AK95=\"\",\"\",VLOOKUP(AK95,asset_owner[],2,FALSE))","v":""},null,null,null,null,{"$f":"IF(AP95=\"\",\"\",VLOOKUP(AP95,gps_method[],2,FALSE))","v":""},null,{"$f":"IF(AR95=\"\",\"\",VLOOKUP(AR95,risk_likelihood[],2,FALSE))","v":""},null,{"$f":"IF(AT95=\"\",\"\",VLOOKUP(AT95,risk_consequence[],2,FALSE))","v":""},null,{"$f":"IF(AV95=\"\",\"\",VLOOKUP(AV95,risk[],2,FALSE))","v":""},null,{"$f":"IF(AX95=\"\",\"\",VLOOKUP(AX95,rul_reset[],2,FALSE))","v":""},null,{"$f":"IF(AZ95=\"\",\"\",VLOOKUP(AZ95,use_default_rc[],2,FALSE))","v":""},null,{"$f":"IF(BB95=\"\",\"\",VLOOKUP(BB95,condition[],2,FALSE))","v":""},null,null,{"$f":"IF(BE95=\"\",\"\",VLOOKUP(BE95,Organisation[],2,FALSE))","v":""}]
["null",null,null,null,{"$f":"IF(D96=\"\",\"\",VLOOKUP(D96,side[],2,FALSE))","v":""},null,null,{"$f":"IF(G96=\"\",\"\",VLOOKUP(G96,Material[],2,FALSE))","v":""},null,{"$f":"IF(I96=\"\",\"\",VLOOKUP(I96,shape[],2,FALSE))","v":""},null,{"$f":"IF(K96=\"\",\"\",VLOOKUP(K96,make[],2,FALSE))","v":""},null,"",null,{"$f":"IF(O96=\"\",\"\",VLOOKUP(O96,mounting_type[],2,FALSE))","v":""},null,{"$f":"IF(Q96=\"\",\"\",VLOOKUP(Q96,attachment[],2,FALSE))","v":""},null,{"$f":"IF(S96=\"\",\"\",VLOOKUP(S96,purpose[],2,FALSE))","v":""},null,{"$f":"IF(U96=\"\",\"\",VLOOKUP(U96,coating[],2,FALSE))","v":""},null,{"$f":"IF(W96=\"\",\"\",VLOOKUP(W96,pole_in_use[],2,FALSE))","v":""},null,{"$f":"IF(Y96=\"\",\"\",VLOOKUP(Y96,pole_control[],2,FALSE))","v":""},null,{"$f":"IF(AA96=\"\",\"\",VLOOKUP(AA96,power_company[],2,FALSE))","v":""},null,null,null,null,{"$f":"IF(AF96=\"\",\"\",VLOOKUP(AF96,Install_reason[],2,FALSE))","v":""},null,{"$f":"IF(AH96=\"\",\"\",VLOOKUP(AH96,status[],2,FALSE))","v":""},null,null,{"$f":"IF(AK96=\"\",\"\",VLOOKUP(AK96,asset_owner[],2,FALSE))","v":""},null,null,null,null,{"$f":"IF(AP96=\"\",\"\",VLOOKUP(AP96,gps_method[],2,FALSE))","v":""},null,{"$f":"IF(AR96=\"\",\"\",VLOOKUP(AR96,risk_likelihood[],2,FALSE))","v":""},null,{"$f":"IF(AT96=\"\",\"\",VLOOKUP(AT96,risk_consequence[],2,FALSE))","v":""},null,{"$f":"IF(AV96=\"\",\"\",VLOOKUP(AV96,risk[],2,FALSE))","v":""},null,{"$f":"IF(AX96=\"\",\"\",VLOOKUP(AX96,rul_reset[],2,FALSE))","v":""},null,{"$f":"IF(AZ96=\"\",\"\",VLOOKUP(AZ96,use_default_rc[],2,FALSE))","v":""},null,{"$f":"IF(BB96=\"\",\"\",VLOOKUP(BB96,condition[],2,FALSE))","v":""},null,null,{"$f":"IF(BE96=\"\",\"\",VLOOKUP(BE96,Organisation[],2,FALSE))","v":""}]
["null",null,null,null,{"$f":"IF(D97=\"\",\"\",VLOOKUP(D97,side[],2,FALSE))","v":""},null,null,{"$f":"IF(G97=\"\",\"\",VLOOKUP(G97,Material[],2,FALSE))","v":""},null,{"$f":"IF(I97=\"\",\"\",VLOOKUP(I97,shape[],2,FALSE))","v":""},null,{"$f":"IF(K97=\"\",\"\",VLOOKUP(K97,make[],2,FALSE))","v":""},null,"",null,{"$f":"IF(O97=\"\",\"\",VLOOKUP(O97,mounting_type[],2,FALSE))","v":""},null,{"$f":"IF(Q97=\"\",\"\",VLOOKUP(Q97,attachment[],2,FALSE))","v":""},null,{"$f":"IF(S97=\"\",\"\",VLOOKUP(S97,purpose[],2,FALSE))","v":""},null,{"$f":"IF(U97=\"\",\"\",VLOOKUP(U97,coating[],2,FALSE))","v":""},null,{"$f":"IF(W97=\"\",\"\",VLOOKUP(W97,pole_in_use[],2,FALSE))","v":""},null,{"$f":"IF(Y97=\"\",\"\",VLOOKUP(Y97,pole_control[],2,FALSE))","v":""},null,{"$f":"IF(AA97=\"\",\"\",VLOOKUP(AA97,power_company[],2,FALSE))","v":""},null,null,null,null,{"$f":"IF(AF97=\"\",\"\",VLOOKUP(AF97,Install_reason[],2,FALSE))","v":""},null,{"$f":"IF(AH97=\"\",\"\",VLOOKUP(AH97,status[],2,FALSE))","v":""},null,null,{"$f":"IF(AK97=\"\",\"\",VLOOKUP(AK97,asset_owner[],2,FALSE))","v":""},null,null,null,null,{"$f":"IF(AP97=\"\",\"\",VLOOKUP(AP97,gps_method[],2,FALSE))","v":""},null,{"$f":"IF(AR97=\"\",\"\",VLOOKUP(AR97,risk_likelihood[],2,FALSE))","v":""},null,{"$f":"IF(AT97=\"\",\"\",VLOOKUP(AT97,risk_consequence[],2,FALSE))","v":""},null,{"$f":"IF(AV97=\"\",\"\",VLOOKUP(AV97,risk[],2,FALSE))","v":""},null,{"$f":"IF(AX97=\"\",\"\",VLOOKUP(AX97,rul_reset[],2,FALSE))","v":""},null,{"$f":"IF(AZ97=\"\",\"\",VLOOKUP(AZ97,use_default_rc[],2,FALSE))","v":""},null,{"$f":"IF(BB97=\"\",\"\",VLOOKUP(BB97,condition[],2,FALSE))","v":""},null,null,{"$f":"IF(BE97=\"\",\"\",VLOOKUP(BE97,Organisation[],2,FALSE))","v":""}]
["null",null,null,null,{"$f":"IF(D98=\"\",\"\",VLOOKUP(D98,side[],2,FALSE))","v":""},null,null,{"$f":"IF(G98=\"\",\"\",VLOOKUP(G98,Material[],2,FALSE))","v":""},null,{"$f":"IF(I98=\"\",\"\",VLOOKUP(I98,shape[],2,FALSE))","v":""},null,{"$f":"IF(K98=\"\",\"\",VLOOKUP(K98,make[],2,FALSE))","v":""},null,"",null,{"$f":"IF(O98=\"\",\"\",VLOOKUP(O98,mounting_type[],2,FALSE))","v":""},null,{"$f":"IF(Q98=\"\",\"\",VLOOKUP(Q98,attachment[],2,FALSE))","v":""},null,{"$f":"IF(S98=\"\",\"\",VLOOKUP(S98,purpose[],2,FALSE))","v":""},null,{"$f":"IF(U98=\"\",\"\",VLOOKUP(U98,coating[],2,FALSE))","v":""},null,{"$f":"IF(W98=\"\",\"\",VLOOKUP(W98,pole_in_use[],2,FALSE))","v":""},null,{"$f":"IF(Y98=\"\",\"\",VLOOKUP(Y98,pole_control[],2,FALSE))","v":""},null,{"$f":"IF(AA98=\"\",\"\",VLOOKUP(AA98,power_company[],2,FALSE))","v":""},null,null,null,null,{"$f":"IF(AF98=\"\",\"\",VLOOKUP(AF98,Install_reason[],2,FALSE))","v":""},null,{"$f":"IF(AH98=\"\",\"\",VLOOKUP(AH98,status[],2,FALSE))","v":""},null,null,{"$f":"IF(AK98=\"\",\"\",VLOOKUP(AK98,asset_owner[],2,FALSE))","v":""},null,null,null,null,{"$f":"IF(AP98=\"\",\"\",VLOOKUP(AP98,gps_method[],2,FALSE))","v":""},null,{"$f":"IF(AR98=\"\",\"\",VLOOKUP(AR98,risk_likelihood[],2,FALSE))","v":""},null,{"$f":"IF(AT98=\"\",\"\",VLOOKUP(AT98,risk_consequence[],2,FALSE))","v":""},null,{"$f":"IF(AV98=\"\",\"\",VLOOKUP(AV98,risk[],2,FALSE))","v":""},null,{"$f":"IF(AX98=\"\",\"\",VLOOKUP(AX98,rul_reset[],2,FALSE))","v":""},null,{"$f":"IF(AZ98=\"\",\"\",VLOOKUP(AZ98,use_default_rc[],2,FALSE))","v":""},null,{"$f":"IF(BB98=\"\",\"\",VLOOKUP(BB98,condition[],2,FALSE))","v":""},null,null,{"$f":"IF(BE98=\"\",\"\",VLOOKUP(BE98,Organisation[],2,FALSE))","v":""}]
["null",null,null,null,{"$f":"IF(D99=\"\",\"\",VLOOKUP(D99,side[],2,FALSE))","v":""},null,null,{"$f":"IF(G99=\"\",\"\",VLOOKUP(G99,Material[],2,FALSE))","v":""},null,{"$f":"IF(I99=\"\",\"\",VLOOKUP(I99,shape[],2,FALSE))","v":""},null,{"$f":"IF(K99=\"\",\"\",VLOOKUP(K99,make[],2,FALSE))","v":""},null,"",null,{"$f":"IF(O99=\"\",\"\",VLOOKUP(O99,mounting_type[],2,FALSE))","v":""},null,{"$f":"IF(Q99=\"\",\"\",VLOOKUP(Q99,attachment[],2,FALSE))","v":""},null,{"$f":"IF(S99=\"\",\"\",VLOOKUP(S99,purpose[],2,FALSE))","v":""},null,{"$f":"IF(U99=\"\",\"\",VLOOKUP(U99,coating[],2,FALSE))","v":""},null,{"$f":"IF(W99=\"\",\"\",VLOOKUP(W99,pole_in_use[],2,FALSE))","v":""},null,{"$f":"IF(Y99=\"\",\"\",VLOOKUP(Y99,pole_control[],2,FALSE))","v":""},null,{"$f":"IF(AA99=\"\",\"\",VLOOKUP(AA99,power_company[],2,FALSE))","v":""},null,null,null,null,{"$f":"IF(AF99=\"\",\"\",VLOOKUP(AF99,Install_reason[],2,FALSE))","v":""},null,{"$f":"IF(AH99=\"\",\"\",VLOOKUP(AH99,status[],2,FALSE))","v":""},null,null,{"$f":"IF(AK99=\"\",\"\",VLOOKUP(AK99,asset_owner[],2,FALSE))","v":""},null,null,null,null,{"$f":"IF(AP99=\"\",\"\",VLOOKUP(AP99,gps_method[],2,FALSE))","v":""},null,{"$f":"IF(AR99=\"\",\"\",VLOOKUP(AR99,risk_likelihood[],2,FALSE))","v":""},null,{"$f":"IF(AT99=\"\",\"\",VLOOKUP(AT99,risk_consequence[],2,FALSE))","v":""},null,{"$f":"IF(AV99=\"\",\"\",VLOOKUP(AV99,risk[],2,FALSE))","v":""},null,{"$f":"IF(AX99=\"\",\"\",VLOOKUP(AX99,rul_reset[],2,FALSE))","v":""},null,{"$f":"IF(AZ99=\"\",\"\",VLOOKUP(AZ99,use_default_rc[],2,FALSE))","v":""},null,{"$f":"IF(BB99=\"\",\"\",VLOOKUP(BB99,condition[],2,FALSE))","v":""},null,null,{"$f":"IF(BE99=\"\",\"\",VLOOKUP(BE99,Organisation[],2,FALSE))","v":""}]
["null",null,null,null,{"$f":"IF(D100=\"\",\"\",VLOOKUP(D100,side[],2,FALSE))","v":""},null,null,{"$f":"IF(G100=\"\",\"\",VLOOKUP(G100,Material[],2,FALSE))","v":""},null,{"$f":"IF(I100=\"\",\"\",VLOOKUP(I100,shape[],2,FALSE))","v":""},null,{"$f":"IF(K100=\"\",\"\",VLOOKUP(K100,make[],2,FALSE))","v":""},null,{"$f":"IF(M100=\"\",\"\",VLOOKUP(M100,model,2,FALSE))","v":""},null,{"$f":"IF(O100=\"\",\"\",VLOOKUP(O100,mounting_type[],2,FALSE))","v":""},null,{"$f":"IF(Q100=\"\",\"\",VLOOKUP(Q100,attachment[],2,FALSE))","v":""},null,{"$f":"IF(S100=\"\",\"\",VLOOKUP(S100,purpose[],2,FALSE))","v":""},null,{"$f":"IF(U100=\"\",\"\",VLOOKUP(U100,coating[],2,FALSE))","v":""},null,{"$f":"IF(W100=\"\",\"\",VLOOKUP(W100,pole_in_use[],2,FALSE))","v":""},null,{"$f":"IF(Y100=\"\",\"\",VLOOKUP(Y100,pole_control[],2,FALSE))","v":""},null,{"$f":"IF(AA100=\"\",\"\",VLOOKUP(AA100,power_company[],2,FALSE))","v":""},null,null,null,null,{"$f":"IF(AF100=\"\",\"\",VLOOKUP(AF100,Install_reason[],2,FALSE))","v":""},null,{"$f":"IF(AH100=\"\",\"\",VLOOKUP(AH100,status[],2,FALSE))","v":""},null,null,{"$f":"IF(AK100=\"\",\"\",VLOOKUP(AK100,asset_owner[],2,FALSE))","v":""},null,null,null,null,{"$f":"IF(AP100=\"\",\"\",VLOOKUP(AP100,gps_method[],2,FALSE))","v":""},null,{"$f":"IF(AR100=\"\",\"\",VLOOKUP(AR100,risk_likelihood[],2,FALSE))","v":""},null,{"$f":"IF(AT100=\"\",\"\",VLOOKUP(AT100,risk_consequence[],2,FALSE))","v":""},null,{"$f":"IF(AV100=\"\",\"\",VLOOKUP(AV100,risk[],2,FALSE))","v":""},null,{"$f":"IF(AX100=\"\",\"\",VLOOKUP(AX100,rul_reset[],2,FALSE))","v":""},null,{"$f":"IF(AZ100=\"\",\"\",VLOOKUP(AZ100,use_default_rc[],2,FALSE))","v":""},null,{"$f":"IF(BB100=\"\",\"\",VLOOKUP(BB100,condition[],2,FALSE))","v":""},null,null,{"$f":"IF(BE100=\"\",\"\",VLOOKUP(BE100,Organisation[],2,FALSE))","v":""}]

{"sheet":"Lookups","index":1,"n_rows":158,"n_cols":68,"rows_kept":158,"cut":false,"hidden":false,"merged":[]}
["material.description","material.code",null,"shape.description","shape.code",null,"make.description","make.code",null,"model.description","model.code",null,"mounting type.description","mounting type.code",null,"attachment.description","attachment.code",null,"purpose description","purpose code",null,"coating.description","coating.code",null,"pole_in_use.description","pole_in_use.code",null,"pole_control.description","pole_control.code",null,"power_company.description","power_company.code",null,"side.description","side.code",null,"Install reason.description","Install reason.code",null,"status.description","status.code",null,"asset owner.description","asset owner.code",null,"gps method.description","gps method.code",null,"condition.description","condition.code",null,"Organisation.description","Organisation.code",null,"risk_likelihood.description","risk_likelihood.code",null,"risk_consequence.description","risk_consequence.code",null,"risk.description","risk.code",null,"rul_reset.description","rul_reset.code",null,"use_default_rc.description","use_default_rc.code"]
["Alimiumn","AL",null,"Bollard","B",null,"Concrete Precast","CP",null,"10M","10M",null,"ShearBase Adaptor","AP",null,"Banner Arm","BA",null,"Anchor pole","A",null,"Epoxy Paint System","EPOX",null,"Not in use","N",null,"Other","O",null,"Contact Energy","CE",null,"Centre","C",null,"Removed","99",null,"New","N",null,"Horizon","HZ",null,"Aerial photography","A",null,"Excellent","1",null,"3M","3M",null,"Rare","1",null,"Insignificant","1",null,"Very Low","1",null,"Not Reset","N",null,"Default","D"]
["Concrete","CON",null,"Circular","CIRC",null,"CSP Pacific","CSP",null,"11M","11M",null,"Building","B",null,"Banner Arm (Double Bracket)","DBA",null,"Trolley/Tram Bus pole","B",null,"Galvanised & Epoxy","GALE",null,"Yes","Y",null,"Photocell","P",null,"Electra","EL",null,"Left","L",null,"Accident Damage","AD",null,"Reconditioned","R",null,"Local Authority","LA",null,"Default","D",null,"Good","2",null,"Automobile Association","AA",null,"Unlikely","2",null,"Minor","2",null,"Low","2",null,"Reset to Zero","R",null,"User","U"]
["Fibreglass","FIBR",null,"Hexagonal","HEX",null,"Fergusson","F",null,"12M","12M",null,"Bridge","BR",null,"Information Sign","IS",null,"Electrical distribution","E",null,"Galvanised","GALV",null,null,null,null,"Relay","R",null,"Genesis","GE",null,"Right","R",null,"Aged - bulb blown","AG",null,null,null,null,"NZTA","NZ",null,"GPS device","G",null,"Average","3",null,"Auckland Council","ACC",null,"Possible","3",null,"Moderate","3",null,"Medium","3"]
["High Steel (wind resistant)","HSTE",null,"I Beam","IB",null,"Fibreglass Company","FC",null,"7M","7M",null,"Corbel","CO",null,"Lighting Harness and Banner Arm","LB",null,"Transformer","F",null,"None","NONE",null,null,null,null,"Timeswitch","T",null,"North Power","NP",null,null,null,null,"Block Change","BC",null,null,null,null,"Power Board","PB",null,"Click on Map","M",null,"Poor","4",null,"Alarm Centre Installation Ltd","ACI",null,"Likely","4",null,"Major","4",null,"High","4"]
["Not Applicable (no pole)","NA",null,"Lattice","LATT",null,"GRP","GRP",null,"8M","8M",null,"Flange mounted","F",null,"Lighting Harness","LH",null,"Gantry","G",null,"Powder coated","PCOT",null,null,null,null,null,null,null,"PowerCo","PO",null,null,null,null,"Bulk Lamp Replacement","BL",null,null,null,null,"Telecom","TC",null,"Other","O",null,"Very poor","5",null,"Agfirst","AGF",null,"Almost Certain","5",null,"Extreme","5",null,"Extreme","5"]
["Spun Concrete","SPC",null,"No Pole","NONE",null,"High Mast Light Tower","HMLT",null,"OCLY","OCLY",null,"Ground plant","G",null,"Multiple Attachments see pole notes","MA",null,"High Mast Light Tower","H",null,"Rhino Coating","RHI",null,null,null,null,null,null,null,"The Lines Company","TL",null,null,null,null,"Corrosion","CO",null,null,null,null,"Vodafone","VO",null,"RAMM Generated","R",null,null,null,null,"Abley Ltd","AL",null,"Unknown","U",null,"Unknown","U",null,"Unknown","U"]
["Steel powder coated","ST",null,"Octaganol","OCT",null,"Humes Concrete","HUME",null,4080,4080,null,"No Pole","NO",null,"Name Blade","NB",null,"Belisha Beacon","I",null,"Tape & Paint","TP",null,null,null,null,null,null,null,"Top Energy","TO",null,null,null,null,"Damaged","D",null,null,null,null,null,null,null,null,null,null,null,null,null,"Auckland Motorway Alliance","AMA"]
["Steel (Standard Steel)","STEE",null,"Octyle","OTY",null,"Kendelier Lighting","KEN",null,"PEDX","PEDX",null,"Shear Base","S",null,"Other Attachment","O",null,"Lighting unit","L",null,null,null,null,null,null,null,null,null,null,"Trust Power","TP",null,null,null,null,"Deliberate damage","DM",null,null,null,null,null,null,null,null,null,null,null,null,null,"Asset Management Engineers Ltd","AME"]
["Wood","WOOD",null,"Rectangular","RECT",null,"Not Applicable","NA",null,10,10,null,"Tunnel","T",null,"Road Sign","RS",null,"Montrose Box","M",null,null,null,null,null,null,null,null,null,null,"Unison","US",null,null,null,null,"Fault","F",null,null,null,null,null,null,null,null,null,null,null,null,null,"Asset Management Technicians Ltd","AMT"]
[null,null,null,"Square","SQUA",null,"No Pole","NONE",null,10.5,10.5,null,null,null,null,null,null,null,"No Pole","N",null,null,null,null,null,null,null,null,null,null,"Vector","VE",null,null,null,null,"Lightning","LN",null,null,null,null,null,null,null,null,null,null,null,null,null,"Armitage Systems","ARM"]
[null,null,null,"Triangular","TRI",null,"Oclyte","OC",null,10.7,10.7,null,null,null,null,null,null,null,"Pedestrian Light","P",null,null,null,null,null,null,null,null,null,null,"Waipa Networks","WA",null,null,null,null,"Minor safety project","MS",null,null,null,null,null,null,null,null,null,null,null,null,null,"Aspect Solutions Ltd","ASL"]
[null,null,null,null,null,null,"Power New Zealand","PNZ",null,"10M","10M",null,null,null,null,null,null,null,"Switch gear","S",null,null,null,null,null,null,null,null,null,null,"WEL Networks","WE",null,null,null,null,"New Subdivision","NS",null,null,null,null,null,null,null,null,null,null,null,null,null,"Auckland System Management","ASM"]
[null,null,null,null,null,null,"Reticulation Pole","RET",null,11,11,null,null,null,null,null,null,null,"Telephone aerial","T",null,null,null,null,null,null,null,null,null,null,null,null,null,null,null,null,"Removed","RM",null,null,null,null,null,null,null,null,null,null,null,null,null,"Auckland Transport","AT2"]
[null,null,null,null,null,null,"Spuncrete","SC",null,11.1,11.1,null,null,null,null,null,null,null,"Power pole O/H","W",null,null,null,null,null,null,null,null,null,null,null,null,null,null,null,null,"Safety Issues","SF",null,null,null,null,null,null,null,null,null,null,null,null,null,"Aspect Technology and Equipment Ltd","ATE"]
[null,null,null,null,null,null,"Steelgal","SG",null,11.3,11.3,null,null,null,null,null,null,null,"Traffic Signal","Z",null,null,null,null,null,null,null,null,null,null,null,null,null,null,null,null,"Upgrade","UG",null,null,null,null,null,null,null,null,null,null,null,null,null,"ARRB Transport Research Ltd","ATR"]
[null,null,null,null,null,null,"Spunlite","SL",null,11.5,11.5,null,null,null,null,null,null,null,null,null,null,null,null,null,null,null,null,null,null,null,null,null,null,null,null,null,"Vehicle Collision","VC",null,null,null,null,null,null,null,null,null,null,null,null,null,"Auckland University","AUN"]
[null,null,null,null,null,null,"Simes Magaring","SM",null,11.7,11.7,null,null,null,null,null,null,null,null,null,null,null,null,null,null,null,null,null,null,null,null,null,null,null,null,null,"Vandalised","VD",null,null,null,null,null,null,null,null,null,null,null,null,null,"Broadspectrum (NZ) Ltd","B(L"]
[null,null,null,null,null,null,"Streetscape","STSC",null,12,12,null,null,null,null,null,null,null,null,null,null,null,null,null,null,null,null,null,null,null,null,null,null,null,null,null,null,null,null,null,null,null,null,null,null,null,null,null,null,null,null,"Bri-Ken and Associates Ltd","BAA"]
[null,null,null,null,null,null,"Tauranga","TA",null,12.5,12.5,null,null,null,null,null,null,null,null,null,null,null,null,null,null,null,null,null,null,null,null,null,null,null,null,null,null,null,null,null,null,null,null,null,null,null,null,null,null,null,null,"Bartley Consultants Ltd","BAR"]
[null,null,null,null,null,null,"Unicast Concrete","UC",null,"12M","12M",null,null,null,null,null,null,null,null,null,null,null,null,null,null,null,null,null,null,null,null,null,null,null,null,null,null,null,null,null,null,null,null,null,null,null,null,null,null,null,null,"Bloxam Burnett & Olliver Ltd","BB&"]
[null,null,null,null,null,null,"Vision Concepts","VC",null,14.5,14.5,null,null,null,null,null,null,null,null,null,null,null,null,null,null,null,null,null,null,null,null,null,null,null,null,null,null,null,null,null,null,null,null,null,null,null,null,null,null,null,null,"Beca Infrastructure","BCF"]
[null,null,null,null,null,null,"Vic Pole","VICP",null,5.5,5.5,null,null,null,null,null,null,null,null,null,null,null,null,null,null,null,null,null,null,null,null,null,null,null,null,null,null,null,null,null,null,null,null,null,null,null,null,null,null,null,null,"Buller District Council","BDC"]
[null,null,null,null,null,null,"Windsor Heritage","WH",null,6,6,null,null,null,null,null,null,null,null,null,null,null,null,null,null,null,null,null,null,null,null,null,null,null,null,null,null,null,null,null,null,null,null,null,null,null,null,null,null,null,null,"Blacktop","BLA"]
[null,null,null,null,null,null,null,null,null,"6SUB","6SUB",null,null,null,null,null,null,null,null,null,null,null,null,null,null,null,null,null,null,null,null,null,null,null,null,null,null,null,null,null,null,null,null,null,null,null,null,null,null,null,null,"Beca Ltd.","BLT"]
[null,null,null,null,null,null,null,null,null,7,7,null,null,null,null,null,null,null,null,null,null,null,null,null,null,null,null,null,null,null,null,null,null,null,null,null,null,null,null,null,null,null,null,null,null,null,null,null,null,null,null,"Civil Assist Ltd","CAL"]
[null,null,null,null,null,null,null,null,null,7.3,7.3,null,null,null,null,null,null,null,null,null,null,null,null,null,null,null,null,null,null,null,null,null,null,null,null,null,null,null,null,null,null,null,null,null,null,null,null,null,null,null,null,"Christchurch City Council","CCC"]
[null,null,null,null,null,null,null,null,null,7.5,7.5,null,null,null,null,null,null,null,null,null,null,null,null,null,null,null,null,null,null,null,null,null,null,null,null,null,null,null,null,null,null,null,null,null,null,null,null,null,null,null,null,"City Care Ltd","CCL"]
[null,null,null,null,null,null,null,null,null,8,8,null,null,null,null,null,null,null,null,null,null,null,null,null,null,null,null,null,null,null,null,null,null,null,null,null,null,null,null,null,null,null,null,null,null,null,null,null,null,null,null,"Currie Electrical Ltd.","CEL"]
[null,null,null,null,null,null,null,null,null,8.5,8.5,null,null,null,null,null,null,null,null,null,null,null,null,null,null,null,null,null,null,null,null,null,null,null,null,null,null,null,null,null,null,null,null,null,null,null,null,null,null,null,null,"Company-X Ltd.","CL"]
[null,null,null,null,null,null,null,null,null,9,9,null,null,null,null,null,null,null,null,null,null,null,null,null,null,null,null,null,null,null,null,null,null,null,null,null,null,null,null,null,null,null,null,null,null,null,null,null,null,null,null,"Critchlow Limited","CL2"]
[null,null,null,null,null,null,null,null,null,"MODU","MODU",null,null,null,null,null,null,null,null,null,null,null,null,null,null,null,null,null,null,null,null,null,null,null,null,null,null,null,null,null,null,null,null,null,null,null,null,null,null,null,null,"Coastline Markers Ltd","CML"]
[null,null,null,null,null,null,null,null,null,"OCLY","OCLY",null,null,null,null,null,null,null,null,null,null,null,null,null,null,null,null,null,null,null,null,null,null,null,null,null,null,null,null,null,null,null,null,null,null,null,null,null,null,null,null,"CoreLogic NZ Ltd.","CNL"]
[null,null,null,null,null,null,null,null,null,"PEDX","PEDX",null,null,null,null,null,null,null,null,null,null,null,null,null,null,null,null,null,null,null,null,null,null,null,null,null,null,null,null,null,null,null,null,null,null,null,null,null,null,null,null,"Central Otago District Council","COD"]
[null,null,null,null,null,null,null,null,null,"OCLY","OCLY",null,null,null,null,null,null,null,null,null,null,null,null,null,null,null,null,null,null,null,null,null,null,null,null,null,null,null,null,null,null,null,null,null,null,null,null,null,null,null,null,"Other Contractor","CON"]
[null,null,null,null,null,null,null,null,null,10,10,null,null,null,null,null,null,null,null,null,null,null,null,null,null,null,null,null,null,null,null,null,null,null,null,null,null,null,null,null,null,null,null,null,null,null,null,null,null,null,null,"CSL Traffic","CSL"]
[null,null,null,null,null,null,null,null,null,10.5,10.5,null,null,null,null,null,null,null,null,null,null,null,null,null,null,null,null,null,null,null,null,null,null,null,null,null,null,null,null,null,null,null,null,null,null,null,null,null,null,null,null,"Connell Wagner Ltd","CWL"]
[null,null,null,null,null,null,null,null,null,10.7,10.7,null,null,null,null,null,null,null,null,null,null,null,null,null,null,null,null,null,null,null,null,null,null,null,null,null,null,null,null,null,null,null,null,null,null,null,null,null,null,null,null,"Dunedin City Council","DCC"]
[null,null,null,null,null,null,null,null,null,"10M","10M",null,null,null,null,null,null,null,null,null,null,null,null,null,null,null,null,null,null,null,null,null,null,null,null,null,null,null,null,null,null,null,null,null,null,null,null,null,null,null,null,"D & L Crowe Ltd","DLC"]
[null,null,null,null,null,null,null,null,null,11,11,null,null,null,null,null,null,null,null,null,null,null,null,null,null,null,null,null,null,null,null,null,null,null,null,null,null,null,null,null,null,null,null,null,null,null,null,null,null,null,null,"Spiire NZ Ltd","DWK"]
[null,null,null,null,null,null,null,null,null,"11M","11M",null,null,null,null,null,null,null,null,null,null,null,null,null,null,null,null,null,null,null,null,null,null,null,null,null,null,null,null,null,null,null,null,null,null,null,null,null,null,null,null,"Excell Corporation","ECL"]
[null,null,null,null,null,null,null,null,null,"12M","12M",null,null,null,null,null,null,null,null,null,null,null,null,null,null,null,null,null,null,null,null,null,null,null,null,null,null,null,null,null,null,null,null,null,null,null,null,null,null,null,null,"Ferguson Ind","FGI"]
[null,null,null,null,null,null,null,null,null,9,9,null,null,null,null,null,null,null,null,null,null,null,null,null,null,null,null,null,null,null,null,null,null,null,null,null,null,null,null,null,null,null,null,null,null,null,null,null,null,null,null,"Fulton Hogan (NZ) Ltd.","FUL"]
[null,null,null,null,null,null,null,null,null,"MODU","MODU",null,null,null,null,null,null,null,null,null,null,null,null,null,null,null,null,null,null,null,null,null,null,null,null,null,null,null,null,null,null,null,null,null,null,null,null,null,null,null,null,"Gisborne District Council","GDC"]
[null,null,null,null,null,null,null,null,null,10,10,null,null,null,null,null,null,null,null,null,null,null,null,null,null,null,null,null,null,null,null,null,null,null,null,null,null,null,null,null,null,null,null,null,null,null,null,null,null,null,null,"Geosolve Ltd","GEO"]
[null,null,null,null,null,null,null,null,null,10.5,10.5,null,null,null,null,null,null,null,null,null,null,null,null,null,null,null,null,null,null,null,null,null,null,null,null,null,null,null,null,null,null,null,null,null,null,null,null,null,null,null,null,"GHD Ltd.","GHD"]
[null,null,null,null,null,null,null,null,null,"Streetscape PS1","PS1",null,null,null,null,null,null,null,null,null,null,null,null,null,null,null,null,null,null,null,null,null,null,null,null,null,null,null,null,null,null,null,null,null,null,null,null,null,null,null,null,"Hamilton City Council","HCC"]
[null,null,null,null,null,null,null,null,null,"8M","8M",null,null,null,null,null,null,null,null,null,null,null,null,null,null,null,null,null,null,null,null,null,null,null,null,null,null,null,null,null,null,null,null,null,null,null,null,null,null,null,null,"Hauraki District Council","HDC"]
[null,null,null,null,null,null,null,null,null,"EDIN","EDIN",null,null,null,null,null,null,null,null,null,null,null,null,null,null,null,null,null,null,null,null,null,null,null,null,null,null,null,null,null,null,null,null,null,null,null,null,null,null,null,null,"HEB Construction Ltd","HEB"]
[null,null,null,null,null,null,null,null,null,null,null,null,null,null,null,null,null,null,null,null,null,null,null,null,null,null,null,null,null,null,null,null,null,null,null,null,null,null,null,null,null,null,null,null,null,null,null,null,null,null,null,"Higgins Contractors Ltd.","HIG"]
[null,null,null,null,null,null,null,null,null,null,null,null,null,null,null,null,null,null,null,null,null,null,null,null,null,null,null,null,null,null,null,null,null,null,null,null,null,null,null,null,null,null,null,null,null,null,null,null,null,null,null,"HMI Technologies","HMI"]
[null,null,null,null,null,null,null,null,null,null,null,null,null,null,null,null,null,null,null,null,null,null,null,null,null,null,null,null,null,null,null,null,null,null,null,null,null,null,null,null,null,null,null,null,null,null,null,null,null,null,null,"HERE New Zealand Ltd","HNZ"]
[null,null,null,null,null,null,null,null,null,null,null,null,null,null,null,null,null,null,null,null,null,null,null,null,null,null,null,null,null,null,null,null,null,null,null,null,null,null,null,null,null,null,null,null,null,null,null,null,null,null,null,"Horizon Services Ltd","HSL"]
[null,null,null,null,null,null,null,null,null,null,null,null,null,null,null,null,null,null,null,null,null,null,null,null,null,null,null,null,null,null,null,null,null,null,null,null,null,null,null,null,null,null,null,null,null,null,null,null,null,null,null,"HTS Group","HTS"]
[null,null,null,null,null,null,null,null,null,null,null,null,null,null,null,null,null,null,null,null,null,null,null,null,null,null,null,null,null,null,null,null,null,null,null,null,null,null,null,null,null,null,null,null,null,null,null,null,null,null,null,"Inframix Construction Ltd","IMX"]
[null,null,null,null,null,null,null,null,null,null,null,null,null,null,null,null,null,null,null,null,null,null,null,null,null,null,null,null,null,null,null,null,null,null,null,null,null,null,null,null,null,null,null,null,null,null,null,null,null,null,null,"Inzone","INZ"]
[null,null,null,null,null,null,null,null,null,null,null,null,null,null,null,null,null,null,null,null,null,null,null,null,null,null,null,null,null,null,null,null,null,null,null,null,null,null,null,null,null,null,null,null,null,null,null,null,null,null,null,"Isaac Construction","ISC"]
[null,null,null,null,null,null,null,null,null,null,null,null,null,null,null,null,null,null,null,null,null,null,null,null,null,null,null,null,null,null,null,null,null,null,null,null,null,null,null,null,null,null,null,null,null,null,null,null,null,null,null,"Island Asphalts","ISL"]
[null,null,null,null,null,null,null,null,null,null,null,null,null,null,null,null,null,null,null,null,null,null,null,null,null,null,null,null,null,null,null,null,null,null,null,null,null,null,null,null,null,null,null,null,null,null,null,null,null,null,null,"ITS","ITS"]
[null,null,null,null,null,null,null,null,null,null,null,null,null,null,null,null,null,null,null,null,null,null,null,null,null,null,null,null,null,null,null,null,null,null,null,null,null,null,null,null,null,null,null,null,null,null,null,null,null,null,null,"Jacobs New Zealand Ltd","JAC"]
[null,null,null,null,null,null,null,null,null,null,null,null,null,null,null,null,null,null,null,null,null,null,null,null,null,null,null,null,null,null,null,null,null,null,null,null,null,null,null,null,null,null,null,null,null,null,null,null,null,null,null,"JCW Consultant","JC"]
[null,null,null,null,null,null,null,null,null,null,null,null,null,null,null,null,null,null,null,null,null,null,null,null,null,null,null,null,null,null,null,null,null,null,null,null,null,null,null,null,null,null,null,null,null,null,null,null,null,null,null,"JCL Asphalt subcontractor","JCL"]
[null,null,null,null,null,null,null,null,null,null,null,null,null,null,null,null,null,null,null,null,null,null,null,null,null,null,null,null,null,null,null,null,null,null,null,null,null,null,null,null,null,null,null,null,null,null,null,null,null,null,null,"JJ Walters","JJW"]
[null,null,null,null,null,null,null,null,null,null,null,null,null,null,null,null,null,null,null,null,null,null,null,null,null,null,null,null,null,null,null,null,null,null,null,null,null,null,null,null,null,null,null,null,null,null,null,null,null,null,null,"Johnstone & Masters Ltd","JM"]
[null,null,null,null,null,null,null,null,null,null,null,null,null,null,null,null,null,null,null,null,null,null,null,null,null,null,null,null,null,null,null,null,null,null,null,null,null,null,null,null,null,null,null,null,null,null,null,null,null,null,null,"NZTA (JTOC)","JTO"]
[null,null,null,null,null,null,null,null,null,null,null,null,null,null,null,null,null,null,null,null,null,null,null,null,null,null,null,null,null,null,null,null,null,null,null,null,null,null,null,null,null,null,null,null,null,null,null,null,null,null,null,"Juno Services Ltd","JUN"]
[null,null,null,null,null,null,null,null,null,null,null,null,null,null,null,null,null,null,null,null,null,null,null,null,null,null,null,null,null,null,null,null,null,null,null,null,null,null,null,null,null,null,null,null,null,null,null,null,null,null,null,"Kapiti Coast District Council","KCD"]
[null,null,null,null,null,null,null,null,null,null,null,null,null,null,null,null,null,null,null,null,null,null,null,null,null,null,null,null,null,null,null,null,null,null,null,null,null,null,null,null,null,null,null,null,null,null,null,null,null,null,null,"Kampung Consulting Ltd.","KCL"]
[null,null,null,null,null,null,null,null,null,null,null,null,null,null,null,null,null,null,null,null,null,null,null,null,null,null,null,null,null,null,null,null,null,null,null,null,null,null,null,null,null,null,null,null,null,null,null,null,null,null,null,"Kelcroft Engineering","KEL"]
[null,null,null,null,null,null,null,null,null,null,null,null,null,null,null,null,null,null,null,null,null,null,null,null,null,null,null,null,null,null,null,null,null,null,null,null,null,null,null,null,null,null,null,null,null,null,null,null,null,null,null,"Local Authority","LA"]
[null,null,null,null,null,null,null,null,null,null,null,null,null,null,null,null,null,null,null,null,null,null,null,null,null,null,null,null,null,null,null,null,null,null,null,null,null,null,null,null,null,null,null,null,null,null,null,null,null,null,null,"Lonrix Ltd","LL"]
[null,null,null,null,null,null,null,null,null,null,null,null,null,null,null,null,null,null,null,null,null,null,null,null,null,null,null,null,null,null,null,null,null,null,null,null,null,null,null,null,null,null,null,null,null,null,null,null,null,null,null,"McKays Consultants","MCC"]
[null,null,null,null,null,null,null,null,null,null,null,null,null,null,null,null,null,null,null,null,null,null,null,null,null,null,null,null,null,null,null,null,null,null,null,null,null,null,null,null,null,null,null,null,null,null,null,null,null,null,null,"Matamata-Piako District Council","MD2"]
[null,null,null,null,null,null,null,null,null,null,null,null,null,null,null,null,null,null,null,null,null,null,null,null,null,null,null,null,null,null,null,null,null,null,null,null,null,null,null,null,null,null,null,null,null,null,null,null,null,null,null,"Manawatu District Council","MDC"]
[null,null,null,null,null,null,null,null,null,null,null,null,null,null,null,null,null,null,null,null,null,null,null,null,null,null,null,null,null,null,null,null,null,null,null,null,null,null,null,null,null,null,null,null,null,null,null,null,null,null,null,"McKay Electrical Ltd","MEL"]
[null,null,null,null,null,null,null,null,null,null,null,null,null,null,null,null,null,null,null,null,null,null,null,null,null,null,null,null,null,null,null,null,null,null,null,null,null,null,null,null,null,null,null,null,null,null,null,null,null,null,null,"Aecom NZ Ltd","MER"]
[null,null,null,null,null,null,null,null,null,null,null,null,null,null,null,null,null,null,null,null,null,null,null,null,null,null,null,null,null,null,null,null,null,null,null,null,null,null,null,null,null,null,null,null,null,null,null,null,null,null,null,"MetService","MET"]
[null,null,null,null,null,null,null,null,null,null,null,null,null,null,null,null,null,null,null,null,null,null,null,null,null,null,null,null,null,null,null,null,null,null,null,null,null,null,null,null,null,null,null,null,null,null,null,null,null,null,null,"Marlborough NOC JV","MJV"]
[null,null,null,null,null,null,null,null,null,null,null,null,null,null,null,null,null,null,null,null,null,null,null,null,null,null,null,null,null,null,null,null,null,null,null,null,null,null,null,null,null,null,null,null,null,null,null,null,null,null,null,"McKay Ltd.","ML"]
[null,null,null,null,null,null,null,null,null,null,null,null,null,null,null,null,null,null,null,null,null,null,null,null,null,null,null,null,null,null,null,null,null,null,null,null,null,null,null,null,null,null,null,null,null,null,null,null,null,null,null,"Marlborough Roads","MR"]
[null,null,null,null,null,null,null,null,null,null,null,null,null,null,null,null,null,null,null,null,null,null,null,null,null,null,null,null,null,null,null,null,null,null,null,null,null,null,null,null,null,null,null,null,null,null,null,null,null,null,null,"MWH NZ Ltd.","MWH"]
[null,null,null,null,null,null,null,null,null,null,null,null,null,null,null,null,null,null,null,null,null,null,null,null,null,null,null,null,null,null,null,null,null,null,null,null,null,null,null,null,null,null,null,null,null,null,null,null,null,null,null,"Napier City Council","NCC"]
[null,null,null,null,null,null,null,null,null,null,null,null,null,null,null,null,null,null,null,null,null,null,null,null,null,null,null,null,null,null,null,null,null,null,null,null,null,null,null,null,null,null,null,null,null,null,null,null,null,null,null,"NZ Transport Agency - Highway Programme","NTA"]
[null,null,null,null,null,null,null,null,null,null,null,null,null,null,null,null,null,null,null,null,null,null,null,null,null,null,null,null,null,null,null,null,null,null,null,null,null,null,null,null,null,null,null,null,null,null,null,null,null,null,null,"NZ Transport Agency - Funding","NTF"]
[null,null,null,null,null,null,null,null,null,null,null,null,null,null,null,null,null,null,null,null,null,null,null,null,null,null,null,null,null,null,null,null,null,null,null,null,null,null,null,null,null,null,null,null,null,null,null,null,null,null,null,"North Power","NTH"]
[null,null,null,null,null,null,null,null,null,null,null,null,null,null,null,null,null,null,null,null,null,null,null,null,null,null,null,null,null,null,null,null,null,null,null,null,null,null,null,null,null,null,null,null,null,null,null,null,null,null,null,"Nutech Security","NUT"]
[null,null,null,null,null,null,null,null,null,null,null,null,null,null,null,null,null,null,null,null,null,null,null,null,null,null,null,null,null,null,null,null,null,null,null,null,null,null,null,null,null,null,null,null,null,null,null,null,null,null,null,"Odyssey Energy (2009) Ltd.","OE("]
[null,null,null,null,null,null,null,null,null,null,null,null,null,null,null,null,null,null,null,null,null,null,null,null,null,null,null,null,null,null,null,null,null,null,null,null,null,null,null,null,null,null,null,null,null,null,null,null,null,null,null,"Opus International Consultants Ltd (NZ)","OI2"]
[null,null,null,null,null,null,null,null,null,null,null,null,null,null,null,null,null,null,null,null,null,null,null,null,null,null,null,null,null,null,null,null,null,null,null,null,null,null,null,null,null,null,null,null,null,null,null,null,null,null,null,"Opus International Consultants Ltd.","OIC"]
[null,null,null,null,null,null,null,null,null,null,null,null,null,null,null,null,null,null,null,null,null,null,null,null,null,null,null,null,null,null,null,null,null,null,null,null,null,null,null,null,null,null,null,null,null,null,null,null,null,null,null,"Oldfields","OLD"]
[null,null,null,null,null,null,null,null,null,null,null,null,null,null,null,null,null,null,null,null,null,null,null,null,null,null,null,null,null,null,null,null,null,null,null,null,null,null,null,null,null,null,null,null,null,null,null,null,null,null,null,"Porirua City Council","PCC"]
[null,null,null,null,null,null,null,null,null,null,null,null,null,null,null,null,null,null,null,null,null,null,null,null,null,null,null,null,null,null,null,null,null,null,null,null,null,null,null,null,null,null,null,null,null,null,null,null,null,null,null,"Pinnacles Civil Group Ltd.","PCG"]
[null,null,null,null,null,null,null,null,null,null,null,null,null,null,null,null,null,null,null,null,null,null,null,null,null,null,null,null,null,null,null,null,null,null,null,null,null,null,null,null,null,null,null,null,null,null,null,null,null,null,null,"Pope Electrical Ltd","PE2"]
[null,null,null,null,null,null,null,null,null,null,null,null,null,null,null,null,null,null,null,null,null,null,null,null,null,null,null,null,null,null,null,null,null,null,null,null,null,null,null,null,null,null,null,null,null,null,null,null,null,null,null,"Pope Electrical Limited","PEL"]
[null,null,null,null,null,null,null,null,null,null,null,null,null,null,null,null,null,null,null,null,null,null,null,null,null,null,null,null,null,null,null,null,null,null,null,null,null,null,null,null,null,null,null,null,null,null,null,null,null,null,null,"Pavement Management Services","PMS"]
[null,null,null,null,null,null,null,null,null,null,null,null,null,null,null,null,null,null,null,null,null,null,null,null,null,null,null,null,null,null,null,null,null,null,null,null,null,null,null,null,null,null,null,null,null,null,null,null,null,null,null,"Power Solutions Ltd","PSL"]
[null,null,null,null,null,null,null,null,null,null,null,null,null,null,null,null,null,null,null,null,null,null,null,null,null,null,null,null,null,null,null,null,null,null,null,null,null,null,null,null,null,null,null,null,null,null,null,null,null,null,null,"Queenstown-Lakes District Council","QDC"]
[null,null,null,null,null,null,null,null,null,null,null,null,null,null,null,null,null,null,null,null,null,null,null,null,null,null,null,null,null,null,null,null,null,null,null,null,null,null,null,null,null,null,null,null,null,null,null,null,null,null,null,"Quality Roading and Services","QRS"]
[null,null,null,null,null,null,null,null,null,null,null,null,null,null,null,null,null,null,null,null,null,null,null,null,null,null,null,null,null,null,null,null,null,null,null,null,null,null,null,null,null,null,null,null,null,null,null,null,null,null,null,"Read-only access for Tenderers","RAF"]
[null,null,null,null,null,null,null,null,null,null,null,null,null,null,null,null,null,null,null,null,null,null,null,null,null,null,null,null,null,null,null,null,null,null,null,null,null,null,null,null,null,null,null,null,null,null,null,null,null,null,null,"Rangitikei District Council","RDC"]
[null,null,null,null,null,null,null,null,null,null,null,null,null,null,null,null,null,null,null,null,null,null,null,null,null,null,null,null,null,null,null,null,null,null,null,null,null,null,null,null,null,null,null,null,null,null,null,null,null,null,null,"Roadex","RDX"]
[null,null,null,null,null,null,null,null,null,null,null,null,null,null,null,null,null,null,null,null,null,null,null,null,null,null,null,null,null,null,null,null,null,null,null,null,null,null,null,null,null,null,null,null,null,null,null,null,null,null,null,"Rotorua Lakes Council","RLC"]
[null,null,null,null,null,null,null,null,null,null,null,null,null,null,null,null,null,null,null,null,null,null,null,null,null,null,null,null,null,null,null,null,null,null,null,null,null,null,null,null,null,null,null,null,null,null,null,null,null,null,null,"Roading Logistics Ltd","RLL"]
[null,null,null,null,null,null,null,null,null,null,null,null,null,null,null,null,null,null,null,null,null,null,null,null,null,null,null,null,null,null,null,null,null,null,null,null,null,null,null,null,null,null,null,null,null,null,null,null,null,null,null,"Rationale Ltd","RLT"]
[null,null,null,null,null,null,null,null,null,null,null,null,null,null,null,null,null,null,null,null,null,null,null,null,null,null,null,null,null,null,null,null,null,null,null,null,null,null,null,null,null,null,null,null,null,null,null,null,null,null,null,"Rotorua District Council","ROT"]
[null,null,null,null,null,null,null,null,null,null,null,null,null,null,null,null,null,null,null,null,null,null,null,null,null,null,null,null,null,null,null,null,null,null,null,null,null,null,null,null,null,null,null,null,null,null,null,null,null,null,null,"RAMM Software Limited","RSL"]
[null,null,null,null,null,null,null,null,null,null,null,null,null,null,null,null,null,null,null,null,null,null,null,null,null,null,null,null,null,null,null,null,null,null,null,null,null,null,null,null,null,null,null,null,null,null,null,null,null,null,null,"Road Signs & Traffic Control Equipment Limited","RTL"]
[null,null,null,null,null,null,null,null,null,null,null,null,null,null,null,null,null,null,null,null,null,null,null,null,null,null,null,null,null,null,null,null,null,null,null,null,null,null,null,null,null,null,null,null,null,null,null,null,null,null,null,"Russell Roads","RUS"]
[null,null,null,null,null,null,null,null,null,null,null,null,null,null,null,null,null,null,null,null,null,null,null,null,null,null,null,null,null,null,null,null,null,null,null,null,null,null,null,null,null,null,null,null,null,null,null,null,null,null,null,"Salient Consultants","SAL"]
[null,null,null,null,null,null,null,null,null,null,null,null,null,null,null,null,null,null,null,null,null,null,null,null,null,null,null,null,null,null,null,null,null,null,null,null,null,null,null,null,null,null,null,null,null,null,null,null,null,null,null,"Sealcoat Central Ltd.","SCL"]
[null,null,null,null,null,null,null,null,null,null,null,null,null,null,null,null,null,null,null,null,null,null,null,null,null,null,null,null,null,null,null,null,null,null,null,null,null,null,null,null,null,null,null,null,null,null,null,null,null,null,null,"Shaw's Consulting Services Ltd","SCS"]
[null,null,null,null,null,null,null,null,null,null,null,null,null,null,null,null,null,null,null,null,null,null,null,null,null,null,null,null,null,null,null,null,null,null,null,null,null,null,null,null,null,null,null,null,null,null,null,null,null,null,null,"Southland District Council","SDC"]
[null,null,null,null,null,null,null,null,null,null,null,null,null,null,null,null,null,null,null,null,null,null,null,null,null,null,null,null,null,null,null,null,null,null,null,null,null,null,null,null,null,null,null,null,null,null,null,null,null,null,null,"Signopsys Electronic Signs","SES"]
[null,null,null,null,null,null,null,null,null,null,null,null,null,null,null,null,null,null,null,null,null,null,null,null,null,null,null,null,null,null,null,null,null,null,null,null,null,null,null,null,null,null,null,null,null,null,null,null,null,null,null,"Sicon Ltd.","SL2"]
[null,null,null,null,null,null,null,null,null,null,null,null,null,null,null,null,null,null,null,null,null,null,null,null,null,null,null,null,null,null,null,null,null,null,null,null,null,null,null,null,null,null,null,null,null,null,null,null,null,null,null,"Stantec New Zealand","SN2"]
[null,null,null,null,null,null,null,null,null,null,null,null,null,null,null,null,null,null,null,null,null,null,null,null,null,null,null,null,null,null,null,null,null,null,null,null,null,null,null,null,null,null,null,null,null,null,null,null,null,null,null,"Stantec New Zealand Ltd","SNZ"]
[null,null,null,null,null,null,null,null,null,null,null,null,null,null,null,null,null,null,null,null,null,null,null,null,null,null,null,null,null,null,null,null,null,null,null,null,null,null,null,null,null,null,null,null,null,null,null,null,null,null,null,"SouthRoads Ltd.","SOU"]
[null,null,null,null,null,null,null,null,null,null,null,null,null,null,null,null,null,null,null,null,null,null,null,null,null,null,null,null,null,null,null,null,null,null,null,null,null,null,null,null,null,null,null,null,null,null,null,null,null,null,null,"Safe Roads Alliance","SRA"]
[null,null,null,null,null,null,null,null,null,null,null,null,null,null,null,null,null,null,null,null,null,null,null,null,null,null,null,null,null,null,null,null,null,null,null,null,null,null,null,null,null,null,null,null,null,null,null,null,null,null,null,"Services South East (NZ) Ltd.","SS2"]
[null,null,null,null,null,null,null,null,null,null,null,null,null,null,null,null,null,null,null,null,null,null,null,null,null,null,null,null,null,null,null,null,null,null,null,null,null,null,null,null,null,null,null,null,null,null,null,null,null,null,null,"Services South East Pty Ltd","SSE"]
[null,null,null,null,null,null,null,null,null,null,null,null,null,null,null,null,null,null,null,null,null,null,null,null,null,null,null,null,null,null,null,null,null,null,null,null,null,null,null,null,null,null,null,null,null,null,null,null,null,null,null,"Tonkin & Taylor Ltd","T&T"]
[null,null,null,null,null,null,null,null,null,null,null,null,null,null,null,null,null,null,null,null,null,null,null,null,null,null,null,null,null,null,null,null,null,null,null,null,null,null,null,null,null,null,null,null,null,null,null,null,null,null,null,"Tasman Howey","TAS"]
[null,null,null,null,null,null,null,null,null,null,null,null,null,null,null,null,null,null,null,null,null,null,null,null,null,null,null,null,null,null,null,null,null,null,null,null,null,null,null,null,null,null,null,null,null,null,null,null,null,null,null,"NZTA and WDM","TAW"]
[null,null,null,null,null,null,null,null,null,null,null,null,null,null,null,null,null,null,null,null,null,null,null,null,null,null,null,null,null,null,null,null,null,null,null,null,null,null,null,null,null,null,null,null,null,null,null,null,null,null,null,"Tauranga City Council","TC2"]
[null,null,null,null,null,null,null,null,null,null,null,null,null,null,null,null,null,null,null,null,null,null,null,null,null,null,null,null,null,null,null,null,null,null,null,null,null,null,null,null,null,null,null,null,null,null,null,null,null,null,null,"Taranaki Civil Construction","TCC"]
[null,null,null,null,null,null,null,null,null,null,null,null,null,null,null,null,null,null,null,null,null,null,null,null,null,null,null,null,null,null,null,null,null,null,null,null,null,null,null,null,null,null,null,null,null,null,null,null,null,null,null,"TC Nicholls","TCN"]
[null,null,null,null,null,null,null,null,null,null,null,null,null,null,null,null,null,null,null,null,null,null,null,null,null,null,null,null,null,null,null,null,null,null,null,null,null,null,null,null,null,null,null,null,null,null,null,null,null,null,null,"Traffic Control Systems","TCS"]
[null,null,null,null,null,null,null,null,null,null,null,null,null,null,null,null,null,null,null,null,null,null,null,null,null,null,null,null,null,null,null,null,null,null,null,null,null,null,null,null,null,null,null,null,null,null,null,null,null,null,null,"Taupo District Council","TD2"]
[null,null,null,null,null,null,null,null,null,null,null,null,null,null,null,null,null,null,null,null,null,null,null,null,null,null,null,null,null,null,null,null,null,null,null,null,null,null,null,null,null,null,null,null,null,null,null,null,null,null,null,"Tasman District Council","TDC"]
[null,null,null,null,null,null,null,null,null,null,null,null,null,null,null,null,null,null,null,null,null,null,null,null,null,null,null,null,null,null,null,null,null,null,null,null,null,null,null,null,null,null,null,null,null,null,null,null,null,null,null,"The Datastack Ltd","TDL"]
[null,null,null,null,null,null,null,null,null,null,null,null,null,null,null,null,null,null,null,null,null,null,null,null,null,null,null,null,null,null,null,null,null,null,null,null,null,null,null,null,null,null,null,null,null,null,null,null,null,null,null,"Taupo East Traffic Services Contractor","TET"]
[null,null,null,null,null,null,null,null,null,null,null,null,null,null,null,null,null,null,null,null,null,null,null,null,null,null,null,null,null,null,null,null,null,null,null,null,null,null,null,null,null,null,null,null,null,null,null,null,null,null,null,"Broadspectrum (NZ) Ltd","TFD"]
[null,null,null,null,null,null,null,null,null,null,null,null,null,null,null,null,null,null,null,null,null,null,null,null,null,null,null,null,null,null,null,null,null,null,null,null,null,null,null,null,null,null,null,null,null,null,null,null,null,null,null,"Waka Kotahi NZ Transport Agency","TNZ"]
[null,null,null,null,null,null,null,null,null,null,null,null,null,null,null,null,null,null,null,null,null,null,null,null,null,null,null,null,null,null,null,null,null,null,null,null,null,null,null,null,null,null,null,null,null,null,null,null,null,null,null,"Top Energy","TOP"]
[null,null,null,null,null,null,null,null,null,null,null,null,null,null,null,null,null,null,null,null,null,null,null,null,null,null,null,null,null,null,null,null,null,null,null,null,null,null,null,null,null,null,null,null,null,null,null,null,null,null,null,"The Roading Company","TRC"]
[null,null,null,null,null,null,null,null,null,null,null,null,null,null,null,null,null,null,null,null,null,null,null,null,null,null,null,null,null,null,null,null,null,null,null,null,null,null,null,null,null,null,null,null,null,null,null,null,null,null,null,"Transfield Services (NZ) Ltd","TS("]
[null,null,null,null,null,null,null,null,null,null,null,null,null,null,null,null,null,null,null,null,null,null,null,null,null,null,null,null,null,null,null,null,null,null,null,null,null,null,null,null,null,null,null,null,null,null,null,null,null,null,null,"Tonkin and Taylor Ltd","TT"]
[null,null,null,null,null,null,null,null,null,null,null,null,null,null,null,null,null,null,null,null,null,null,null,null,null,null,null,null,null,null,null,null,null,null,null,null,null,null,null,null,null,null,null,null,null,null,null,null,null,null,null,"Tyco Traffic and Transportation","TYC"]
[null,null,null,null,null,null,null,null,null,null,null,null,null,null,null,null,null,null,null,null,null,null,null,null,null,null,null,null,null,null,null,null,null,null,null,null,null,null,null,null,null,null,null,null,null,null,null,null,null,null,null,"Urban Connection Ltd","UCL"]
[null,null,null,null,null,null,null,null,null,null,null,null,null,null,null,null,null,null,null,null,null,null,null,null,null,null,null,null,null,null,null,null,null,null,null,null,null,null,null,null,null,null,null,null,null,null,null,null,null,null,null,"Unknown","UKN"]
[null,null,null,null,null,null,null,null,null,null,null,null,null,null,null,null,null,null,null,null,null,null,null,null,null,null,null,null,null,null,null,null,null,null,null,null,null,null,null,null,null,null,null,null,null,null,null,null,null,null,null,"University of Canterbury","UOC"]
[null,null,null,null,null,null,null,null,null,null,null,null,null,null,null,null,null,null,null,null,null,null,null,null,null,null,null,null,null,null,null,null,null,null,null,null,null,null,null,null,null,null,null,null,null,null,null,null,null,null,null,"Ventia NZ Operations Limited","VNO"]
[null,null,null,null,null,null,null,null,null,null,null,null,null,null,null,null,null,null,null,null,null,null,null,null,null,null,null,null,null,null,null,null,null,null,null,null,null,null,null,null,null,null,null,null,null,null,null,null,null,null,null,"Ventia Pty Ltd","VPL"]
[null,null,null,null,null,null,null,null,null,null,null,null,null,null,null,null,null,null,null,null,null,null,null,null,null,null,null,null,null,null,null,null,null,null,null,null,null,null,null,null,null,null,null,null,null,null,null,null,null,null,null,"Western Bay of Plenty District Council","WBO"]
[null,null,null,null,null,null,null,null,null,null,null,null,null,null,null,null,null,null,null,null,null,null,null,null,null,null,null,null,null,null,null,null,null,null,null,null,null,null,null,null,null,null,null,null,null,null,null,null,null,null,null,"Wellington City Council","WCC"]
[null,null,null,null,null,null,null,null,null,null,null,null,null,null,null,null,null,null,null,null,null,null,null,null,null,null,null,null,null,null,null,null,null,null,null,null,null,null,null,null,null,null,null,null,null,null,null,null,null,null,null,"Waimakariri District Council","WD2"]
[null,null,null,null,null,null,null,null,null,null,null,null,null,null,null,null,null,null,null,null,null,null,null,null,null,null,null,null,null,null,null,null,null,null,null,null,null,null,null,null,null,null,null,null,null,null,null,null,null,null,null,"Whakatane District Council","WD3"]
[null,null,null,null,null,null,null,null,null,null,null,null,null,null,null,null,null,null,null,null,null,null,null,null,null,null,null,null,null,null,null,null,null,null,null,null,null,null,null,null,null,null,null,null,null,null,null,null,null,null,null,"Wairoa District Council","WD4"]
[null,null,null,null,null,null,null,null,null,null,null,null,null,null,null,null,null,null,null,null,null,null,null,null,null,null,null,null,null,null,null,null,null,null,null,null,null,null,null,null,null,null,null,null,null,null,null,null,null,null,null,"Waipa District Council","WD5"]
[null,null,null,null,null,null,null,null,null,null,null,null,null,null,null,null,null,null,null,null,null,null,null,null,null,null,null,null,null,null,null,null,null,null,null,null,null,null,null,null,null,null,null,null,null,null,null,null,null,null,null,"Waikato District Council","WD6"]
[null,null,null,null,null,null,null,null,null,null,null,null,null,null,null,null,null,null,null,null,null,null,null,null,null,null,null,null,null,null,null,null,null,null,null,null,null,null,null,null,null,null,null,null,null,null,null,null,null,null,null,"Whangarei District Council","WDC"]
[null,null,null,null,null,null,null,null,null,null,null,null,null,null,null,null,null,null,null,null,null,null,null,null,null,null,null,null,null,null,null,null,null,null,null,null,null,null,null,null,null,null,null,null,null,null,null,null,null,null,null,"WDM","WDM"]
[null,null,null,null,null,null,null,null,null,null,null,null,null,null,null,null,null,null,null,null,null,null,null,null,null,null,null,null,null,null,null,null,null,null,null,null,null,null,null,null,null,null,null,null,null,null,null,null,null,null,null,"WSP-Opus International Consultants Ltd","WIC"]
[null,null,null,null,null,null,null,null,null,null,null,null,null,null,null,null,null,null,null,null,null,null,null,null,null,null,null,null,null,null,null,null,null,null,null,null,null,null,null,null,null,null,null,null,null,null,null,null,null,null,null,"Downer New Zealand Limited","WIL"]
[null,null,null,null,null,null,null,null,null,null,null,null,null,null,null,null,null,null,null,null,null,null,null,null,null,null,null,null,null,null,null,null,null,null,null,null,null,null,null,null,null,null,null,null,null,null,null,null,null,null,null,"W J Ashton Service Ltd","WJA"]
[null,null,null,null,null,null,null,null,null,null,null,null,null,null,null,null,null,null,null,null,null,null,null,null,null,null,null,null,null,null,null,null,null,null,null,null,null,null,null,null,null,null,null,null,null,null,null,null,null,null,null,"Waka Kotahi NZ Transport Agency - Highways","WK2"]
[null,null,null,null,null,null,null,null,null,null,null,null,null,null,null,null,null,null,null,null,null,null,null,null,null,null,null,null,null,null,null,null,null,null,null,null,null,null,null,null,null,null,null,null,null,null,null,null,null,null,null,"Waka Kotahi NZ Transport Agency","WKN"]
[null,null,null,null,null,null,null,null,null,null,null,null,null,null,null,null,null,null,null,null,null,null,null,null,null,null,null,null,null,null,null,null,null,null,null,null,null,null,null,null,null,null,null,null,null,null,null,null,null,null,null,"WSP New Zealand Ltd","WNZ"]